Workbook

Sheet 원가계산서
B1: 공 사 원 가 계 산 서
B2: 공사명 : 본원식당 시설개선 공사 | F2: 금액 : 사천사백이십일만구천원(￦44,219,000)
B3: 비 목 | E3: 금 액 | F3: 구 성 비 | G3: 비 고
A4: A1 | B4: 순 공 사 원 가 | C4: 재 료 비 | D4: 직 접 재 료 비 | E4: =TRUNC(공종별집계표!F5, 0) -> 0
A5: A2 | D5: 간 접 재 료 비 | E5: 0
A6: A3 | D6: 작업설, 부산물(△) | E6: 0
A7: AS | D7: [ 소 계 ] | E7: =TRUNC(E4+E5-E6, 0) -> 0
A8: B1 | C8: 노 무 비 | D8: 직 접 노 무 비 | E8: =TRUNC(공종별집계표!H5, 0) -> 0
A9: B2 | D9: 간 접 노 무 비 | E9: =TRUNC(E8*0.05, 0) -> 0 | F9: 직접노무비 * 5%
A10: BS | D10: [ 소 계 ] | E10: =TRUNC(E8+E9, 0) -> 0
A11: C2 | C11: 경 비 | D11: 기 계 경 비 | E11: =TRUNC(공종별집계표!J5, 0) -> 0
A12: C4 | D12: 산 재 보 험 료 | E12: =TRUNC(E10*0.038, 0) -> 0 | F12: 노무비 * 3.8%
A13: C5 | D13: 고 용 보 험 료 | E13: =TRUNC(E10*0.0087, 0) -> 0 | F13: 노무비 * 0.87%
A14: C6 | D14: 국민 건강 보험료 | E14: =TRUNC(E8*0.017, 0) -> 0 | F14: 직접노무비 * 1.7%
A15: C7 | D15: 국민 연금 보험료 | E15: =TRUNC(E8*0.0249, 0) -> 0 | F15: 직접노무비 * 2.49%
A16: CB | D16: 노인장기요양보험료 | E16: =TRUNC(E14*0.0655, 0) -> 0 | F16: 건강보험료 * 6.55%
A17: CA | D17: 산업안전보건관리비 | E17: =TRUNC((E7+E8+E30/1.1)*0.0293, 0) -> 0 | F17: (재료비+직노+관급/1.1) * 2.93%
A18: CH | D18: 환 경 보 전 비 | E18: =TRUNC((E7+E8+E11)*0.003, 0) -> 0 | F18: (재료비+직노+기계경비) * 0.3%
A19: CG | D19: 기 타 경 비 | E19: =TRUNC((E7+E10)*0.02, 0) -> 0 | F19: (재료비+노무비) * 2%
A20: CK | D20: 하도급지급보증수수료 | E20: =TRUNC((E7+E8+E11)*0.00081, 0) -> 0 | F20: (재료비+직노+기계경비) * 0.081%
A21: CL | D21: 건설기계대여금지급보증서발급수수료 | E21: =TRUNC((E7+E8+E11)*0.0049, 0) -> 0 | F21: (재료비+직노+기계경비) * 0.49%
A22: CS | D22: [ 소 계 ] | E22: =TRUNC(E11+E12+E13+E14+E15+E17+E16+E19+E18+E20+E21, 0) -> 0
A23: S1 | B23: 계 | E23: =TRUNC(E7+E10+E22, 0) -> 0
A24: D1 | B24: 일 반 관 리 비 | E24: =TRUNC(E23*0.02, 0) -> 0 | F24: 계 * 2%
A25: D2 | B25: 이 윤 | F25: (노무비+경비+일반관리비) * 8.3%
A26: D4 | B26: 건설폐기물처리비
A27: D9 | B27: 공 급 가 액
A28: DB | B28: 부 가 가 치 세 | F28: 공급가액 * 10%
A29: DH | B29: 도 급 액
A31: S2 | B31: 총 공 사 비

Sheet 공종별집계표
A1: 공 종 별 집 계 표
A2: [ 본원식당 시설개선 공사 ]
A3: 품 명 | B3: 규 격 | C3: 단위 | D3: 수량 | E3: 재 료 비 | G3: 노 무 비 | I3: 경 비 | K3: 합 계 | M3: 비 고 | N3: 공종코드 | O3: 변수 | P3: 상위공종 | Q3: 공종구분 | R3: 공종레벨 | S3: 공종소계 | T3: 원가계산서 연결금액
E4: 단 가 | F4: 금 액 | G4: 단 가 | H4: 금 액 | I4: 단 가 | J4: 금 액 | K4: 단 가 | L4: 금 액
A5: 01 국방기술품질관리원식당리모델링공사 | E5: =F6+F17 -> 0 | F5: =E5*D5 -> 0 | G5: =H6+H17 -> 0 | H5: =G5*D5 -> 0 | I5: =J6+J17 -> 0 | J5: =I5*D5 -> 0 | K5: =E5+G5+I5 -> 0 | L5: =F5+H5+J5 -> 0 | N5: 01 | R5: 1 | S5: <
A6: 0101 건축공사 | E6: =F7+F8+F9+F10+F11+F12+F13+F14+F15 -> 0 | F6: =E6*D6 -> 0 | G6: =H7+H8+H9+H10+H11+H12+H13+H14+H15 -> 0 | H6: 0 | I6: =J7+J8+J9+J10+J11+J12+J13+J14+J15 -> 0 | J6: =I6*D6 -> 0 | K6: 0 | L6: =F6+H6+J6 -> 0 | N6: 0101 | P6: 01 | R6: 2
A7: 010101 목 공 사 | E7: =공종별내역서!F27 -> 0 | F7: 0 | G7: =공종별내역서!H27 -> 0 | H7: 0 | I7: =공종별내역서!J27 -> 0 | J7: 0 | K7: 0 | L7: 0 | N7: 010101 | P7: 0101 | R7: 3
A8: 010102 금 속 공 사 | E8: =공종별내역서!F51 -> 0 | F8: 0 | G8: =공종별내역서!H51 -> 0 | H8: 0 | I8: =공종별내역서!J51 -> 0 | J8: 0 | K8: 0 | L8: 0 | N8: 010102 | P8: 0101 | R8: 3
A9: 010103 창 호 공 사 | E9: =공종별내역서!F75 -> 171,600 | F9: 0 | G9: =공종별내역서!H75 -> 0 | H9: 0 | I9: =공종별내역서!J75 -> 0 | J9: 0 | K9: 171,600 | L9: 0 | N9: 010103 | P9: 0101 | R9: 3
A10: 010104 유 리 공 사 | E10: =공종별내역서!F99 -> 1,712,200 | F10: 0 | G10: =공종별내역서!H99 -> 0 | H10: 0 | I10: =공종별내역서!J99 -> 0 | J10: 0 | K10: 1,712,200 | L10: 0 | N10: 010104 | P10: 0101 | R10: 3
A11: 010105 칠 공 사 | E11: =공종별내역서!F123 -> 317,250 | F11: 0 | G11: =공종별내역서!H123 -> 552,850 | H11: 0 | I11: =공종별내역서!J123 -> 0 | J11: 0 | K11: 870,100 | L11: 0 | N11: 010105 | P11: 0101 | R11: 3
A12: 010106 수 장 공 사 | E12: =공종별내역서!F147 -> 0 | F12: 0 | G12: =공종별내역서!H147 -> 0 | H12: 0 | I12: =공종별내역서!J147 -> 0 | J12: 0 | K12: 0 | L12: 0 | N12: 010106 | P12: 0101 | R12: 3
A13: 010107 기 타 공 사 | E13: =공종별내역서!F171 -> 4,120,000 | F13: 0 | G13: =공종별내역서!H171 -> 0 | H13: 0 | I13: =공종별내역서!J171 -> 0 | J13: 0 | K13: 4,120,000 | L13: 0 | N13: 010107 | P13: 0101 | R13: 3
A14: 010108 철 거 공 사 | E14: =공종별내역서!F195 -> 0 | F14: 0 | G14: =공종별내역서!H195 -> 0 | H14: 0 | I14: =공종별내역서!J195 -> 0 | J14: 0 | K14: 0 | L14: 0 | N14: 010108 | P14: 0101 | R14: 3
A15: 010109 골 재 대 | E15: =공종별내역서!F219 -> 133,620 | F15: 0 | G15: =공종별내역서!H219 -> 0 | H15: 0 | I15: =공종별내역서!J219 -> 0 | J15: 0 | K15: 133,620 | L15: 0 | N15: 010109 | P15: 0101 | R15: 3 | S15: <
A16: 010110 건설폐기물처리비 | E16: =공종별내역서!F243 -> 0 | F16: 0 | G16: =공종별내역서!H243 -> 0 | H16: 0 | I16: =공종별내역서!J243 -> 1,294,920 | J16: 0 | K16: 1,294,920 | L16: 0 | N16: 010110 | Q16: 6 | R16: 3 | T16: =L16*1 -> 0
A17: 0102 기계설비공사 | E17: =F18 -> 0 | F17: 0 | G17: =H18 -> 0 | H17: 0 | I17: =J18 -> 0 | J17: 0 | K17: 0 | L17: 0 | N17: 0102 | P17: 01 | R17: 2 | S17: <
A18: 010201 기계설비공사 | E18: =공종별내역서!F267 -> 140,702 | F18: 0 | G18: =공종별내역서!H267 -> 1,045,089 | H18: 0 | I18: =공종별내역서!J267 -> 0 | J18: 0 | K18: 1,185,791 | L18: 0 | N18: 010201 | P18: 0102 | R18: 3 | S18: <
G19: =공종별내역서!H291 -> 0 | H19: 0 | I19: =공종별내역서!J291 -> 0 | J19: 0 | K19: 0 | L19: 0 | N19: 010202 | Q19: 3 | R19: 3 | T19: =L19*1 -> 0
A27: [ 합 계 ] | F27: =F5 -> 0 | H27: =H5 -> 0 | J27: =J5 -> 0 | L27: =L5 -> 0

Sheet 공종별내역서
A1: [ 본원식당 시설개선 공사 ]
A2: 품 명 | B2: 규 격 | C2: 단위 | D2: 수량 | E2: 재 료 비 | G2: 노 무 비 | I2: 경 비 | K2: 합 계 | M2: 비 고 | N2: 품목코드 | O2: 변수 | P2: 설정 | Q2: 공종코드 | R2: 일위 | S2: 단산 | T2: 자 재 | U2: 손료적용 | V2: 손료저장 | W2: 적용율 | X2: JUK1 | Y2: JUK2 | Z2: JUK3 | AA2: JUK4 | AB2: JUK5 | AC2: JUK6 | AD2: JUK7 | AE2: JUK8 | AF2: JUK9 | AG2: JUK10 | AH2: JUK11 | AI2: JUK12 | AJ2: JUK13 | AK2: JUK14 | AL2: JUK15 | AM2: JUK16 | AN2: JUK17 | AO2: JUK18 | AP2: JUK19 | AQ2: JUK20 | AR2: 자재구분 | AS2: 공종구분 | AT2: 공종레벨 | AU2: 공종+자재 | AV2: 고유번호
E3: 단 가 | F3: 금 액 | G3: 단 가 | H3: 금 액 | I3: 단 가 | J3: 금 액 | K3: 단 가 | L3: 금 액
A4: 010101 목 공 사 | Q4: 010101
A5: 목재후로링 깔기 | B5: 헤링본형태 | C5: M2 | E5: =TRUNC(일위대가목록!E4,0) -> 0 | F5: =TRUNC(E5*D5, 0) -> 0 | G5: =TRUNC(일위대가목록!F4,0) -> 0 | H5: =TRUNC(G5*D5, 0) -> 0 | I5: =TRUNC(일위대가목록!G4,0) -> 0 | J5: =TRUNC(I5*D5, 0) -> 0 | K5: =TRUNC(E5+G5+I5, 0) -> 0 | L5: 0 | N5: 5702212874485C701A4BC0FB2E855E | Q5: 010101 | R5: T | S5: F | T5: F | AU5: 0101015702212874485C701A4BC0FB2E855E | AV5: 9
A6: 벽체틀(각관) | B6: 30*30, @450*600 | C6: M2 | E6: =TRUNC(일위대가목록!E5,0) -> 0 | F6: =TRUNC(E6*D6, 0) -> 0 | G6: =TRUNC(일위대가목록!F5,0) -> 0 | H6: =TRUNC(G6*D6, 0) -> 0 | I6: =TRUNC(일위대가목록!G5,0) -> 0 | J6: =TRUNC(I6*D6, 0) -> 0 | K6: 0 | L6: 0 | N6: 570221287703B7C010D3F3B6B35208 | Q6: 010101 | R6: T | S6: F | T6: F | AU6: 010101570221287703B7C010D3F3B6B35208 | AV6: 11
A7: 벽, 합판붙임 | B7: 벽, 8.5T(준내수합판) | C7: M2 | E7: =TRUNC(일위대가목록!E6,0) -> 0 | F7: =TRUNC(E7*D7, 0) -> 0 | G7: =TRUNC(일위대가목록!F6,0) -> 0 | H7: =TRUNC(G7*D7, 0) -> 0 | I7: =TRUNC(일위대가목록!G6,0) -> 0 | J7: =TRUNC(I7*D7, 0) -> 0 | K7: 0 | L7: 0 | N7: 5702412D70B66DC01C52BFEFE524B9 | Q7: 010101 | R7: T | S7: F | T7: F | AU7: 0101015702412D70B66DC01C52BFEFE524B9 | AV7: 14
A27: [ 합 계 ] | F27: =SUM(F5:F26) -> 0 | H27: =SUM(H5:H26) -> 0 | J27: =SUM(J5:J26) -> 0 | L27: =SUM(L5:L26) -> 0 | N27: TOTAL
A28: 010102 금 속 공 사 | Q28: 010102
A29: 경량철골천정틀 | B29: M-BAR, H:1m미만. 인써트 유 | C29: M2 | D29: 65 | E29: =TRUNC(일위대가목록!E7,0) -> 0 | F29: =TRUNC(E29*D29, 0) -> 0 | G29: =TRUNC(일위대가목록!F7,0) -> 0 | H29: =TRUNC(G29*D29, 0) -> 0 | I29: =TRUNC(일위대가목록!G7,0) -> 0 | J29: =TRUNC(I29*D29, 0) -> 0 | K29: =TRUNC(E29+G29+I29, 0) -> 0 | L29: 0 | N29: 5702112977EBF6401D6FD866B1DB58 | Q29: 010102 | R29: T | S29: F | T29: F | AU29: 0101025702112977EBF6401D6FD866B1DB58 | AV29: 18
A30: 천장 점검구 설치 | B30: AL 백색, 650*650mm | C30: 개소 | D30: 1 | E30: =TRUNC(일위대가목록!E8,0) -> 0 | F30: 0 | G30: =TRUNC(일위대가목록!F8,0) -> 0 | H30: 0 | I30: =TRUNC(일위대가목록!G8,0) -> 0 | J30: 0 | K30: 0 | L30: 0 | N30: 5702112977EC9C1010376EE9E65E0E | Q30: 010102 | R30: T | S30: F | T30: F | AU30: 0101025702112977EC9C1010376EE9E65E0E | AV30: 19
A31: 스텐걸레받이 | B31: S'ST1.5t, H:80 | C31: M | D31: 20 | E31: =TRUNC(일위대가목록!E9,0) -> 0 | F31: 0 | G31: =TRUNC(일위대가목록!F9,0) -> 0 | H31: 0 | I31: =TRUNC(일위대가목록!G9,0) -> 0 | J31: 0 | K31: 0 | L31: 0 | N31: 57021129730BE6F01FEF6B66104C0E | Q31: 010102 | R31: T | S31: F | T31: F | AU31: 01010257021129730BE6F01FEF6B66104C0E | AV31: 20
A32: 알루미늄루버설치/천정 | B32: 45*120,인테리어필름 | C32: M | D32: 76 | E32: =TRUNC(일위대가목록!E10,0) -> 0 | F32: 0 | G32: =TRUNC(일위대가목록!F10,0) -> 0 | H32: 0 | I32: =TRUNC(일위대가목록!G10,0) -> 0 | J32: 0 | K32: 0 | L32: 0 | N32: 57021129730BE6F01FEF6B66104C0D | Q32: 010102 | R32: T | S32: F | T32: F | AU32: 01010257021129730BE6F01FEF6B66104C0D | AV32: 21
A33: 우물천정설치/갈바절곡 | B33: 갈바1.2mm, 350*150, 분체도장 | C33: M | D33: 18 | E33: =TRUNC(일위대가목록!E11,0) -> 0 | F33: 0 | G33: =TRUNC(일위대가목록!F11,0) -> 0 | H33: 0 | I33: =TRUNC(일위대가목록!G11,0) -> 0 | J33: 0 | K33: 0 | L33: 0 | N33: 57021129730BE6F01FEF6B66104C0C | Q33: 010102 | R33: T | S33: F | T33: F | AU33: 01010257021129730BE6F01FEF6B66104C0C | AV33: 22
A34: 스테인리스재료분리대 | B34: 바닥, W45*H20*1.5t | C34: M | D34: 9 | E34: =TRUNC(일위대가목록!E12,0) -> 0 | F34: 0 | G34: =TRUNC(일위대가목록!F12,0) -> 0 | H34: 0 | I34: =TRUNC(일위대가목록!G12,0) -> 0 | J34: 0 | K34: 0 | L34: 0 | N34: 5702412D742C300019236B83C93DDF | Q34: 010102 | R34: T | S34: F | T34: F | AU34: 0101025702412D742C300019236B83C93DDF | AV34: 23
A35: 벽장식구조물/칼라도장 | B35: (ㅁ-40*40+30*20), 4480*1180 | C35: EA | D35: 1 | E35: =TRUNC(일위대가목록!E13,0) -> 0 | F35: 0 | G35: =TRUNC(일위대가목록!F13,0) -> 0 | H35: 0 | I35: =TRUNC(일위대가목록!G13,0) -> 0 | J35: 0 | K35: 0 | L35: 0 | N35: 570271207ED9BE901F7CB41125A738 | Q35: 010102 | R35: T | S35: F | T35: F | AU35: 010102570271207ED9BE901F7CB41125A738 | AV35: 41
A51: [ 합 계 ] | F51: =SUM(F29:F50) -> 0 | H51: =SUM(H29:H50) -> 0 | J51: =SUM(J29:J50) -> 0 | L51: =SUM(L29:L50) -> 0 | N51: TOTAL
A52: 010103 창 호 공 사 | Q52: 010103
A53: AW01[갈바절곡창호,분체도장] | B53: 8.150 x 3.000 | C53: EA | D53: 1 | E53: =TRUNC(일위대가목록!E14,0) -> 0 | F53: =TRUNC(E53*D53, 0) -> 0 | G53: =TRUNC(일위대가목록!F14,0) -> 0 | H53: =TRUNC(G53*D53, 0) -> 0 | I53: =TRUNC(일위대가목록!G14,0) -> 0 | J53: =TRUNC(I53*D53, 0) -> 0 | K53: =TRUNC(E53+G53+I53, 0) -> 0 | L53: 0 | N53: 570271207687A1201B01D15F1996E4 | Q53: 010103 | R53: T | S53: F | T53: F | AU53: 010103570271207687A1201B01D15F1996E4 | AV53: 29
A54: AW02[갈바절곡창호,분체도장] | B54: 1.000 x 2.100 | C54: EA | D54: 1 | E54: =TRUNC(일위대가목록!E15,0) -> 0 | F54: 0 | G54: =TRUNC(일위대가목록!F15,0) -> 0 | H54: 0 | I54: =TRUNC(일위대가목록!G15,0) -> 0 | J54: 0 | K54: 0 | L54: 0 | N54: 570271207687A1201B01D15F1996E6 | Q54: 010103 | R54: T | S54: F | T54: F | AU54: 010103570271207687A1201B01D15F1996E6 | AV54: 30
A55: 플로어힌지 | B55: KS3호, 105kg, 강화유리문(K-8300) | C55: 조 | D55: 3 | E55: =TRUNC(단가대비표!O46,0) -> 57,200 | F55: 171,600 | G55: =TRUNC(단가대비표!P46,0) -> 0 | H55: 0 | I55: =TRUNC(단가대비표!V46,0) -> 0 | J55: 0 | K55: 57,200 | L55: 171,600 | N55: 502741227AE1991015186ABB5A18A8680D7CBC | Q55: 010103 | R55: F | S55: F | T55: T | AU55: 010103502741227AE1991015186ABB5A18A8680D7CBC | AV55: 28
A56: 플로어힌지설치 | B56: 재료비 별도 | C56: 개소 | D56: 3 | E56: =TRUNC(일위대가목록!E16,0) -> 0 | F56: 0 | G56: =TRUNC(일위대가목록!F16,0) -> 0 | H56: 0 | I56: =TRUNC(일위대가목록!G16,0) -> 0 | J56: 0 | K56: 0 | L56: 0 | N56: 57027120710754601E2C6A82A6094C | Q56: 010103 | R56: T | S56: F | T56: F | AU56: 01010357027120710754601E2C6A82A6094C | AV56: 31
A57: 창문틀 주위 충전 | B57: 발포우레탄 | C57: M | D57: 26 | E57: =TRUNC(일위대가목록!E17,0) -> 0 | F57: 0 | G57: =TRUNC(일위대가목록!F17,0) -> 0 | H57: 0 | I57: =TRUNC(일위대가목록!G17,0) -> 0 | J57: 0 | K57: 0 | L57: 0 | N57: 570271207101CDE01E61F47CDE96AF | Q57: 010103 | R57: T | S57: F | T57: F | AU57: 010103570271207101CDE01E61F47CDE96AF | AV57: 63
A58: 수밀코킹(실리콘) | B58: 삼각, 10mm, 창호주위 | C58: M | D58: 51 | E58: =TRUNC(일위대가목록!E18,0) -> 0 | F58: 0 | G58: =TRUNC(일위대가목록!F18,0) -> 0 | H58: 0 | I58: =TRUNC(일위대가목록!G18,0) -> 0 | J58: 0 | K58: 0 | L58: 0 | N58: 5702312E7A1C7B70109B246605A7AB | Q58: 010103 | R58: T | S58: F | T58: F | AU58: 0101035702312E7A1C7B70109B246605A7AB | AV58: 16
A75: [ 합 계 ] | F75: =SUM(F53:F74) -> 171,600 | H75: =SUM(H53:H74) -> 0 | J75: =SUM(J53:J74) -> 0 | L75: =SUM(L53:L74) -> 171,600 | N75: TOTAL
A76: 010104 유 리 공 사 | Q76: 010104
A77: 강화유리문(세이프) | B77: 투명,손보호,12mm*1.0*2.1m,고무2면 | C77: 개 | D77: 1 | E77: =TRUNC(단가대비표!O41,0) -> 250,000 | F77: =TRUNC(E77*D77, 0) -> 250,000 | G77: =TRUNC(단가대비표!P41,0) -> 0 | H77: =TRUNC(G77*D77, 0) -> 0 | I77: =TRUNC(단가대비표!V41,0) -> 0 | J77: =TRUNC(I77*D77, 0) -> 0 | K77: =TRUNC(E77+G77+I77, 0) -> 250,000 | L77: 250,000 | N77: 502751237381CFF01DB37EE44D679307B13C42 | Q77: 010104 | R77: F | S77: F | T77: T | AU77: 010104502751237381CFF01DB37EE44D679307B13C42 | AV77: 34
A78: 강화유리문(세이프) | B78: 투명,손보호,12mm*0.9*3.0m,고무2면 | C78: 개 | D78: 2 | E78: =TRUNC(단가대비표!O42,0) -> 300,000 | F78: 600,000 | G78: =TRUNC(단가대비표!P42,0) -> 0 | H78: 0 | I78: =TRUNC(단가대비표!V42,0) -> 0 | J78: 0 | K78: 300,000 | L78: 600,000 | N78: 502751237381CFF01DB37EE44D679307B13C43 | Q78: 010104 | R78: F | S78: F | T78: T | AU78: 010104502751237381CFF01DB37EE44D679307B13C43 | AV78: 35
A79: 강화유리문손잡이 | C79: 개 | D79: 3 | E79: =TRUNC(단가대비표!O43,0) -> 48,000 | F79: 144,000 | G79: =TRUNC(단가대비표!P43,0) -> 0 | H79: 0 | I79: =TRUNC(단가대비표!V43,0) -> 0 | J79: 0 | K79: 48,000 | L79: 144,000 | N79: 502751237381CFF01DB37EE44F18C3B0C8C1C0 | Q79: 010104 | R79: F | S79: F | T79: T | AU79: 010104502751237381CFF01DB37EE44F18C3B0C8C1C0 | AV79: 36
A80: 강화유리 | B80: 강화유리, 투명, 12mm | C80: M2 | D80: 19 | E80: =TRUNC(단가대비표!O45,0) -> 37,800 | F80: 718,200 | G80: =TRUNC(단가대비표!P45,0) -> 0 | H80: 0 | I80: =TRUNC(단가대비표!V45,0) -> 0 | J80: 0 | K80: 37,800 | L80: 718,200 | N80: 502751237381CFF01F61DD0066D94C1B0EC079 | Q80: 010104 | R80: F | S80: F | T80: T | AU80: 010104502751237381CFF01F61DD0066D94C1B0EC079 | AV80: 37
A81: 유리주위코킹 | B81: 5*5, 실리콘 | C81: M | D81: 147 | E81: =TRUNC(일위대가목록!E19,0) -> 0 | F81: 0 | G81: =TRUNC(일위대가목록!F19,0) -> 0 | H81: 0 | I81: =TRUNC(일위대가목록!G19,0) -> 0 | J81: 0 | K81: 0 | L81: 0 | N81: 5702312E7A1D01301FE0F9C5BEED3E | Q81: 010104 | R81: T | S81: F | T81: F | AU81: 0101045702312E7A1D01301FE0F9C5BEED3E | AV81: 38
A82: 유리끼우기 - 판유리 | B82: 10mm 이상 | C82: M2 | D82: 19 | E82: =TRUNC(일위대가목록!E20,0) -> 0 | F82: 0 | G82: =TRUNC(일위대가목록!F20,0) -> 0 | H82: 0 | I82: =TRUNC(일위대가목록!G20,0) -> 0 | J82: 0 | K82: 0 | L82: 0 | N82: 57027120707FFCC013A61618E3113C | Q82: 010104 | R82: T | S82: F | T82: F | AU82: 01010457027120707FFCC013A61618E3113C | AV82: 39
A83: 브론즈경설치 | B83: W150*5mm, 틀 포함 | C83: M | D83: 12 | E83: =TRUNC(일위대가목록!E21,0) -> 0 | F83: 0 | G83: =TRUNC(일위대가목록!F21,0) -> 0 | H83: 0 | I83: =TRUNC(일위대가목록!G21,0) -> 0 | J83: 0 | K83: 0 | L83: 0 | N83: 570271207ED9BE901F7CB41125A739 | Q83: 010104 | R83: T | S83: F | T83: F | AU83: 010104570271207ED9BE901F7CB41125A739 | AV83: 40
A99: [ 합 계 ] | F99: =SUM(F77:F98) -> 1,712,200 | H99: =SUM(H77:H98) -> 0 | J99: =SUM(J77:J98) -> 0 | L99: =SUM(L77:L98) -> 1,712,200 | N99: TOTAL
A100: 010105 칠 공 사 | Q100: 010105
A101: 비닐페인트 | B101: 내벽3회 | C101: ㎡ | D101: 10 | E101: =TRUNC(단가대비표!O67,0) -> 4,100 | F101: =TRUNC(E101*D101, 0) -> 41,000 | G101: =TRUNC(단가대비표!P67,0) -> 6,990 | H101: =TRUNC(G101*D101, 0) -> 69,900 | I101: =TRUNC(단가대비표!V67,0) -> 0 | J101: =TRUNC(I101*D101, 0) -> 0 | K101: =TRUNC(E101+G101+I101, 0) -> 11,090 | L101: 110,900 | N101: 570251237A23DB8019A5DC2725B045 | Q101: 010105 | R101: F | S101: F | T101: T | AU101: 010105570251237A23DB8019A5DC2725B045 | AV101: 43
A102: 비닐페인트 | B102: 내천정3회 | C102: ㎡ | D102: 65 | E102: =TRUNC(단가대비표!O68,0) -> 4,250 | F102: =TRUNC(E102*D102, 0) -> 276,250 | G102: =TRUNC(단가대비표!P68,0) -> 7,430 | H102: =TRUNC(G102*D102, 0) -> 482,950 | I102: =TRUNC(단가대비표!V68,0) -> 0 | J102: =TRUNC(I102*D102, 0) -> 0 | K102: 11,680 | L102: 759,200 | N102: 570251237A23DB80189FF142B2C4D7 | Q102: 010105 | R102: F | S102: F | T102: T | AU102: 010105570251237A23DB80189FF142B2C4D7 | AV102: 44
A103: 바탕만들기 - 친환경 | B103: 석고보드면(줄퍼티) | C103: M2 | D103: 10 | E103: =TRUNC(일위대가목록!E22,0) -> 0 | F103: =TRUNC(E103*D103, 0) -> 0 | G103: =TRUNC(일위대가목록!F22,0) -> 0 | H103: =TRUNC(G103*D103, 0) -> 0 | I103: =TRUNC(일위대가목록!G22,0) -> 0 | J103: =TRUNC(I103*D103, 0) -> 0 | K103: 0 | L103: 0 | N103: 570251227A94AB301E23E0DBB6C996 | Q103: 010105 | R103: T | S103: F | T103: F | AU103: 010105570251227A94AB301E23E0DBB6C996 | AV103: 92
A104: 바탕만들기 - 친환경 | B104: 석고보드면(줄퍼티), 천장 | C104: M2 | D104: 65 | E104: =TRUNC(일위대가목록!E23,0) -> 0 | F104: =TRUNC(E104*D104, 0) -> 0 | G104: =TRUNC(일위대가목록!F23,0) -> 0 | H104: =TRUNC(G104*D104, 0) -> 0 | I104: =TRUNC(일위대가목록!G23,0) -> 0 | J104: =TRUNC(I104*D104, 0) -> 0 | K104: 0 | L104: 0 | N104: 570251227A94AB301E23E0DBB526C8 | Q104: 010105 | R104: T | S104: F | T104: F | AU104: 010105570251227A94AB301E23E0DBB526C8 | AV104: 46
A123: [ 합 계 ] | F123: =SUM(F101:F122) -> 317,250 | H123: =SUM(H101:H122) -> 552,850 | J123: =SUM(J101:J122) -> 0 | L123: =SUM(L101:L122) -> 870,100 | N123: TOTAL
A124: 010106 수 장 공 사 | Q124: 010106
A125: 인조대리석마감 | B125: 20T | C125: M2 | D125: 71 | E125: =TRUNC(일위대가목록!E24,0) -> 0 | F125: =TRUNC(E125*D125, 0) -> 0 | G125: =TRUNC(일위대가목록!F24,0) -> 0 | H125: =TRUNC(G125*D125, 0) -> 0 | I125: =TRUNC(일위대가목록!G24,0) -> 0 | J125: =TRUNC(I125*D125, 0) -> 0 | K125: =TRUNC(E125+G125+I125, 0) -> 0 | L125: 0 | N125: 570261227200141014F2292A11BF52 | Q125: 010106 | R125: T | S125: F | T125: F | AU125: 010106570261227200141014F2292A11BF52 | AV125: 69
A126: 석고판 붙임(바탕+치장) | B126: 벽, 일반9.5mm 2겹 | C126: M2 | D126: 24 | E126: =TRUNC(일위대가목록!E25,0) -> 0 | F126: =TRUNC(E126*D126, 0) -> 0 | G126: =TRUNC(일위대가목록!F25,0) -> 0 | H126: =TRUNC(G126*D126, 0) -> 0 | I126: =TRUNC(일위대가목록!G25,0) -> 0 | J126: =TRUNC(I126*D126, 0) -> 0 | K126: 0 | L126: 0 | N126: 5702412D70B0C2301A7422D4027BDF | Q126: 010106 | R126: T | S126: F | T126: F | AU126: 0101065702412D70B0C2301A7422D4027BDF | AV126: 51
A127: 석고판 붙임(바탕+치장) | B127: 천장, 일반9.5mm 2겹 | C127: M2 | D127: 150 | E127: =TRUNC(일위대가목록!E26,0) -> 0 | F127: =TRUNC(E127*D127, 0) -> 0 | G127: =TRUNC(일위대가목록!F26,0) -> 0 | H127: =TRUNC(G127*D127, 0) -> 0 | I127: =TRUNC(일위대가목록!G26,0) -> 0 | J127: =TRUNC(I127*D127, 0) -> 0 | K127: 0 | L127: 0 | N127: 5702412D70B0C230196ED746EBDC30 | Q127: 010106 | R127: T | S127: F | T127: F | AU127: 0101065702412D70B0C230196ED746EBDC30 | AV127: 52
A128: 모르타르 바름 | B128: 바닥, 30mm | C128: M2 | D128: 53 | E128: =TRUNC(일위대가목록!E27,0) -> 0 | F128: =TRUNC(E128*D128, 0) -> 0 | G128: =TRUNC(일위대가목록!F27,0) -> 0 | H128: =TRUNC(G128*D128, 0) -> 0 | I128: =TRUNC(일위대가목록!G27,0) -> 0 | J128: =TRUNC(I128*D128, 0) -> 0 | K128: 0 | L128: 0 | N128: 5702C12878813730115E9C42A7D401 | Q128: 010106 | R128: T | S128: F | T128: F | AU128: 0101065702C12878813730115E9C42A7D401 | AV128: 25
A147: [ 합 계 ] | F147: =SUM(F125:F146) -> 0 | H147: =SUM(H125:H146) -> 0 | J147: =SUM(J125:J146) -> 0 | L147: =SUM(L125:L146) -> 0 | N147: TOTAL
A148: 010107 기 타 공 사 | Q148: 010107
A149: EZM-5693 의자 | B149: H705/블랙 | C149: EA | D149: 12 | E149: =TRUNC(단가대비표!O85,0) -> 220,000 | F149: =TRUNC(E149*D149, 0) -> 2,640,000 | G149: =TRUNC(단가대비표!P85,0) -> 0 | H149: =TRUNC(G149*D149, 0) -> 0 | I149: =TRUNC(단가대비표!V85,0) -> 0 | J149: =TRUNC(I149*D149, 0) -> 0 | K149: =TRUNC(E149+G149+I149, 0) -> 220,000 | L149: =TRUNC(F149+H149+J149, 0) -> 2,640,000 | N149: 56BA812F7146E22011C03552E73DA1060155A8 | Q149: 010107 | R149: F | S149: F | T149: T | AU149: 01010756BA812F7146E22011C03552E73DA1060155A8 | AV149: 96
A150: 이미지파티션공사 | B150: 800*1800 | C150: EA | D150: 5 | E150: =TRUNC(단가대비표!O86,0) -> 296,000 | F150: =TRUNC(E150*D150, 0) -> 1,480,000 | G150: =TRUNC(단가대비표!P86,0) -> 0 | H150: =TRUNC(G150*D150, 0) -> 0 | I150: =TRUNC(단가대비표!V86,0) -> 0 | J150: =TRUNC(I150*D150, 0) -> 0 | K150: =TRUNC(E150+G150+I150, 0) -> 296,000 | L150: =TRUNC(F150+H150+J150, 0) -> 1,480,000 | N150: 56BA812F7146E22011C03552E73DA1060155A0 | Q150: 010107 | R150: F | S150: F | T150: T | AU150: 01010756BA812F7146E22011C03552E73DA1060155A0 | AV150: 95
A171: [ 합 계 ] | F171: =SUM(F149:F170) -> 4,120,000 | H171: =SUM(H149:H170) -> 0 | J171: =SUM(J149:J170) -> 0 | L171: =SUM(L149:L170) -> 4,120,000 | N171: TOTAL
A172: 010108 철 거 공 사 | Q172: 010108
A173: 석고보드 철거(천장) | B173: 9.5mm*2겹 | C173: M2 | D173: 92 | E173: =TRUNC(일위대가목록!E28,0) -> 0 | F173: =TRUNC(E173*D173, 0) -> 0 | G173: =TRUNC(일위대가목록!F28,0) -> 0 | H173: =TRUNC(G173*D173, 0) -> 0 | I173: =TRUNC(일위대가목록!G28,0) -> 0 | J173: =TRUNC(I173*D173, 0) -> 0 | K173: =TRUNC(E173+G173+I173, 0) -> 0 | L173: 0 | N173: 5703A12276CF2A8017764497A1BAE6 | Q173: 010108 | R173: T | S173: F | T173: F | AU173: 0101085703A12276CF2A8017764497A1BAE6 | AV173: 54
A174: 벽돌 및 불럭벽 철거 | B174: 소형브레이커 | C174: M3 | D174: 1 | E174: =TRUNC(일위대가목록!E29,0) -> 0 | F174: 0 | G174: =TRUNC(일위대가목록!F29,0) -> 0 | H174: 0 | I174: =TRUNC(일위대가목록!G29,0) -> 0 | J174: 0 | K174: 0 | L174: 0 | N174: 5703A12276CC562015614BAEA16A6C | Q174: 010108 | R174: T | S174: F | T174: F | AU174: 0101085703A12276CC562015614BAEA16A6C | AV174: 55
A175: 목조, 칸막이벽 철거 | B175: 해체재 재사용 안 함 | C175: M2 | D175: 96 | E175: =TRUNC(일위대가목록!E30,0) -> 0 | F175: 0 | G175: =TRUNC(일위대가목록!F30,0) -> 0 | H175: 0 | I175: =TRUNC(일위대가목록!G30,0) -> 0 | J175: 0 | K175: 0 | L175: 0 | N175: 5703A12276CF2A8014A38C81D175F0 | Q175: 010108 | R175: T | S175: F | T175: F | AU175: 0101085703A12276CF2A8014A38C81D175F0 | AV175: 66
A176: 경량철골천정틀철거 | C176: M2 | D176: 92 | E176: =TRUNC(일위대가목록!E31,0) -> 0 | F176: 0 | G176: =TRUNC(일위대가목록!F31,0) -> 0 | H176: 0 | I176: =TRUNC(일위대가목록!G31,0) -> 0 | J176: 0 | K176: 0 | L176: 0 | N176: 5703A12276C6CBC01B8F5377A65C12 | Q176: 010108 | R176: T | S176: F | T176: F | AU176: 0101085703A12276C6CBC01B8F5377A65C12 | AV176: 58
A177: 창호철거 | C177: M2 | D177: 11 | E177: =TRUNC(일위대가목록!E32,0) -> 0 | F177: 0 | G177: =TRUNC(일위대가목록!F32,0) -> 0 | H177: 0 | I177: =TRUNC(일위대가목록!G32,0) -> 0 | J177: 0 | K177: 0 | L177: 0 | N177: 5703A12276C6CBC01B8F5377AA388B | Q177: 010108 | R177: T | S177: F | T177: F | AU177: 0101085703A12276C6CBC01B8F5377AA388B | AV177: 59
A178: 화강석판석철거 | C178: M2 | D178: 29 | E178: =TRUNC(일위대가목록!E33,0) -> 0 | F178: 0 | G178: =TRUNC(일위대가목록!F33,0) -> 0 | H178: 0 | I178: =TRUNC(일위대가목록!G33,0) -> 0 | J178: 0 | K178: 0 | L178: 0 | N178: 5703A12276C6CBC01B8F53769560F7 | Q178: 010108 | R178: T | S178: F | T178: F | AU178: 0101085703A12276C6CBC01B8F53769560F7 | AV178: 60
A179: 악세스후로아철거 | B179: 카펫타일포함 | C179: M2 | D179: 23 | E179: =TRUNC(일위대가목록!E34,0) -> 0 | F179: 0 | G179: =TRUNC(일위대가목록!F34,0) -> 0 | H179: 0 | I179: =TRUNC(일위대가목록!G34,0) -> 0 | J179: 0 | K179: 0 | L179: 0 | N179: 5703A12276C6CBC01B8F53769560F6 | Q179: 010108 | R179: T | S179: F | T179: F | AU179: 0101085703A12276C6CBC01B8F53769560F6 | AV179: 93
A195: [ 합 계 ] | F195: =SUM(F173:F194) -> 0 | H195: =SUM(H173:H194) -> 0 | J195: =SUM(J173:J194) -> 0 | L195: =SUM(L173:L194) -> 0 | N195: TOTAL
A196: 010109 골 재 대 | Q196: 010109
A197: 시멘트 | B197: 40KG | C197: 포 | D197: 20 | E197: =TRUNC(단가대비표!O25,0) -> 4,181 | F197: =TRUNC(E197*D197, 0) -> 83,620 | G197: =TRUNC(단가대비표!P25,0) -> 0 | H197: =TRUNC(G197*D197, 0) -> 0 | I197: =TRUNC(단가대비표!V25,0) -> 0 | J197: =TRUNC(I197*D197, 0) -> 0 | K197: =TRUNC(E197+G197+I197, 0) -> 4,181 | L197: =TRUNC(F197+H197+J197, 0) -> 83,620 | N197: 502751237387567010A622ED4498E65815FD10 | Q197: 010109 | R197: F | S197: F | T197: T | AU197: 010109502751237387567010A622ED4498E65815FD10 | AV197: 71
A198: 모래 | B198: 도착도 | C198: M3 | D198: 2 | E198: =TRUNC(단가대비표!O9,0) -> 25,000 | F198: =TRUNC(E198*D198, 0) -> 50,000 | G198: =TRUNC(단가대비표!P9,0) -> 0 | H198: =TRUNC(G198*D198, 0) -> 0 | I198: =TRUNC(단가대비표!V9,0) -> 0 | J198: =TRUNC(I198*D198, 0) -> 0 | K198: =TRUNC(E198+G198+I198, 0) -> 25,000 | L198: =TRUNC(F198+H198+J198, 0) -> 50,000 | N198: 500461217162D6301DA7B7B5F8B9FAE8279C25 | Q198: 010109 | R198: F | S198: F | T198: T | AU198: 010109500461217162D6301DA7B7B5F8B9FAE8279C25 | AV198: 72
A219: [ 합 계 ] | F219: =SUM(F197:F218) -> 133,620 | H219: =SUM(H197:H218) -> 0 | J219: =SUM(J197:J218) -> 0 | L219: =SUM(L197:L218) -> 133,620 | N219: TOTAL
A220: 010110 건설폐기물처리비 | Q220: 010110
A221: 건설폐기물처리비-중간 | B221: 혼합건설폐기물 | C221: TON | D221: 12 | E221: =TRUNC(단가대비표!O64,0) -> 0 | F221: =TRUNC(E221*D221, 0) -> 0 | G221: =TRUNC(단가대비표!P64,0) -> 0 | H221: =TRUNC(G221*D221, 0) -> 0 | I221: =TRUNC(단가대비표!V64,0) -> 94,250 | J221: =TRUNC(I221*D221, 0) -> 1,131,000 | K221: =TRUNC(E221+G221+I221, 0) -> 94,250 | L221: 1,131,000 | N221: 5702A12B7F8F56C0162190A0EF7042 | Q221: 010110 | R221: F | S221: F | T221: T | AU221: 0101105702A12B7F8F56C0162190A0EF7042 | AV221: 62
A222: 건설폐기물상차비 - 불연성 | B222: 15톤덤프트럭(10m3) | C222: TON | D222: 12 | E222: =TRUNC(단가대비표!O65,0) -> 0 | F222: =TRUNC(E222*D222, 0) -> 0 | G222: =TRUNC(단가대비표!P65,0) -> 0 | H222: =TRUNC(G222*D222, 0) -> 0 | I222: =TRUNC(단가대비표!V65,0) -> 1,820 | J222: =TRUNC(I222*D222, 0) -> 21,840 | K222: 1,820 | L222: 21,840 | N222: 5702A12B7F8F56C017C732CDB089DF | Q222: 010110 | R222: F | S222: F | T222: T | AU222: 0101105702A12B7F8F56C017C732CDB089DF | AV222: 67
A223: 건설폐기물운반비 - 불연성 | B223: 15톤덤프트럭 - 30km | C223: TON | D223: 12 | E223: =TRUNC(단가대비표!O66,0) -> 0 | F223: =TRUNC(E223*D223, 0) -> 0 | G223: =TRUNC(단가대비표!P66,0) -> 0 | H223: =TRUNC(G223*D223, 0) -> 0 | I223: =TRUNC(단가대비표!V66,0) -> 11,840 | J223: =TRUNC(I223*D223, 0) -> 142,080 | K223: 11,840 | L223: 142,080 | N223: 5702A12B7F8F56C017C732CF63E67A | Q223: 010110 | R223: F | S223: F | T223: T | AU223: 0101105702A12B7F8F56C017C732CF63E67A | AV223: 68
A243: [ 합 계 ] | F243: =SUM(F221:F242) -> 0 | H243: =SUM(H221:H242) -> 0 | J243: =SUM(J221:J242) -> 1,294,920 | L243: =SUM(L221:L242) -> 1,294,920 | N243: TOTAL
A244: 010201 기계설비공사 | Q244: 010201
A245: 기계설비공사 | C245: 식 | D245: 1 | E245: =TRUNC(단가대비표!O87,0) -> 140,702 | F245: =TRUNC(E245*D245, 0) -> 140,702 | G245: =TRUNC(단가대비표!P87,0) -> 1,045,089 | H245: =TRUNC(G245*D245, 0) -> 1,045,089 | I245: =TRUNC(단가대비표!V87,0) -> 0 | J245: =TRUNC(I245*D245, 0) -> 0 | K245: =TRUNC(E245+G245+I245, 0) -> 1,185,791 | L245: =TRUNC(F245+H245+J245, 0) -> 1,185,791 | M245: 기계내역참조 | N245: 56BA812F7146E22011C03552E73DA106015482 | Q245: 010201 | R245: F | S245: F | T245: T | AU245: 01020156BA812F7146E22011C03552E73DA106015482 | AV245: 88
A267: [ 합 계 ] | F267: =SUM(F245:F266) -> 140,702 | H267: =SUM(H245:H266) -> 1,045,089 | J267: =SUM(J245:J266) -> 0 | L267: =SUM(L245:L266) -> 1,185,791 | N267: TOTAL

Sheet 공종별집계표(기계)
A1: 공 종 별 집 계 표
A2: [ 본원식당 시설개선 공사-기계 ]
A3: 품 명 | B3: 규 격 | C3: 단위 | D3: 수량 | E3: 재 료 비 | G3: 노 무 비 | I3: 경 비 | K3: 합 계 | M3: 비 고 | N3: 공종코드 | O3: 변수 | P3: 상위공종 | Q3: 공종구분 | R3: 공종레벨 | S3: 공종소계 | T3: 원가계산서 연결금액
E4: 단 가 | F4: 금 액 | G4: 단 가 | H4: 금 액 | I4: 단 가 | J4: 금 액 | K4: 단 가 | L4: 금 액
A5: 01 국방기술품질원식당리모델링-기계공사 | D5: 1 | E5: =F6 -> 0 | F5: =E5*D5 -> 0 | G5: =H6 -> 0 | H5: =G5*D5 -> 0 | I5: =J6 -> 0 | J5: =I5*D5 -> 0 | K5: =E5+G5+I5 -> 0 | L5: 0 | N5: 01 | R5: 1
A6: 0101 기계설비공사 | D6: 1 | E6: =F7 -> 0 | F6: =E6*D6 -> 0 | G6: =H7 -> 0 | H6: =G6*D6 -> 0 | I6: =J7 -> 0 | J6: =I6*D6 -> 0 | K6: 0 | L6: 0 | N6: 0101 | P6: 01 | R6: 2
A7: 010101 환기덕트공사 | D7: 1 | E7: ='공종별내역서(기계)'!F27 -> 0 | F7: =E7*D7 -> 0 | G7: ='공종별내역서(기계)'!H27 -> 0 | H7: =G7*D7 -> 0 | I7: ='공종별내역서(기계)'!J27 -> 0 | J7: =I7*D7 -> 0 | K7: 0 | L7: 0 | N7: 010101 | P7: 0101 | R7: 3
E9: ='공종별내역서(기계)'!F51 -> 0 | F9: =E9*D9 -> 0 | G9: ='공종별내역서(기계)'!H51 -> 0 | H9: =G9*D9 -> 0 | I9: ='공종별내역서(기계)'!J51 -> 0 | J9: =I9*D9 -> 0 | K9: 0 | L9: 0 | N9: 010201 | P9: 0102 | R9: 3
A27: [ 합 계 ] | F27: =F5 -> 0 | H27: =H5 -> 0 | J27: =J5 -> 0 | L27: =L5 -> 0

Sheet 공종별내역서(기계)
A1: [ 본원식당 시설개선 공사-기계 ]
A2: 품 명 | B2: 규 격 | C2: 단위 | D2: 수량 | E2: 재 료 비 | G2: 노 무 비 | I2: 경 비 | K2: 합 계 | M2: 비 고 | N2: 품목코드 | O2: 변수 | P2: 설정 | Q2: 공종코드 | R2: 일위 | S2: 단산 | T2: 자 재 | U2: 손료적용 | V2: 손료저장 | W2: 적용율 | X2: JUK1 | Y2: JUK2 | Z2: JUK3 | AA2: JUK4 | AB2: JUK5 | AC2: JUK6 | AD2: JUK7 | AE2: JUK8 | AF2: JUK9 | AG2: JUK10 | AH2: JUK11 | AI2: JUK12 | AJ2: JUK13 | AK2: JUK14 | AL2: JUK15 | AM2: JUK16 | AN2: JUK17 | AO2: JUK18 | AP2: JUK19 | AQ2: JUK20 | AR2: 자재구분 | AS2: 공종구분 | AT2: 공종레벨 | AU2: 공종+자재 | AV2: 고유번호
E3: 단 가 | F3: 금 액 | G3: 단 가 | H3: 금 액 | I3: 단 가 | J3: 금 액 | K3: 단 가 | L3: 금 액
A4: 010101 환기덕트공사 | Q4: 010101
A5: 공조덕트 | B5: 공조덕트, 플렉시블, 알루미늄, Φ150mm | C5: m | E5: =TRUNC('단가대비표(기계)'!O7,0) -> 4,800 | F5: =TRUNC(E5*D5, 0) -> 0 | G5: =TRUNC('단가대비표(기계)'!P7,0) -> 0 | H5: =TRUNC(G5*D5, 0) -> 0 | I5: =TRUNC('단가대비표(기계)'!V7,0) -> 0 | J5: =TRUNC(I5*D5, 0) -> 0 | K5: =TRUNC(E5+G5+I5, 0) -> 4,800 | L5: 0 | N5: 50C7A14B0259DEC5CB7A601C3E3FBAAD6BDD39 | Q5: 010101 | R5: F | S5: F | T5: T | AU5: 01010150C7A14B0259DEC5CB7A601C3E3FBAAD6BDD39 | AV5: 4
A6: 디퓨저 | B6: 디퓨저, 원형, Φ150mm, 알루미늄 | C6: 개 | E6: =TRUNC('단가대비표(기계)'!O6,0) -> 17,550 | F6: =TRUNC(E6*D6, 0) -> 0 | G6: =TRUNC('단가대비표(기계)'!P6,0) -> 0 | H6: =TRUNC(G6*D6, 0) -> 0 | I6: =TRUNC('단가대비표(기계)'!V6,0) -> 0 | J6: =TRUNC(I6*D6, 0) -> 0 | K6: 17,550 | L6: 0 | N6: 50C7A14B025DBB4560FE6E05DFB38075D90993 | Q6: 010101 | R6: F | S6: F | T6: T | AU6: 01010150C7A14B025DBB4560FE6E05DFB38075D90993 | AV6: 29
A7: AL 밴드 | B7: 0.3*30W | C7: M | E7: =TRUNC('단가대비표(기계)'!O5,0) -> 300 | F7: =TRUNC(E7*D7, 0) -> 0 | G7: =TRUNC('단가대비표(기계)'!P5,0) -> 0 | H7: =TRUNC(G7*D7, 0) -> 0 | I7: =TRUNC('단가대비표(기계)'!V5,0) -> 0 | J7: =TRUNC(I7*D7, 0) -> 0 | K7: 300 | L7: 0 | N7: 50B521480459D1250DF563874DA0BC7C62D78F | Q7: 010101 | R7: F | S7: F | T7: T | AU7: 01010150B521480459D1250DF563874DA0BC7C62D78F | AV7: 5
A8: 덕트공 | B8: 일반공사 직종 | C8: 인 | E8: =TRUNC('단가대비표(기계)'!O8,0) -> 0 | F8: =TRUNC(E8*D8, 0) -> 0 | G8: =TRUNC('단가대비표(기계)'!P8,0) -> 116,121 | H8: =TRUNC(G8*D8, 0) -> 0 | I8: =TRUNC('단가대비표(기계)'!V8,0) -> 0 | J8: =TRUNC(I8*D8, 0) -> 0 | K8: 116,121 | L8: 0 | N8: 574381438B594EB5183A6594207984BFFC4720 | Q8: 010101 | R8: F | S8: F | T8: T | X8: 1 | AU8: 010101574381438B594EB5183A6594207984BFFC4720 | AV8: 6
A9: 공구손료 | B9: 인력품의 3% | C9: 식 | E9: =ROUNDDOWN(SUMIF(X5:X9, RIGHTB(N9, 1), H5:H9)*W9, 0) -> 0 | F9: =TRUNC(E9*D9, 0) -> 0 | G9: 0 | H9: =TRUNC(G9*D9, 0) -> 0 | I9: 0 | J9: =TRUNC(I9*D9, 0) -> 0 | K9: 0 | L9: 0 | N9: 568671414A586DB5421960314E56001 | Q9: 010101 | R9: F | S9: F | T9: F | U9: 1 | V9: 0 | W9: 0.03 | AU9: 010101568671414A586DB5421960314E56001 | AV9: 7
A27: [ 합 계 ] | F27: =SUM(F5:F26) -> 0 | H27: =SUM(H5:H26) -> 0 | J27: =SUM(J5:J26) -> 0 | L27: =SUM(L5:L26) -> 0 | N27: TOTAL
A51: [ 합 계 ] | F51: =SUM(F29:F50) -> 0 | H51: =SUM(H29:H50) -> 0 | J51: =SUM(J29:J50) -> 0 | L51: =SUM(L29:L50) -> 0 | N51: TOTAL

Sheet 일위대가목록
A1: 일 위 대 가 목 록
A2: [ 본원식당 시설개선 공사 ]
A3: 코 드 | B3: 품 명 | C3: 규 격 | D3: 단위 | E3: 재 료 비 | F3: 노 무 비 | G3: 경 비 | H3: 합 계 | I3: 번 호 | J3: 비 고 | K3: 노임계수 | L3: 할증 | M3: 품셈개요 | N3: 장비일위
A4: 5702212874485C701A4BC0FB2E855E | B4: 목재후로링 깔기 | C4: 헤링본형태 | D4: M2 | E4: =일위대가!F6 -> 0.0 | F4: =일위대가!H6 -> 0.0 | G4: =일위대가!J6 -> 0.0 | H4: =E4+F4+G4 -> 0.0 | I4: 호표 1
A5: 570221287703B7C010D3F3B6B35208 | B5: 벽체틀(각관) | C5: 30*30, @450*600 | D5: M2 | E5: =일위대가!F11 -> 0.0 | F5: =일위대가!H11 -> 0.0 | G5: =일위대가!J11 -> 0.0 | H5: 0.0 | I5: 호표 2
A6: 5702412D70B66DC01C52BFEFE524B9 | B6: 벽, 합판붙임 | C6: 벽, 8.5T(준내수합판) | D6: M2 | E6: =일위대가!F18 -> 0.0 | F6: =일위대가!H18 -> 0.0 | G6: =일위대가!J18 -> 0.0 | H6: 0.0 | I6: 호표 3
A7: 5702112977EBF6401D6FD866B1DB58 | B7: 경량철골천정틀 | C7: M-BAR, H:1m미만. 인써트 유 | D7: M2 | E7: =일위대가!F33 -> 0.0 | F7: =일위대가!H33 -> 0.0 | G7: =일위대가!J33 -> 0.0 | H7: 0.0 | I7: 호표 4 | M7: 건축 14-5
A8: 5702112977EC9C1010376EE9E65E0E | B8: 천장 점검구 설치 | C8: AL 백색, 650*650mm | D8: 개소 | E8: =일위대가!F41 -> 0.0 | F8: =일위대가!H41 -> 0.0 | G8: =일위대가!J41 -> 0.0 | H8: 0.0 | I8: 호표 5 | M8: 건축 14-9
A9: 57021129730BE6F01FEF6B66104C0E | B9: 스텐걸레받이 | C9: S'ST1.5t, H:80 | D9: M | E9: =일위대가!F46 -> 0.0 | F9: =일위대가!H46 -> 0.0 | G9: =일위대가!J46 -> 0.0 | H9: 0.0 | I9: 호표 6
A10: 57021129730BE6F01FEF6B66104C0D | B10: 알루미늄루버설치/천정 | C10: 45*120,인테리어필름 | D10: M | E10: =일위대가!F55 -> 0.0 | F10: =일위대가!H55 -> 0.0 | G10: =일위대가!J55 -> 0.0 | H10: 0.0 | I10: 호표 7
A11: 57021129730BE6F01FEF6B66104C0C | B11: 우물천정설치/갈바절곡 | C11: 갈바1.2mm, 350*150, 분체도장 | D11: M | E11: =일위대가!F61 -> 0.0 | F11: =일위대가!H61 -> 0.0 | G11: =일위대가!J61 -> 0.0 | H11: 0.0 | I11: 호표 8
A12: 5702412D742C300019236B83C93DDF | B12: 스테인리스재료분리대 | C12: 바닥, W45*H20*1.5t | D12: M | E12: =일위대가!F71 -> 0.0 | F12: =일위대가!H71 -> 0.0 | G12: =일위대가!J71 -> 0.0 | H12: 0.0 | I12: 호표 9
A13: 570271207ED9BE901F7CB41125A738 | B13: 벽장식구조물/칼라도장 | C13: (ㅁ-40*40+30*20), 4480*1180 | D13: EA | E13: =일위대가!F80 -> 0.0 | F13: =일위대가!H80 -> 0.0 | G13: =일위대가!J80 -> 0.0 | H13: 0.0 | I13: 호표 10
A14: 570271207687A1201B01D15F1996E4 | B14: AW01[갈바절곡창호,분체도장] | C14: 8.150 x 3.000 | D14: EA | E14: =일위대가!F84 -> 0.0 | F14: =일위대가!H84 -> 0.0 | G14: =일위대가!J84 -> 0.0 | H14: 0.0 | I14: 호표 11
A15: 570271207687A1201B01D15F1996E6 | B15: AW02[갈바절곡창호,분체도장] | C15: 1.000 x 2.100 | D15: EA | E15: =일위대가!F88 -> 0.0 | F15: =일위대가!H88 -> 0.0 | G15: =일위대가!J88 -> 0.0 | H15: 0.0 | I15: 호표 12
A16: 57027120710754601E2C6A82A6094C | B16: 플로어힌지설치 | C16: 재료비 별도 | D16: 개소 | E16: =일위대가!F94 -> 0.0 | F16: =일위대가!H94 -> 0.0 | G16: =일위대가!J94 -> 0.0 | H16: 0.0 | I16: 호표 13 | M16: 건축 16-2
A17: 570271207101CDE01E61F47CDE96AF | B17: 창문틀 주위 충전 | C17: 발포우레탄 | D17: M | E17: =일위대가!F99 -> 0.0 | F17: =일위대가!H99 -> 0.0 | G17: =일위대가!J99 -> 0.0 | H17: 0.0 | I17: 호표 14 | M17: 건축 16-3-2
A18: 5702312E7A1C7B70109B246605A7AB | B18: 수밀코킹(실리콘) | C18: 삼각, 10mm, 창호주위 | D18: M | E18: =일위대가!F104 -> 0.0 | F18: =일위대가!H104 -> 0.0 | G18: =일위대가!J104 -> 0.0 | H18: 0.0 | I18: 호표 15 | M18: 건축 12-12-1
A19: 5702312E7A1D01301FE0F9C5BEED3E | B19: 유리주위코킹 | C19: 5*5, 실리콘 | D19: M | E19: =일위대가!F108 -> 0.0 | F19: =일위대가!H108 -> 0.0 | G19: =일위대가!J108 -> 0.0 | H19: 0.0 | I19: 호표 16 | M19: 건축 12-12-1
A20: 57027120707FFCC013A61618E3113C | B20: 유리끼우기 - 판유리 | C20: 10mm 이상 | D20: M2 | E20: =일위대가!F112 -> 0.0 | F20: =일위대가!H112 -> 0.0 | G20: =일위대가!J112 -> 0.0 | H20: 0.0 | I20: 호표 17 | M20: 건축 16-5-1
A21: 570271207ED9BE901F7CB41125A739 | B21: 브론즈경설치 | C21: W150*5mm, 틀 포함 | D21: M | E21: =일위대가!F116 -> 0.0 | F21: =일위대가!H116 -> 0.0 | G21: =일위대가!J116 -> 0.0 | H21: 0.0 | I21: 호표 18
A22: 570251227A94AB301E23E0DBB6C996 | B22: 바탕만들기 - 친환경 | C22: 석고보드면(줄퍼티) | D22: M2 | E22: =일위대가!F126 -> 0.0 | F22: =일위대가!H126 -> 0.0 | G22: =일위대가!J126 -> 0.0 | H22: 0.0 | I22: 호표 19 | M22: 건축 17-1-1.2
A23: 570251227A94AB301E23E0DBB526C8 | B23: 바탕만들기 - 친환경 | C23: 석고보드면(줄퍼티), 천장 | D23: M2 | E23: =일위대가!F137 -> 0.0 | F23: =일위대가!H137 -> 0.0 | G23: =일위대가!J137 -> 0.0 | H23: 0.0 | I23: 호표 20 | M23: 건축 17-1-1.2
A24: 570261227200141014F2292A11BF52 | B24: 인조대리석마감 | C24: 20T | D24: M2 | E24: =일위대가!F143 -> 0.0 | F24: =일위대가!H143 -> 0.0 | G24: =일위대가!J143 -> 0.0 | H24: 0.0 | I24: 호표 21 | M24: 건축 9-1-1
A25: 5702412D70B0C2301A7422D4027BDF | B25: 석고판 붙임(바탕+치장) | C25: 벽, 일반9.5mm 2겹 | D25: M2 | E25: =일위대가!F148 -> 0.0 | F25: =일위대가!H148 -> 0.0 | G25: =일위대가!J148 -> 0.0 | H25: 0.0 | I25: 호표 22
A26: 5702412D70B0C230196ED746EBDC30 | B26: 석고판 붙임(바탕+치장) | C26: 천장, 일반9.5mm 2겹 | D26: M2 | E26: =일위대가!F153 -> 0.0 | F26: =일위대가!H153 -> 0.0 | G26: =일위대가!J153 -> 0.0 | H26: 0.0 | I26: 호표 23
A27: 5702C12878813730115E9C42A7D401 | B27: 모르타르 바름 | C27: 바닥, 30mm | D27: M2 | E27: =일위대가!F158 -> 0.0 | F27: =일위대가!H158 -> 0.0 | G27: =일위대가!J158 -> 0.0 | H27: 0.0 | I27: 호표 24 | M27: 건축 10-1 준용
A28: 5703A12276CF2A8017764497A1BAE6 | B28: 석고보드 철거(천장) | C28: 9.5mm*2겹 | D28: M2 | E28: =일위대가!F163 -> 0.0 | F28: =일위대가!H163 -> 0.0 | G28: =일위대가!J163 -> 0.0 | H28: 0.0 | I28: 호표 25
A29: 5703A12276CC562015614BAEA16A6C | B29: 벽돌 및 불럭벽 철거 | C29: 소형브레이커 | D29: M3 | E29: =일위대가!F171 -> 0.0 | F29: =일위대가!H171 -> 0.0 | G29: =일위대가!J171 -> 0.0 | H29: 0.0 | I29: 호표 26 | M29: 건축 18-1-3,2
A30: 5703A12276CF2A8014A38C81D175F0 | B30: 목조, 칸막이벽 철거 | C30: 해체재 재사용 안 함 | D30: M2 | E30: =일위대가!F176 -> 0.0 | F30: =일위대가!H176 -> 0.0 | G30: =일위대가!J176 -> 0.0 | H30: 0.0 | I30: 호표 27 | M30: 건축 18-1-2
A31: 5703A12276C6CBC01B8F5377A65C12 | B31: 경량철골천정틀철거 | D31: M2 | E31: =일위대가!F181 -> 0.0 | F31: =일위대가!H181 -> 0.0 | G31: =일위대가!J181 -> 0.0 | H31: 0.0 | I31: 호표 28
A32: 5703A12276C6CBC01B8F5377AA388B | B32: 창호철거 | D32: M2 | E32: =일위대가!F185 -> 0.0 | F32: =일위대가!H185 -> 0.0 | G32: =일위대가!J185 -> 0.0 | H32: 0.0 | I32: 호표 29
A33: 5703A12276C6CBC01B8F53769560F7 | B33: 화강석판석철거 | D33: M2 | E33: =일위대가!F189 -> 0.0 | F33: =일위대가!H189 -> 0.0 | G33: =일위대가!J189 -> 0.0 | H33: 0.0 | I33: 호표 30
A34: 5703A12276C6CBC01B8F53769560F6 | B34: 악세스후로아철거 | C34: 카펫타일포함 | D34: M2 | E34: =일위대가!F193 -> 0.0 | F34: =일위대가!H193 -> 0.0 | G34: =일위대가!J193 -> 0.0 | H34: 0.0 | I34: 호표 31
A35: 5702212874485A401CB1D431F5F8DE | B35: 플로어링 마루 | C35: 플로어링보드, 15mm, 삼겹적층플로어링, 도장제품(UV) | D35: M2 | E35: =일위대가!F198 -> 0.0 | F35: =일위대가!H198 -> 0.0 | G35: =일위대가!J198 -> 0.0 | H35: 0.0 | I35: 호표 32 | M35: 건축 11-2-3
A36: 5702212874485A401CB1D435502F46 | B36: 플로어링 마루 - 노무비 및 공구손료 | D36: M2 | E36: =일위대가!F204 -> 0.0 | F36: =일위대가!H204 -> 0.0 | G36: =일위대가!J204 -> 0.0 | H36: =E36+F36+G36 -> 0.0 | I36: 호표 33 | M36: 건축 11-2-3
A37: 570221287703B51012B77AF35FC7C8 | B37: 벽체틀 | C37: 자재 별도 | D37: M2 | E37: =일위대가!F210 -> 0.0 | F37: =일위대가!H210 -> 0.0 | G37: =일위대가!J210 -> 0.0 | H37: 0.0 | I37: 호표 34 | M37: 건축 11-1-3.1
A38: 5702112977EBF6401D6FD866B1D9AB | B38: 경량 천장 철골틀 - 노무비 | D38: M2 | E38: =일위대가!F216 -> 0.0 | F38: =일위대가!H216 -> 0.0 | G38: =일위대가!J216 -> 0.0 | H38: 0.0 | I38: 호표 35 | M38: 건축 14-4
A39: 57021129730EB9B017E1AB0526A6B4 | B39: 잡철물제작설치(스테인리스) | C39: 간단 | D39: kg | E39: =일위대가!F221 -> 0.0 | F39: =일위대가!H221 -> 0.0 | G39: =일위대가!J221 -> 0.0 | H39: 0.0 | I39: 호표 36 | M39: 건축 14-5
A40: 57021129730EB9B017E24D0DD5AD47 | B40: 잡철물제작(스테인리스) | C40: 간단 | D40: kg | E40: =일위대가!F234 -> 0.0 | F40: =일위대가!H234 -> 0.0 | G40: =일위대가!J234 -> 0.0 | H40: 0.0 | I40: 호표 37 | M40: 건축 14-5
A41: 57021129730EB9B017E24D0CCEBBF0 | B41: 잡철물설치(스테인리스) | C41: 간단 | D41: kg | E41: =일위대가!F247 -> 0.0 | F41: =일위대가!H247 -> 0.0 | G41: =일위대가!J247 -> 0.0 | H41: 0.0 | I41: 호표 38 | M41: 건축 14-5
A42: 5016E12C7048EBF01E3DC3FA33389B3E21C50C39 | B42: 용접기(교류) | C42: 500Amp | D42: HR | E42: =일위대가!F251 -> 0.0 | F42: =일위대가!H251 -> 0.0 | G42: =일위대가!J251 -> 0.0 | H42: 0.0 | I42: 호표 39 | K42: A | M42: 토목 9-44-43 | N42: T
A43: 57021129730EB9B017E1A9574A7E93 | B43: 잡철물제작설치(철재) | C43: 간단 | D43: kg | E43: =일위대가!F256 -> 0.0 | F43: =일위대가!H256 -> 0.0 | G43: =일위대가!J256 -> 0.0 | H43: 0.0 | I43: 호표 40 | M43: 건축 14-5
A44: 570251237BC6A6E010008965989253 | B44: 유성페인트(롤러칠) | C44: 철재면, 2회. 1급 | D44: M2 | E44: =일위대가!F261 -> 0.0 | F44: =일위대가!H261 -> 0.0 | G44: =일위대가!J261 -> 0.0 | H44: 0.0 | I44: 호표 41 | M44: 건축 17-3-2
A45: 57021129730EB9B017E24F3BD02679 | B45: 잡철물제작(철재) | C45: 간단 | D45: kg | E45: =일위대가!F274 -> 0.0 | F45: =일위대가!H274 -> 0.0 | G45: =일위대가!J274 -> 0.0 | H45: 0.0 | I45: 호표 42 | M45: 건축 14-5
A46: 57021129730EB9B017E24F3ACADBEB | B46: 잡철물설치(철재) | C46: 간단 | D46: kg | E46: =일위대가!F287 -> 0.0 | F46: =일위대가!H287 -> 0.0 | G46: =일위대가!J287 -> 0.0 | H46: 0.0 | I46: 호표 43 | M46: 건축 14-5
A47: 570251237BC6A6E010008DC08A08C3 | B47: 유성페인트(롤러칠) - 재료비 | C47: 철재면, 2회 칠, 1급 | D47: M2 | E47: =일위대가!F293 -> 0.0 | F47: =일위대가!H293 -> 0.0 | G47: =일위대가!J293 -> 0.0 | H47: 0.0 | I47: 호표 44 | M47: 건축 17-3-2
A48: 570251237BC6A6E010008DC0885940 | B48: 유성페인트(롤러칠) - 노무비 | C48: 철재면, 2회 칠 | D48: M2 | E48: =일위대가!F300 -> 0.0 | F48: =일위대가!H300 -> 0.0 | G48: =일위대가!J300 -> 0.0 | H48: 0.0 | I48: 호표 45 | M48: 건축 17-3-2
A49: 57021129730EB9B01537E9D5610EB8 | B49: 잡철물제작설치(스테인리스)-강판 가공시 | C49: 간단 | D49: kg | E49: =일위대가!F305 -> 0.0 | F49: =일위대가!H305 -> 0.0 | G49: =일위대가!J305 -> 0.0 | H49: 0.0 | I49: 호표 46 | M49: 건축 14-5
A50: 57021129730EB9B016DE1004AA3B54 | B50: 잡철물제작설치(철재) -강판 가공시 | C50: 간단 | D50: kg | E50: =일위대가!F310 -> 0.0 | F50: =일위대가!H310 -> 0.0 | G50: =일위대가!J310 -> 0.0 | H50: 0.0 | I50: 호표 47 | M50: 건축 14-5
A51: 57021129730EB9B0153414911465F3 | B51: 잡철물제작(스테인리스) -강판 가공시 | C51: 간단 | D51: kg | E51: =일위대가!F323 -> 0.0 | F51: =일위대가!H323 -> 0.0 | G51: =일위대가!J323 -> 0.0 | H51: 0.0 | I51: 호표 48 | M51: 건축 14-5
A52: 57021129730EB9B0153414900D733B | B52: 잡철물설치(스테인리스) -강판 가공시 | C52: 간단 | D52: kg | E52: =일위대가!F336 -> 0.0 | F52: =일위대가!H336 -> 0.0 | G52: =일위대가!J336 -> 0.0 | H52: 0.0 | I52: 호표 49 | M52: 건축 14-5
A53: 57021129730EB9B016DD0BDF1E556C | B53: 잡철물제작(철재) -강판 가공시 | C53: 간단 | D53: kg | E53: =일위대가!F349 -> 0.0 | F53: =일위대가!H349 -> 0.0 | G53: =일위대가!J349 -> 0.0 | H53: 0.0 | I53: 호표 50 | M53: 건축 14-5
A54: 57021129730EB9B016DD0BDE77EB1B | B54: 잡철물설치(철재) -강판 가공시 | C54: 간단 | D54: kg | E54: =일위대가!F362 -> 0.0 | F54: =일위대가!H362 -> 0.0 | G54: =일위대가!J362 -> 0.0 | H54: 0.0 | I54: 호표 51 | M54: 건축 14-5
A55: 5702512378734F701A4BD054533C6F | B55: 녹막이페인트(붓칠) | C55: 철재면, 1회, 1종 | D55: M2 | E55: =일위대가!F367 -> 0.0 | F55: =일위대가!H367 -> 0.0 | G55: =일위대가!J367 -> 0.0 | H55: 0.0 | I55: 호표 52 | M55: 건축 17-4
A56: 570251237BC6A6E010050C420835F9 | B56: 유성페인트(붓칠) | C56: 철재면, 2회. 1급 | D56: M2 | E56: =일위대가!F372 -> 0.0 | F56: =일위대가!H372 -> 0.0 | G56: =일위대가!J372 -> 0.0 | H56: 0.0 | I56: 호표 53 | M56: 건축 17-3-1
A57: 5702512378734F701A4ACA090783D2 | B57: 녹막이페인트(붓칠) - 재료비 | C57: 철재면, 1회, 1종 | D57: M2 | E57: =일위대가!F378 -> 0.0 | F57: =일위대가!H378 -> 0.0 | G57: =일위대가!J378 -> 0.0 | H57: 0.0 | I57: 호표 54 | M57: 건축 17-4
A58: 5702512378734F701A4ACB1078D38B | B58: 녹막이페인트(붓칠) - 노무비 | C58: 철재면, 1회 칠 | D58: M2 | E58: =일위대가!F383 -> 0.0 | F58: =일위대가!H383 -> 0.0 | G58: =일위대가!J383 -> 0.0 | H58: 0.0 | I58: 호표 55 | M58: 건축 17-4
A59: 570251237BC6A6E010050C46E19618 | B59: 유성페인트(붓칠) - 재료비 | C59: 철재면, 2회 칠, 1급 | D59: M2 | E59: =일위대가!F389 -> 0.0 | F59: =일위대가!H389 -> 0.0 | G59: =일위대가!J389 -> 0.0 | H59: 0.0 | I59: 호표 56 | M59: 건축 17-3-1
A60: 570251237BC6A6E010050C46E34748 | B60: 유성페인트(붓칠) - 노무비 | C60: 철재면, 2회 칠 | D60: M2 | E60: =일위대가!F396 -> 0.0 | F60: =일위대가!H396 -> 0.0 | G60: =일위대가!J396 -> 0.0 | H60: 0.0 | I60: 호표 57 | M60: 건축 17-3-1
A61: 570271207101CDE01E61F47CDFBC91 | B61: 창문틀 주위 충전 | C61: 발포우레탄 충전 | D61: 10M | E61: =일위대가!F401 -> 0.0 | F61: =일위대가!H401 -> 0.0 | G61: =일위대가!J401 -> 0.0 | H61: 0.0 | I61: 호표 58 | M61: 건축 16-3-2
A62: 5702312E7A1FCE601A6E955CC78BA2 | B62: 수밀코킹(시공비) | C62: 재료비 별도 | D62: M | E62: =일위대가!F405 -> 0.0 | F62: =일위대가!H405 -> 0.0 | G62: =일위대가!J405 -> 0.0 | H62: 0.0 | I62: 호표 59 | M62: 건축 12-12-1
A63: 570271207ED9BE901F7CB41125A73B | B63: 방습거울설치 - 합판 12mm+STS 1.5mm | C63: 5mm, 틀 포함 | D63: M2 | E63: =일위대가!F417 -> 0.0 | F63: =일위대가!H417 -> 0.0 | G63: =일위대가!J417 -> 0.0 | H63: 0.0 | I63: 호표 60
A64: 57026122720017E0182F5C8CF18D2F | B64: 대리석/테라조판붙임(습식) | C64: 벽, 자재별도(시공비) | D64: M2 | E64: =일위대가!F422 -> 0.0 | F64: =일위대가!H422 -> 0.0 | G64: =일위대가!J422 -> 0.0 | H64: 0.0 | I64: 호표 61 | M64: 건축 9-1-1
A65: 5702412D70B0C2301A7422D40303B7 | B65: 석고판 나사 고정(바탕용) 설치비 | C65: 벽, 2겹 붙임 | D65: M2 | E65: =일위대가!F428 -> 0.0 | F65: =일위대가!H428 -> 0.0 | G65: =일위대가!J428 -> 0.0 | H65: 0.0 | I65: 호표 62 | M65: 건축 11-3-1.2
A66: 5702412D70B0C230196ED746EBD97C | B66: 석고판 나사 고정(바탕용) 설치비 | C66: 천장, 2겹 붙임 | D66: M2 | E66: =일위대가!F435 -> 0.0 | F66: =일위대가!H435 -> 0.0 | G66: =일위대가!J435 -> 0.0 | H66: 0.0 | I66: 호표 63 | M66: 건축 11-3-1.2
A67: 5702C128788134701EBA3CF989DBF3 | B67: 모르타르(비빔품 제외) | C67: 배합비 1:3, 시멘트, 모래 별도 | D67: M3 | E67: =일위대가!F440 -> 0.0 | F67: =일위대가!H440 -> 0.0 | G67: =일위대가!J440 -> 0.0 | H67: 0.0 | I67: 호표 64 | M67: 건축 16-1.1
A68: 57026122717B70B011412C1A2B5AE4 | B68: 바탕고르기 | C68: 바닥, 24mm 이하 기준 | D68: M2 | E68: =일위대가!F445 -> 0.0 | F68: =일위대가!H445 -> 0.0 | G68: =일위대가!J445 -> 0.0 | H68: =E68+F68+G68 -> 0.0 | I68: 호표 65 | M68: 건축 10-1
A69: 5016E12C7048E9C018EAE1E70E00E023383D2FA8 | B69: 페이브먼트 브레이커 | C69: 25.0kg(55#) | D69: HR | E69: =일위대가!F449 -> 0.0 | F69: =일위대가!H449 -> 0.0 | G69: =일위대가!J449 -> 0.0 | H69: 0.0 | I69: 호표 66 | K69: A | M69: 토목 9-44-16 | N69: T
A70: 5016E12C7048E9C018EB8DD2B2438D9E9CAD705D | B70: 공기압축기(이동식) | C70: 3.5㎥/min | D70: HR | E70: =일위대가!F456 -> 0.0 | F70: =일위대가!H456 -> 0.0 | G70: =일위대가!J456 -> 0.0 | H70: 0.0 | I70: 호표 67 | K70: A | M70: 토목 9-44-15 | N70: T

Sheet 일위대가
A1: [ 본원식당 시설개선 공사 ]
A2: 품 명 | B2: 규 격 | C2: 단위 | D2: 수량 | E2: 재 료 비 | G2: 노 무 비 | I2: 경 비 | K2: 합 계 | M2: 비 고 | N2: 일위대가 | O2: 품목코드 | P2: 일위 | Q2: 단산 | R2: 자재 | S2: 손료적용 | T2: 손료저장 | U2: 적용율 | V2: JUK1 | W2: JUK2 | X2: JUK3 | Y2: JUK4 | Z2: JUK5 | AA2: JUK6 | AB2: JUK7 | AC2: JUK8 | AD2: 할증적용 | AE2: 할증저장 | AF2: 할증율 | AG2: HAL1 | AH2: HAL2 | AI2: HAL3 | AJ2: 자재구분 | AK2: 일위대가+자재 | AL2: 장비일위 | AM2: 설정
E3: 단 가 | F3: 금 액 | G3: 단 가 | H3: 금 액 | I3: 단 가 | J3: 금 액 | K3: 단 가 | L3: 금 액
A4: 목재후로링 깔기 헤링본형태 M2 ( 호표 1 ) | N4: 5702212874485C701A4BC0FB2E855E
A5: 플로어링 마루 | B5: 플로어링보드, 15mm, 삼겹적층플로어링, 도장제품(UV) | C5: M2 | E5: =일위대가목록!E35 -> 0.00 | F5: =TRUNC(E5*D5,1) -> 0.0 | G5: =일위대가목록!F35 -> 0.00 | H5: =TRUNC(G5*D5,1) -> 0.0 | I5: =일위대가목록!G35 -> 0.00 | J5: =TRUNC(I5*D5,1) -> 0.0 | K5: =TRUNC(E5+G5+I5,1) -> 0.00 | L5: =TRUNC(F5+H5+J5,1) -> 0.0 | N5: 5702212874485C701A4BC0FB2E855E | O5: 5702212874485A401CB1D431F5F8DE | P5: T | Q5: F | R5: F | AK5: 5702212874485C701A4BC0FB2E855E5702212874485A401CB1D431F5F8DE
A6: [ 합 계 ] | F6: =TRUNC(SUMIF(N5:N5, N4, F5:F5),0) -> 0.0 | H6: =TRUNC(SUMIF(N5:N5, N4, H5:H5),0) -> 0.0 | J6: =TRUNC(SUMIF(N5:N5, N4, J5:J5),0) -> 0.0 | L6: =F6+H6+J6 -> 0.0 | N6: TOTAL | O6: TOTAL
A8: 벽체틀(각관) 30*30, @450*600 M2 ( 호표 2 ) | N8: 570221287703B7C010D3F3B6B35208
A9: 일반구조용각형강관 | B9: 일반구조용각형강관, 각형강관, 30*30*2.1mm | C9: M | E9: =단가대비표!O60 -> 1,850.00 | F9: =TRUNC(E9*D9,1) -> 0.0 | G9: =단가대비표!P60 -> 0.00 | H9: =TRUNC(G9*D9,1) -> 0.0 | I9: =단가대비표!V60 -> 0.00 | J9: =TRUNC(I9*D9,1) -> 0.0 | K9: =TRUNC(E9+G9+I9,1) -> 1,850.00 | L9: =TRUNC(F9+H9+J9,1) -> 0.0 | N9: 570221287703B7C010D3F3B6B35208 | O9: 505C912371FC3970186CA8D1C4C714BD20C242 | P9: F | Q9: F | R9: T | AK9: 570221287703B7C010D3F3B6B35208505C912371FC3970186CA8D1C4C714BD20C242
A10: 벽체틀 | B10: 자재 별도 | C10: M2 | E10: =일위대가목록!E37 -> 0.00 | F10: =TRUNC(E10*D10,1) -> 0.0 | G10: =일위대가목록!F37 -> 0.00 | H10: =TRUNC(G10*D10,1) -> 0.0 | I10: =일위대가목록!G37 -> 0.00 | J10: =TRUNC(I10*D10,1) -> 0.0 | K10: =TRUNC(E10+G10+I10,1) -> 0.00 | L10: =TRUNC(F10+H10+J10,1) -> 0.0 | N10: 570221287703B7C010D3F3B6B35208 | O10: 570221287703B51012B77AF35FC7C8 | P10: T | Q10: F | R10: F | AK10: 570221287703B7C010D3F3B6B35208570221287703B51012B77AF35FC7C8
A11: [ 합 계 ] | F11: =TRUNC(SUMIF(N9:N10, N8, F9:F10),0) -> 0.0 | H11: =TRUNC(SUMIF(N9:N10, N8, H9:H10),0) -> 0.0 | J11: =TRUNC(SUMIF(N9:N10, N8, J9:J10),0) -> 0.0 | L11: =F11+H11+J11 -> 0.0 | N11: TOTAL | O11: TOTAL
A13: 벽, 합판붙임 벽, 8.5T(준내수합판) M2 ( 호표 3 ) | N13: 5702412D70B66DC01C52BFEFE524B9
A14: 보통합판 | B14: 보통합판, 1급, 8.5*1220*2440mm | C14: M2 | E14: =단가대비표!O10 -> 6,317.00 | F14: =TRUNC(E14*D14,1) -> 0.0 | G14: =단가대비표!P10 -> 0.00 | H14: =TRUNC(G14*D14,1) -> 0.0 | I14: =단가대비표!V10 -> 0.00 | J14: =TRUNC(I14*D14,1) -> 0.0 | K14: =TRUNC(E14+G14+I14,1) -> 6,317.00 | L14: 0.0 | N14: 5702412D70B66DC01C52BFEFE524B9 | O14: 5004612171613240151E91092DA07BE43ABA5F | P14: F | Q14: F | R14: T | V14: 1 | AK14: 5702412D70B66DC01C52BFEFE524B95004612171613240151E91092DA07BE43ABA5F
A15: 건축목공 | B15: 일반공사 직종 | C15: 인 | E15: =단가대비표!O76 -> 0.00 | F15: =TRUNC(E15*D15,1) -> 0.0 | G15: =단가대비표!P76 -> 148,851.00 | H15: =TRUNC(G15*D15,1) -> 0.0 | I15: =단가대비표!V76 -> 0.00 | J15: =TRUNC(I15*D15,1) -> 0.0 | K15: 148,851.00 | L15: 0.0 | N15: 5702412D70B66DC01C52BFEFE524B9 | O15: 57D121207AA57E8018ED12DDCCCFFFC14BB811 | P15: F | Q15: F | R15: T | V15: 1 | AK15: 5702412D70B66DC01C52BFEFE524B957D121207AA57E8018ED12DDCCCFFFC14BB811
A16: 보통인부 | B16: 일반공사 직종 | C16: 인 | E16: =단가대비표!O70 -> 0.00 | F16: =TRUNC(E16*D16,1) -> 0.0 | G16: =단가대비표!P70 -> 94,338.00 | H16: =TRUNC(G16*D16,1) -> 0.0 | I16: =단가대비표!V70 -> 0.00 | J16: =TRUNC(I16*D16,1) -> 0.0 | K16: 94,338.00 | L16: 0.0 | N16: 5702412D70B66DC01C52BFEFE524B9 | O16: 57D121207AA57E8018ED12DDCCCFFFC14BBAC2 | P16: F | Q16: F | R16: T | V16: 1 | AK16: 5702412D70B66DC01C52BFEFE524B957D121207AA57E8018ED12DDCCCFFFC14BBAC2
A17: 공구손료 | B17: 인력품의 2% | C17: 식 | E17: 0.00 | F17: =TRUNC(E17*D17,1) -> 0.0 | G17: 0.00 | H17: =TRUNC(G17*D17,1) -> 0.0 | I17: =TRUNC(SUMIF(V14:V17, RIGHTB(O17, 1), H14:H17)*U17, 2) -> 0.00 | J17: =TRUNC(I17*D17,1) -> 0.0 | K17: 0.00 | L17: 0.0 | N17: 5702412D70B66DC01C52BFEFE524B9 | O17: 561B612975325E60133FAF268C0B001 | P17: F | Q17: F | R17: F | S17: 1 | T17: 2 | U17: 0.02 | AK17: 5702412D70B66DC01C52BFEFE524B9561B612975325E60133FAF268C0B001
A18: [ 합 계 ] | F18: =TRUNC(SUMIF(N14:N17, N13, F14:F17),0) -> 0.0 | H18: =TRUNC(SUMIF(N14:N17, N13, H14:H17),0) -> 0.0 | J18: =TRUNC(SUMIF(N14:N17, N13, J14:J17),0) -> 0.0 | L18: =F18+H18+J18 -> 0.0 | N18: TOTAL | O18: TOTAL
A20: 경량철골천정틀 M-BAR, H:1m미만. 인써트 유 M2 건축 14-5 ( 호표 4 ) | N20: 5702112977EBF6401D6FD866B1DB58
A21: 인서트 | B21: 인서트, 주물, Φ6mm | C21: 개 | E21: =단가대비표!O47 -> 180.00 | F21: =TRUNC(E21*D21,1) -> 0.0 | G21: =단가대비표!P47 -> 0.00 | H21: =TRUNC(G21*D21,1) -> 0.0 | I21: =단가대비표!V47 -> 0.00 | J21: =TRUNC(I21*D21,1) -> 0.0 | K21: =TRUNC(E21+G21+I21,1) -> 180.00 | L21: =TRUNC(F21+H21+J21,1) -> 0.0 | N21: 5702112977EBF6401D6FD866B1DB58 | O21: 502741227AE1991019F3FAFB0863305F89AAC5 | P21: F | Q21: F | R21: T | AK21: 5702112977EBF6401D6FD866B1DB58502741227AE1991019F3FAFB0863305F89AAC5
A22: 경량철골천장틀 | B22: 경량철골천장틀, 달대볼트, 상6*1000mm | C22: 개 | E22: =단가대비표!O29 -> 690.00 | F22: 0.0 | G22: =단가대비표!P29 -> 0.00 | H22: 0.0 | I22: =단가대비표!V29 -> 0.00 | J22: 0.0 | K22: 690.00 | L22: 0.0 | N22: 5702112977EBF6401D6FD866B1DB58 | O22: 502751237380295013147BD07FBE1D76591867 | P22: F | Q22: F | R22: T | AK22: 5702112977EBF6401D6FD866B1DB58502751237380295013147BD07FBE1D76591867
A23: 경량철골천장틀 | B23: 경량철골천장틀, 캐링찬넬, 38*12*1.2mm | C23: M | E23: =단가대비표!O30 -> 1,250.00 | F23: 0.0 | G23: =단가대비표!P30 -> 0.00 | H23: 0.0 | I23: =단가대비표!V30 -> 0.00 | J23: 0.0 | K23: 1,250.00 | L23: 0.0 | N23: 5702112977EBF6401D6FD866B1DB58 | O23: 502751237380295013147BD07FBE1D76591B34 | P23: F | Q23: F | R23: T | AK23: 5702112977EBF6401D6FD866B1DB58502751237380295013147BD07FBE1D76591B34
A24: 경량철골천장틀 | B24: 경량철골천장틀, 마이너찬넬, 19*10*1.2mm | C24: M | E24: =단가대비표!O31 -> 780.00 | F24: 0.0 | G24: =단가대비표!P31 -> 0.00 | H24: 0.0 | I24: =단가대비표!V31 -> 0.00 | J24: 0.0 | K24: 780.00 | L24: 0.0 | N24: 5702112977EBF6401D6FD866B1DB58 | O24: 502751237380295013147BD07FBE1D76591B35 | P24: F | Q24: F | R24: T | AK24: 5702112977EBF6401D6FD866B1DB58502751237380295013147BD07FBE1D76591B35
A25: 경량철골천장틀 | B25: 경량철골천장틀, 행가및핀, 110*23*18*2.3mm | C25: 조 | E25: =단가대비표!O32 -> 250.00 | F25: 0.0 | G25: =단가대비표!P32 -> 0.00 | H25: 0.0 | I25: =단가대비표!V32 -> 0.00 | J25: 0.0 | K25: 250.00 | L25: 0.0 | N25: 5702112977EBF6401D6FD866B1DB58 | O25: 502751237380295013147BD07FBE1D76591B36 | P25: F | Q25: F | R25: T | AK25: 5702112977EBF6401D6FD866B1DB58502751237380295013147BD07FBE1D76591B36
A26: 경량철골천장틀 | B26: 경량철골천장틀, 찬넬크립, 37*30*10*1.2mm | C26: 조 | E26: =단가대비표!O33 -> 111.00 | F26: 0.0 | G26: =단가대비표!P33 -> 0.00 | H26: 0.0 | I26: =단가대비표!V33 -> 0.00 | J26: 0.0 | K26: 111.00 | L26: 0.0 | N26: 5702112977EBF6401D6FD866B1DB58 | O26: 502751237380295013147BD07FBE1D76591B37 | P26: F | Q26: F | R26: T | AK26: 5702112977EBF6401D6FD866B1DB58502751237380295013147BD07FBE1D76591B37
A27: 경량철골천장틀 | B27: 경량철골천장틀, 캐링조인트, 90*40*13*0.5mm | C27: 조 | E27: =단가대비표!O34 -> 107.00 | F27: 0.0 | G27: =단가대비표!P34 -> 0.00 | H27: 0.0 | I27: =단가대비표!V34 -> 0.00 | J27: 0.0 | K27: 107.00 | L27: 0.0 | N27: 5702112977EBF6401D6FD866B1DB58 | O27: 502751237380295013147BD07FBE1D76591B30 | P27: F | Q27: F | R27: T | AK27: 5702112977EBF6401D6FD866B1DB58502751237380295013147BD07FBE1D76591B30
A28: 경량철골천장틀 | B28: 경량철골천장틀, M-BAR더블, 50*19*0.5mm | C28: M | E28: =단가대비표!O28 -> 620.00 | F28: 0.0 | G28: =단가대비표!P28 -> 0.00 | H28: 0.0 | I28: =단가대비표!V28 -> 0.00 | J28: 0.0 | K28: 620.00 | L28: 0.0 | N28: 5702112977EBF6401D6FD866B1DB58 | O28: 502751237380295013147BD07FBE1D76591FAB | P28: F | Q28: F | R28: T | AK28: 5702112977EBF6401D6FD866B1DB58502751237380295013147BD07FBE1D76591FAB
A29: 경량철골천장틀 | B29: 경량철골천장틀, BAR크립, 더블 | C29: 개 | E29: =단가대비표!O35 -> 60.00 | F29: 0.0 | G29: =단가대비표!P35 -> 0.00 | H29: 0.0 | I29: =단가대비표!V35 -> 0.00 | J29: 0.0 | K29: 60.00 | L29: 0.0 | N29: 5702112977EBF6401D6FD866B1DB58 | O29: 502751237380295013147BD07FBE1D76591B31 | P29: F | Q29: F | R29: T | AK29: 5702112977EBF6401D6FD866B1DB58502751237380295013147BD07FBE1D76591B31
A30: 경량철골천장틀 | B30: 경량철골천장틀, BAR조인트, 더블 | C30: 개 | E30: =단가대비표!O36 -> 80.00 | F30: 0.0 | G30: =단가대비표!P36 -> 0.00 | H30: 0.0 | I30: =단가대비표!V36 -> 0.00 | J30: 0.0 | K30: 80.00 | L30: 0.0 | N30: 5702112977EBF6401D6FD866B1DB58 | O30: 502751237380295013147BD07FBE1D76591B33 | P30: F | Q30: F | R30: T | AK30: 5702112977EBF6401D6FD866B1DB58502751237380295013147BD07FBE1D76591B33
A31: 경량철골천장틀 | B31: ( 경량철골천장틀, 피스, 3*16mm ) | C31: 개 | E31: =단가대비표!O37 -> 0.00 | F31: 0.0 | G31: =단가대비표!P37 -> 0.00 | H31: 0.0 | I31: =단가대비표!V37 -> 0.00 | J31: 0.0 | K31: 0.00 | L31: 0.0 | M31: 필요시 계상 | N31: 5702112977EBF6401D6FD866B1DB58 | O31: 502751237380295013147BD07FBE1D76591A2A | P31: F | Q31: F | R31: T | AK31: 5702112977EBF6401D6FD866B1DB58502751237380295013147BD07FBE1D76591A2A
A32: 경량 천장 철골틀 - 노무비 | C32: M2 | E32: =일위대가목록!E38 -> 0.00 | F32: 0.0 | G32: =일위대가목록!F38 -> 0.00 | H32: 0.0 | I32: =일위대가목록!G38 -> 0.00 | J32: 0.0 | K32: 0.00 | L32: 0.0 | N32: 5702112977EBF6401D6FD866B1DB58 | O32: 5702112977EBF6401D6FD866B1D9AB | P32: T | Q32: F | R32: F | AK32: 5702112977EBF6401D6FD866B1DB585702112977EBF6401D6FD866B1D9AB
A33: [ 합 계 ] | F33: =TRUNC(SUMIF(N21:N32, N20, F21:F32),0) -> 0.0 | H33: =TRUNC(SUMIF(N21:N32, N20, H21:H32),0) -> 0.0 | J33: =TRUNC(SUMIF(N21:N32, N20, J21:J32),0) -> 0.0 | L33: =F33+H33+J33 -> 0.0 | N33: TOTAL | O33: TOTAL
A35: 천장 점검구 설치 AL 백색, 650*650mm 개소 건축 14-9 ( 호표 5 ) | N35: 5702112977EC9C1010376EE9E65E0E
A36: 점검구 | B36: AL(백색), 650*650mm | C36: 조 | E36: =단가대비표!O44 -> 18,080.00 | F36: =TRUNC(E36*D36,1) -> 0.0 | G36: =단가대비표!P44 -> 0.00 | H36: =TRUNC(G36*D36,1) -> 0.0 | I36: =단가대비표!V44 -> 0.00 | J36: =TRUNC(I36*D36,1) -> 0.0 | K36: =TRUNC(E36+G36+I36,1) -> 18,080.00 | L36: 0.0 | N36: 5702112977EC9C1010376EE9E65E0E | O36: 502751237381CFF01DBBBCFE195E0F48FEF6D1 | P36: F | Q36: F | R36: T | V36: 1 | AK36: 5702112977EC9C1010376EE9E65E0E502751237381CFF01DBBBCFE195E0F48FEF6D1
A37: 잡재료 | B37: 주재료비의 3% | C37: 식 | E37: =TRUNC(SUMIF(V36:V40, RIGHTB(O37, 1), F36:F40)*U37, 2) -> 0.00 | F37: =TRUNC(E37*D37,1) -> 0.0 | G37: 0.00 | H37: =TRUNC(G37*D37,1) -> 0.0 | I37: 0.00 | J37: =TRUNC(I37*D37,1) -> 0.0 | K37: 0.00 | L37: 0.0 | N37: 5702112977EC9C1010376EE9E65E0E | O37: 561B612975325E60133FAF268C0B001 | P37: F | Q37: F | R37: F | S37: 0 | T37: 0 | U37: 0.03 | AK37: 5702112977EC9C1010376EE9E65E0E561B612975325E60133FAF268C0B001
A38: 내장공 | B38: 일반공사 직종 | C38: 인 | E38: =단가대비표!O81 -> 0.00 | F38: =TRUNC(E38*D38,1) -> 0.0 | G38: =단가대비표!P81 -> 144,150.00 | H38: =TRUNC(G38*D38,1) -> 0.0 | I38: =단가대비표!V81 -> 0.00 | J38: =TRUNC(I38*D38,1) -> 0.0 | K38: 144,150.00 | L38: 0.0 | N38: 5702112977EC9C1010376EE9E65E0E | O38: 57D121207AA57E8018ED12DDCCCFFFC14BB939 | P38: F | Q38: F | R38: T | W38: 2 | AK38: 5702112977EC9C1010376EE9E65E0E57D121207AA57E8018ED12DDCCCFFFC14BB939
A39: 보통인부 | B39: 일반공사 직종 | C39: 인 | E39: =단가대비표!O70 -> 0.00 | F39: =TRUNC(E39*D39,1) -> 0.0 | G39: =단가대비표!P70 -> 94,338.00 | H39: =TRUNC(G39*D39,1) -> 0.0 | I39: =단가대비표!V70 -> 0.00 | J39: =TRUNC(I39*D39,1) -> 0.0 | K39: 94,338.00 | L39: 0.0 | N39: 5702112977EC9C1010376EE9E65E0E | O39: 57D121207AA57E8018ED12DDCCCFFFC14BBAC2 | P39: F | Q39: F | R39: T | W39: 2 | AK39: 5702112977EC9C1010376EE9E65E0E57D121207AA57E8018ED12DDCCCFFFC14BBAC2
A40: 공구손료 | B40: 인력품의 3% | C40: 식 | E40: 0.00 | F40: =TRUNC(E40*D40,1) -> 0.0 | G40: 0.00 | H40: =TRUNC(G40*D40,1) -> 0.0 | I40: =TRUNC(SUMIF(W36:W40, RIGHTB(O40, 1), H36:H40)*U40, 2) -> 0.00 | J40: =TRUNC(I40*D40,1) -> 0.0 | K40: 0.00 | L40: 0.0 | N40: 5702112977EC9C1010376EE9E65E0E | O40: 561B612975325E60133FAF268C08002 | P40: F | Q40: F | R40: F | S40: 1 | T40: 2 | U40: 0.03 | AK40: 5702112977EC9C1010376EE9E65E0E561B612975325E60133FAF268C08002
A41: [ 합 계 ] | F41: =TRUNC(SUMIF(N36:N40, N35, F36:F40),0) -> 0.0 | H41: =TRUNC(SUMIF(N36:N40, N35, H36:H40),0) -> 0.0 | J41: =TRUNC(SUMIF(N36:N40, N35, J36:J40),0) -> 0.0 | L41: =F41+H41+J41 -> 0.0 | N41: TOTAL | O41: TOTAL
A43: 스텐걸레받이 S'ST1.5t, H:80 M ( 호표 6 ) | N43: 57021129730BE6F01FEF6B66104C0E
A44: 스테인리스강판 | B44: 스테인리스강판, STS304, 1.5mm | C44: kg | E44: =단가대비표!O22 -> 3,470.00 | F44: =TRUNC(E44*D44,1) -> 0.0 | G44: =단가대비표!P22 -> 0.00 | H44: =TRUNC(G44*D44,1) -> 0.0 | I44: =단가대비표!V22 -> 0.00 | J44: =TRUNC(I44*D44,1) -> 0.0 | K44: =TRUNC(E44+G44+I44,1) -> 3,470.00 | L44: =TRUNC(F44+H44+J44,1) -> 0.0 | N44: 57021129730BE6F01FEF6B66104C0E | O44: 502751237386B24013D9A94B62ADAE97312BD2 | P44: F | Q44: F | R44: T | AK44: 57021129730BE6F01FEF6B66104C0E502751237386B24013D9A94B62ADAE97312BD2
A45: 잡철물제작설치(스테인리스) | B45: 간단 | C45: kg | E45: =일위대가목록!E39 -> 0.00 | F45: =TRUNC(E45*D45,1) -> 0.0 | G45: =일위대가목록!F39 -> 0.00 | H45: =TRUNC(G45*D45,1) -> 0.0 | I45: =일위대가목록!G39 -> 0.00 | J45: =TRUNC(I45*D45,1) -> 0.0 | K45: =TRUNC(E45+G45+I45,1) -> 0.00 | L45: =TRUNC(F45+H45+J45,1) -> 0.0 | N45: 57021129730BE6F01FEF6B66104C0E | O45: 57021129730EB9B017E1AB0526A6B4 | P45: T | Q45: F | R45: F | AK45: 57021129730BE6F01FEF6B66104C0E57021129730EB9B017E1AB0526A6B4
A46: [ 합 계 ] | F46: =TRUNC(SUMIF(N44:N45, N43, F44:F45),0) -> 0.0 | H46: =TRUNC(SUMIF(N44:N45, N43, H44:H45),0) -> 0.0 | J46: =TRUNC(SUMIF(N44:N45, N43, J44:J45),0) -> 0.0 | L46: =F46+H46+J46 -> 0.0 | N46: TOTAL | O46: TOTAL
A48: 알루미늄루버설치/천정 45*120,인테리어필름 M ( 호표 7 ) | N48: 57021129730BE6F01FEF6B66104C0D
A49: 알루미늄각관 | B49: ㅁ-45*120 | C49: M | E49: =단가대비표!O62 -> 10,920.00 | F49: =TRUNC(E49*D49,1) -> 0.0 | G49: =단가대비표!P62 -> 0.00 | H49: =TRUNC(G49*D49,1) -> 0.0 | I49: =단가대비표!V62 -> 0.00 | J49: =TRUNC(I49*D49,1) -> 0.0 | K49: =TRUNC(E49+G49+I49,1) -> 10,920.00 | L49: 0.0 | N49: 57021129730BE6F01FEF6B66104C0D | O49: 505C912371FC3970186CA7CE4CB8950E2DDC5B | P49: F | Q49: F | R49: T | V49: 1 | AK49: 57021129730BE6F01FEF6B66104C0D505C912371FC3970186CA7CE4CB8950E2DDC5B
A50: 인테리어필름 | B50: 04*1.22, 시공비포함 | C50: M2 | E50: =단가대비표!O26 -> 26,500.00 | F50: 0.0 | G50: =단가대비표!P26 -> 0.00 | H50: 0.0 | I50: =단가대비표!V26 -> 0.00 | J50: 0.0 | K50: 26,500.00 | L50: 0.0 | N50: 57021129730BE6F01FEF6B66104C0D | O50: 50275123738029501040845230CD02FF7D3F4E | P50: F | Q50: F | R50: T | AK50: 57021129730BE6F01FEF6B66104C0D50275123738029501040845230CD02FF7D3F4E
A51: 잡재료 | B51: 주재료비의 5% | C51: 식 | E51: =TRUNC(SUMIF(V49:V54, RIGHTB(O51, 1), F49:F54)*U51, 2) -> 0.00 | F51: 0.0 | G51: 0.00 | H51: 0.0 | I51: 0.00 | J51: 0.0 | K51: 0.00 | L51: 0.0 | N51: 57021129730BE6F01FEF6B66104C0D | O51: 561B612975325E60133FAF268C0B001 | P51: F | Q51: F | R51: F | S51: 0 | T51: 0 | U51: 0.05 | W51: 2 | AK51: 57021129730BE6F01FEF6B66104C0D561B612975325E60133FAF268C0B001
A52: 특별인부 | B52: 일반공사 직종 | C52: 인 | E52: =단가대비표!O71 -> 0.00 | F52: 0.0 | G52: =단가대비표!P71 -> 115,272.00 | H52: 0.0 | I52: =단가대비표!V71 -> 0.00 | J52: 0.0 | K52: 115,272.00 | L52: 0.0 | N52: 57021129730BE6F01FEF6B66104C0D | O52: 57D121207AA57E8018ED12DDCCCFFFC14BBAC3 | P52: F | Q52: F | R52: T | AK52: 57021129730BE6F01FEF6B66104C0D57D121207AA57E8018ED12DDCCCFFFC14BBAC3
A53: 보통인부 | B53: 일반공사 직종 | C53: 인 | E53: =단가대비표!O70 -> 0.00 | F53: 0.0 | G53: =단가대비표!P70 -> 94,338.00 | H53: 0.0 | I53: =단가대비표!V70 -> 0.00 | J53: 0.0 | K53: 94,338.00 | L53: 0.0 | N53: 57021129730BE6F01FEF6B66104C0D | O53: 57D121207AA57E8018ED12DDCCCFFFC14BBAC2 | P53: F | Q53: F | R53: T | AK53: 57021129730BE6F01FEF6B66104C0D57D121207AA57E8018ED12DDCCCFFFC14BBAC2
A54: 공구손료 | B54: 인력품의 3% | C54: 식 | E54: =TRUNC(SUMIF(W49:W54, RIGHTB(O54, 1), H49:H54)*U54, 2) -> 0.00 | F54: 0.0 | G54: 0.00 | H54: 0.0 | I54: 0.00 | J54: 0.0 | K54: 0.00 | L54: 0.0 | N54: 57021129730BE6F01FEF6B66104C0D | O54: 561B612975325E60133FAF268C08002 | P54: F | Q54: F | R54: F | S54: 1 | T54: 0 | U54: 0.03 | AK54: 57021129730BE6F01FEF6B66104C0D561B612975325E60133FAF268C08002
A55: [ 합 계 ] | F55: =TRUNC(SUMIF(N49:N54, N48, F49:F54),0) -> 0.0 | H55: =TRUNC(SUMIF(N49:N54, N48, H49:H54),0) -> 0.0 | J55: =TRUNC(SUMIF(N49:N54, N48, J49:J54),0) -> 0.0 | L55: =F55+H55+J55 -> 0.0 | N55: TOTAL | O55: TOTAL
A57: 우물천정설치/갈바절곡 갈바1.2mm, 350*150, 분체도장 M ( 호표 8 ) | N57: 57021129730BE6F01FEF6B66104C0C
A58: 합금화용융아연도금강판 | B58: 합금화용융아연도금강판, 갈바륨, 1.20mm | C58: kg | E58: =단가대비표!O21 -> 1,271.00 | F58: =TRUNC(E58*D58,1) -> 0.0 | G58: =단가대비표!P21 -> 0.00 | H58: =TRUNC(G58*D58,1) -> 0.0 | I58: =단가대비표!V21 -> 0.00 | J58: =TRUNC(I58*D58,1) -> 0.0 | K58: =TRUNC(E58+G58+I58,1) -> 1,271.00 | L58: 0.0 | N58: 57021129730BE6F01FEF6B66104C0C | O58: 502751237386B24013D9A8A01DCC86BC654973 | P58: F | Q58: F | R58: T | AK58: 57021129730BE6F01FEF6B66104C0C502751237386B24013D9A8A01DCC86BC654973
A59: 잡철물제작설치(철재) | B59: 간단 | C59: kg | E59: =일위대가목록!E43 -> 0.00 | F59: =TRUNC(E59*D59,1) -> 0.0 | G59: =일위대가목록!F43 -> 0.00 | H59: =TRUNC(G59*D59,1) -> 0.0 | I59: =일위대가목록!G43 -> 0.00 | J59: =TRUNC(I59*D59,1) -> 0.0 | K59: 0.00 | L59: 0.0 | N59: 57021129730BE6F01FEF6B66104C0C | O59: 57021129730EB9B017E1A9574A7E93 | P59: T | Q59: F | R59: F | AK59: 57021129730BE6F01FEF6B66104C0C57021129730EB9B017E1A9574A7E93
A60: 유성페인트(롤러칠) | B60: 철재면, 2회. 1급 | C60: M2 | E60: =일위대가목록!E44 -> 0.00 | F60: =TRUNC(E60*D60,1) -> 0.0 | G60: =일위대가목록!F44 -> 0.00 | H60: =TRUNC(G60*D60,1) -> 0.0 | I60: =일위대가목록!G44 -> 0.00 | J60: =TRUNC(I60*D60,1) -> 0.0 | K60: 0.00 | L60: 0.0 | N60: 57021129730BE6F01FEF6B66104C0C | O60: 570251237BC6A6E010008965989253 | P60: T | Q60: F | R60: F | AK60: 57021129730BE6F01FEF6B66104C0C570251237BC6A6E010008965989253
A61: [ 합 계 ] | F61: =TRUNC(SUMIF(N58:N60, N57, F58:F60),0) -> 0.0 | H61: =TRUNC(SUMIF(N58:N60, N57, H58:H60),0) -> 0.0 | J61: =TRUNC(SUMIF(N58:N60, N57, J58:J60),0) -> 0.0 | L61: =F61+H61+J61 -> 0.0 | N61: TOTAL | O61: TOTAL
A63: 스테인리스재료분리대 바닥, W45*H20*1.5t M ( 호표 9 ) | N63: 5702412D742C300019236B83C93DDF
A64: 스테인리스강판 | B64: 스테인리스강판, STS304, 1.5mm | C64: kg | E64: =단가대비표!O22 -> 3,470.00 | F64: =TRUNC(E64*D64,1) -> 0.0 | G64: =단가대비표!P22 -> 0.00 | H64: =TRUNC(G64*D64,1) -> 0.0 | I64: =단가대비표!V22 -> 0.00 | J64: =TRUNC(I64*D64,1) -> 0.0 | K64: =TRUNC(E64+G64+I64,1) -> 3,470.00 | L64: 0.0 | N64: 5702412D742C300019236B83C93DDF | O64: 502751237386B24013D9A94B62ADAE97312BD2 | P64: F | Q64: F | R64: T | AK64: 5702412D742C300019236B83C93DDF502751237386B24013D9A94B62ADAE97312BD2
A65: 일반구조용압연강판 | B65: 일반구조용압연강판, 2.3mm | C65: kg | E65: =단가대비표!O20 -> 958.00 | F65: 0.0 | G65: =단가대비표!P20 -> 0.00 | H65: 0.0 | I65: =단가대비표!V20 -> 0.00 | J65: 0.0 | K65: 958.00 | L65: 0.0 | N65: 5702412D742C300019236B83C93DDF | O65: 502751237386B24013D9A8A01DCC86B30AA433 | P65: F | Q65: F | R65: T | AK65: 5702412D742C300019236B83C93DDF502751237386B24013D9A8A01DCC86B30AA433
A66: 일반구조용압연강판 | B66: 일반구조용압연강판, 1.6mm | C66: kg | E66: =단가대비표!O19 -> 870.00 | F66: 0.0 | G66: =단가대비표!P19 -> 0.00 | H66: 0.0 | I66: =단가대비표!V19 -> 0.00 | J66: 0.0 | K66: 870.00 | L66: 0.0 | N66: 5702412D742C300019236B83C93DDF | O66: 502751237386B24013D9A8A01DCC86B30AA434 | P66: F | Q66: F | R66: T | AK66: 5702412D742C300019236B83C93DDF502751237386B24013D9A8A01DCC86B30AA434
A67: 잡철물제작설치(스테인리스)-강판 가공시 | B67: 간단 | C67: kg | E67: =일위대가목록!E49 -> 0.00 | F67: 0.0 | G67: =일위대가목록!F49 -> 0.00 | H67: 0.0 | I67: =일위대가목록!G49 -> 0.00 | J67: 0.0 | K67: 0.00 | L67: 0.0 | N67: 5702412D742C300019236B83C93DDF | O67: 57021129730EB9B01537E9D5610EB8 | P67: T | Q67: F | R67: F | AK67: 5702412D742C300019236B83C93DDF57021129730EB9B01537E9D5610EB8
A68: 잡철물제작설치(철재) -강판 가공시 | B68: 간단 | C68: kg | E68: =일위대가목록!E50 -> 0.00 | F68: 0.0 | G68: =일위대가목록!F50 -> 0.00 | H68: 0.0 | I68: =일위대가목록!G50 -> 0.00 | J68: 0.0 | K68: 0.00 | L68: 0.0 | N68: 5702412D742C300019236B83C93DDF | O68: 57021129730EB9B016DE1004AA3B54 | P68: T | Q68: F | R68: F | AK68: 5702412D742C300019236B83C93DDF57021129730EB9B016DE1004AA3B54
A69: 철강설 | B69: 철강설, 스텐레스, 작업설부산물 | C69: kg | E69: =단가대비표!O13 -> 1,000.00 | F69: 0.0 | G69: =단가대비표!P13 -> 0.00 | H69: 0.0 | I69: =단가대비표!V13 -> 0.00 | J69: 0.0 | K69: 1,000.00 | L69: 0.0 | M69: 수집상차도 | N69: 5702412D742C300019236B83C93DDF | O69: 50046121716A2DF01C4A19AD1D60668AA8A33D | P69: F | Q69: F | R69: T | AK69: 5702412D742C300019236B83C93DDF50046121716A2DF01C4A19AD1D60668AA8A33D
A70: 철강설 | B70: 철강설, 고철, 작업설부산물 | C70: kg | E70: =단가대비표!O12 -> 130.00 | F70: 0.0 | G70: =단가대비표!P12 -> 0.00 | H70: 0.0 | I70: =단가대비표!V12 -> 0.00 | J70: 0.0 | K70: 130.00 | L70: 0.0 | M70: 수집상차도 | N70: 5702412D742C300019236B83C93DDF | O70: 50046121716A2DF01C4A19AD1D60668AA8A217 | P70: F | Q70: F | R70: T | AK70: 5702412D742C300019236B83C93DDF50046121716A2DF01C4A19AD1D60668AA8A217
A71: [ 합 계 ] | F71: =TRUNC(SUMIF(N64:N70, N63, F64:F70),0) -> 0.0 | H71: =TRUNC(SUMIF(N64:N70, N63, H64:H70),0) -> 0.0 | J71: =TRUNC(SUMIF(N64:N70, N63, J64:J70),0) -> 0.0 | L71: =F71+H71+J71 -> 0.0 | N71: TOTAL | O71: TOTAL
A73: 벽장식구조물/칼라도장 (ㅁ-40*40+30*20), 4480*1180 EA ( 호표 10 ) | N73: 570271207ED9BE901F7CB41125A738
A74: 일반구조용각형강관 | B74: 일반구조용각형강관, 각형강관, 40*40*2.1mm | C74: M | E74: =단가대비표!O61 -> 2,400.00 | F74: =TRUNC(E74*D74,1) -> 0.0 | G74: =단가대비표!P61 -> 0.00 | H74: =TRUNC(G74*D74,1) -> 0.0 | I74: =단가대비표!V61 -> 0.00 | J74: =TRUNC(I74*D74,1) -> 0.0 | K74: =TRUNC(E74+G74+I74,1) -> 2,400.00 | L74: 0.0 | N74: 570271207ED9BE901F7CB41125A738 | O74: 505C912371FC3970186CA8D1C4C714BD277AD7 | P74: F | Q74: F | R74: T | V74: 1 | AK74: 570271207ED9BE901F7CB41125A738505C912371FC3970186CA8D1C4C714BD277AD7
A75: 일반구조용각형강관 | B75: 일반구조용각형강관, 각형강관, 30*20*1.6mm | C75: M | E75: =단가대비표!O59 -> 870.00 | F75: 0.0 | G75: =단가대비표!P59 -> 0.00 | H75: 0.0 | I75: =단가대비표!V59 -> 0.00 | J75: 0.0 | K75: 870.00 | L75: 0.0 | N75: 570271207ED9BE901F7CB41125A738 | O75: 505C912371FC3970186CA8D1C4C714BD20C248 | P75: F | Q75: F | R75: T | V75: 1 | AK75: 570271207ED9BE901F7CB41125A738505C912371FC3970186CA8D1C4C714BD20C248
A76: 잡재료 | B76: 주재료비의 5% | C76: 식 | E76: =TRUNC(SUMIF(V74:V79, RIGHTB(O76, 1), F74:F79)*U76, 2) -> 0.00 | F76: 0.0 | G76: 0.00 | H76: 0.0 | I76: 0.00 | J76: 0.0 | K76: 0.00 | L76: 0.0 | N76: 570271207ED9BE901F7CB41125A738 | O76: 561B612975325E60133FAF268C0B001 | P76: F | Q76: F | R76: F | S76: 0 | T76: 0 | U76: 0.05 | AK76: 570271207ED9BE901F7CB41125A738561B612975325E60133FAF268C0B001
A77: 잡철물제작설치(철재) | B77: 간단 | C77: kg | E77: =일위대가목록!E43 -> 0.00 | F77: 0.0 | G77: =일위대가목록!F43 -> 0.00 | H77: 0.0 | I77: =일위대가목록!G43 -> 0.00 | J77: 0.0 | K77: 0.00 | L77: 0.0 | N77: 570271207ED9BE901F7CB41125A738 | O77: 57021129730EB9B017E1A9574A7E93 | P77: T | Q77: F | R77: F | AK77: 570271207ED9BE901F7CB41125A73857021129730EB9B017E1A9574A7E93
A78: 녹막이페인트(붓칠) | B78: 철재면, 1회, 1종 | C78: M2 | E78: =일위대가목록!E55 -> 0.00 | F78: 0.0 | G78: =일위대가목록!F55 -> 0.00 | H78: 0.0 | I78: =일위대가목록!G55 -> 0.00 | J78: 0.0 | K78: 0.00 | L78: 0.0 | N78: 570271207ED9BE901F7CB41125A738 | O78: 5702512378734F701A4BD054533C6F | P78: T | Q78: F | R78: F | AK78: 570271207ED9BE901F7CB41125A7385702512378734F701A4BD054533C6F
A79: 유성페인트(붓칠) | B79: 철재면, 2회. 1급 | C79: M2 | E79: =일위대가목록!E56 -> 0.00 | F79: 0.0 | G79: =일위대가목록!F56 -> 0.00 | H79: 0.0 | I79: =일위대가목록!G56 -> 0.00 | J79: 0.0 | K79: 0.00 | L79: 0.0 | N79: 570271207ED9BE901F7CB41125A738 | O79: 570251237BC6A6E010050C420835F9 | P79: T | Q79: F | R79: F | AK79: 570271207ED9BE901F7CB41125A738570251237BC6A6E010050C420835F9
A80: [ 합 계 ] | F80: =TRUNC(SUMIF(N74:N79, N73, F74:F79),0) -> 0.0 | H80: =TRUNC(SUMIF(N74:N79, N73, H74:H79),0) -> 0.0 | J80: =TRUNC(SUMIF(N74:N79, N73, J74:J79),0) -> 0.0 | L80: =F80+H80+J80 -> 0.0 | N80: TOTAL | O80: TOTAL
A82: AW01[갈바절곡창호,분체도장] 8.150 x 3.000 EA ( 호표 11 ) | N82: 570271207687A1201B01D15F1996E4
A83: 갈바고정창호/분체도장 | B83: 1.2MM, 120mm | C83: M2 | E83: =단가대비표!O40 -> 114,000.00 | F83: =TRUNC(E83*D83,1) -> 0.0 | G83: =단가대비표!P40 -> 0.00 | H83: =TRUNC(G83*D83,1) -> 0.0 | I83: =단가대비표!V40 -> 0.00 | J83: =TRUNC(I83*D83,1) -> 0.0 | K83: =TRUNC(E83+G83+I83,1) -> 114,000.00 | L83: =TRUNC(F83+H83+J83,1) -> 0.0 | N83: 570271207687A1201B01D15F1996E4 | O83: 502751237381CFF01DB37F8F92CE73759C7731 | P83: F | Q83: F | R83: T | AK83: 570271207687A1201B01D15F1996E4502751237381CFF01DB37F8F92CE73759C7731
A84: [ 합 계 ] | F84: =TRUNC(SUMIF(N83:N83, N82, F83:F83),0) -> 0.0 | H84: =TRUNC(SUMIF(N83:N83, N82, H83:H83),0) -> 0.0 | J84: =TRUNC(SUMIF(N83:N83, N82, J83:J83),0) -> 0.0 | L84: =F84+H84+J84 -> 0.0 | N84: TOTAL | O84: TOTAL
A86: AW02[갈바절곡창호,분체도장] 1.000 x 2.100 EA ( 호표 12 ) | N86: 570271207687A1201B01D15F1996E6
A87: 갈바고정창호/분체도장 | B87: 1.2MM, 120mm | C87: M2 | E87: =단가대비표!O40 -> 114,000.00 | F87: =TRUNC(E87*D87,1) -> 0.0 | G87: =단가대비표!P40 -> 0.00 | H87: =TRUNC(G87*D87,1) -> 0.0 | I87: =단가대비표!V40 -> 0.00 | J87: =TRUNC(I87*D87,1) -> 0.0 | K87: =TRUNC(E87+G87+I87,1) -> 114,000.00 | L87: =TRUNC(F87+H87+J87,1) -> 0.0 | N87: 570271207687A1201B01D15F1996E6 | O87: 502751237381CFF01DB37F8F92CE73759C7731 | P87: F | Q87: F | R87: T | AK87: 570271207687A1201B01D15F1996E6502751237381CFF01DB37F8F92CE73759C7731
A88: [ 합 계 ] | F88: =TRUNC(SUMIF(N87:N87, N86, F87:F87),0) -> 0.0 | H88: =TRUNC(SUMIF(N87:N87, N86, H87:H87),0) -> 0.0 | J88: =TRUNC(SUMIF(N87:N87, N86, J87:J87),0) -> 0.0 | L88: =F88+H88+J88 -> 0.0 | N88: TOTAL | O88: TOTAL
A90: 플로어힌지설치 재료비 별도 개소 건축 16-2 ( 호표 13 ) | N90: 57027120710754601E2C6A82A6094C
A91: 창호공 | B91: 일반공사 직종 | C91: 인 | E91: =단가대비표!O77 -> 0.00 | F91: =TRUNC(E91*D91,1) -> 0.0 | G91: =단가대비표!P77 -> 139,607.00 | H91: =TRUNC(G91*D91,1) -> 0.0 | I91: =단가대비표!V77 -> 0.00 | J91: =TRUNC(I91*D91,1) -> 0.0 | K91: =TRUNC(E91+G91+I91,1) -> 139,607.00 | L91: 0.0 | N91: 57027120710754601E2C6A82A6094C | O91: 57D121207AA57E8018ED12DDCCCFFFC14BB816 | P91: F | Q91: F | R91: T | V91: 1 | AK91: 57027120710754601E2C6A82A6094C57D121207AA57E8018ED12DDCCCFFFC14BB816
A92: 보통인부 | B92: 일반공사 직종 | C92: 인 | E92: =단가대비표!O70 -> 0.00 | F92: =TRUNC(E92*D92,1) -> 0.0 | G92: =단가대비표!P70 -> 94,338.00 | H92: =TRUNC(G92*D92,1) -> 0.0 | I92: =단가대비표!V70 -> 0.00 | J92: =TRUNC(I92*D92,1) -> 0.0 | K92: 94,338.00 | L92: 0.0 | N92: 57027120710754601E2C6A82A6094C | O92: 57D121207AA57E8018ED12DDCCCFFFC14BBAC2 | P92: F | Q92: F | R92: T | V92: 1 | AK92: 57027120710754601E2C6A82A6094C57D121207AA57E8018ED12DDCCCFFFC14BBAC2
A93: 공구손료 | B93: 인력품의 2% | C93: 식 | E93: 0.00 | F93: =TRUNC(E93*D93,1) -> 0.0 | G93: 0.00 | H93: =TRUNC(G93*D93,1) -> 0.0 | I93: =TRUNC(SUMIF(V91:V93, RIGHTB(O93, 1), H91:H93)*U93, 2) -> 0.00 | J93: =TRUNC(I93*D93,1) -> 0.0 | K93: 0.00 | L93: 0.0 | N93: 57027120710754601E2C6A82A6094C | O93: 561B612975325E60133FAF268C0B001 | P93: F | Q93: F | R93: F | S93: 1 | T93: 2 | U93: 0.02 | AK93: 57027120710754601E2C6A82A6094C561B612975325E60133FAF268C0B001
A94: [ 합 계 ] | F94: =TRUNC(SUMIF(N91:N93, N90, F91:F93),0) -> 0.0 | H94: =TRUNC(SUMIF(N91:N93, N90, H91:H93),0) -> 0.0 | J94: =TRUNC(SUMIF(N91:N93, N90, J91:J93),0) -> 0.0 | L94: =F94+H94+J94 -> 0.0 | N94: TOTAL | O94: TOTAL
A96: 창문틀 주위 충전 발포우레탄 M 건축 16-3-2 ( 호표 14 ) | N96: 570271207101CDE01E61F47CDE96AF
A97: 창문틀 주위 충전 | B97: 발포우레탄 충전 | C97: 10M | E97: =일위대가목록!E61 -> 0.00 | F97: =TRUNC(E97*D97,1) -> 0.0 | G97: =일위대가목록!F61 -> 0.00 | H97: =TRUNC(G97*D97,1) -> 0.0 | I97: =일위대가목록!G61 -> 0.00 | J97: =TRUNC(I97*D97,1) -> 0.0 | K97: =TRUNC(E97+G97+I97,1) -> 0.00 | L97: =TRUNC(F97+H97+J97,1) -> 0.0 | N97: 570271207101CDE01E61F47CDE96AF | O97: 570271207101CDE01E61F47CDFBC91 | P97: T | Q97: F | R97: F | AK97: 570271207101CDE01E61F47CDE96AF570271207101CDE01E61F47CDFBC91
A98: 우레탄폼 | C98: M3 | E98: =단가대비표!O49 -> 250,000.00 | F98: =TRUNC(E98*D98,1) -> 0.0 | G98: =단가대비표!P49 -> 0.00 | H98: =TRUNC(G98*D98,1) -> 0.0 | I98: =단가대비표!V49 -> 0.00 | J98: =TRUNC(I98*D98,1) -> 0.0 | K98: =TRUNC(E98+G98+I98,1) -> 250,000.00 | L98: =TRUNC(F98+H98+J98,1) -> 0.0 | N98: 570271207101CDE01E61F47CDE96AF | O98: 502741227AEE52301723D588EE5A416B72AF6D | P98: F | Q98: F | R98: T | AK98: 570271207101CDE01E61F47CDE96AF502741227AEE52301723D588EE5A416B72AF6D
A99: [ 합 계 ] | F99: =TRUNC(SUMIF(N97:N98, N96, F97:F98),0) -> 0.0 | H99: =TRUNC(SUMIF(N97:N98, N96, H97:H98),0) -> 0.0 | J99: =TRUNC(SUMIF(N97:N98, N96, J97:J98),0) -> 0.0 | L99: =F99+H99+J99 -> 0.0 | N99: TOTAL | O99: TOTAL
A101: 수밀코킹(실리콘) 삼각, 10mm, 창호주위 M 건축 12-12-1 ( 호표 15 ) | N101: 5702312E7A1C7B70109B246605A7AB
A102: 실링재 | B102: 실링재, 실리콘, 비초산, 유리용, 창호주위 | C102: L | E102: =단가대비표!O57 -> 9,310.00 | F102: =TRUNC(E102*D102,1) -> 0.0 | G102: =단가대비표!P57 -> 0.00 | H102: =TRUNC(G102*D102,1) -> 0.0 | I102: =단가대비표!V57 -> 0.00 | J102: =TRUNC(I102*D102,1) -> 0.0 | K102: =TRUNC(E102+G102+I102,1) -> 9,310.00 | L102: =TRUNC(F102+H102+J102,1) -> 0.0 | N102: 5702312E7A1C7B70109B246605A7AB | O102: 5027412279C01B401F5267F666D7158758EA81 | P102: F | Q102: F | R102: T | AK102: 5702312E7A1C7B70109B246605A7AB5027412279C01B401F5267F666D7158758EA81
A103: 수밀코킹(시공비) | B103: 재료비 별도 | C103: M | E103: =일위대가목록!E62 -> 0.00 | F103: =TRUNC(E103*D103,1) -> 0.0 | G103: =일위대가목록!F62 -> 0.00 | H103: =TRUNC(G103*D103,1) -> 0.0 | I103: =일위대가목록!G62 -> 0.00 | J103: =TRUNC(I103*D103,1) -> 0.0 | K103: =TRUNC(E103+G103+I103,1) -> 0.00 | L103: =TRUNC(F103+H103+J103,1) -> 0.0 | N103: 5702312E7A1C7B70109B246605A7AB | O103: 5702312E7A1FCE601A6E955CC78BA2 | P103: T | Q103: F | R103: F | AK103: 5702312E7A1C7B70109B246605A7AB5702312E7A1FCE601A6E955CC78BA2
A104: [ 합 계 ] | F104: =TRUNC(SUMIF(N102:N103, N101, F102:F103),0) -> 0.0 | H104: =TRUNC(SUMIF(N102:N103, N101, H102:H103),0) -> 0.0 | J104: =TRUNC(SUMIF(N102:N103, N101, J102:J103),0) -> 0.0 | L104: =F104+H104+J104 -> 0.0 | N104: TOTAL | O104: TOTAL
A106: 유리주위코킹 5*5, 실리콘 M 건축 12-12-1 ( 호표 16 ) | N106: 5702312E7A1D01301FE0F9C5BEED3E
A107: 실링재 | B107: 실링재, 실리콘, 비초산, 유리용, 창호주위 | C107: L | E107: =단가대비표!O57 -> 9,310.00 | F107: =TRUNC(E107*D107,1) -> 0.0 | G107: =단가대비표!P57 -> 0.00 | H107: =TRUNC(G107*D107,1) -> 0.0 | I107: =단가대비표!V57 -> 0.00 | J107: =TRUNC(I107*D107,1) -> 0.0 | K107: =TRUNC(E107+G107+I107,1) -> 9,310.00 | L107: =TRUNC(F107+H107+J107,1) -> 0.0 | N107: 5702312E7A1D01301FE0F9C5BEED3E | O107: 5027412279C01B401F5267F666D7158758EA81 | P107: F | Q107: F | R107: T | AK107: 5702312E7A1D01301FE0F9C5BEED3E5027412279C01B401F5267F666D7158758EA81
A108: [ 합 계 ] | F108: =TRUNC(SUMIF(N107:N107, N106, F107:F107),0) -> 0.0 | H108: =TRUNC(SUMIF(N107:N107, N106, H107:H107),0) -> 0.0 | J108: =TRUNC(SUMIF(N107:N107, N106, J107:J107),0) -> 0.0 | L108: =F108+H108+J108 -> 0.0 | N108: TOTAL | O108: TOTAL
A110: 유리끼우기 - 판유리 10mm 이상 M2 건축 16-5-1 ( 호표 17 ) | N110: 57027120707FFCC013A61618E3113C
A111: 유리공 | B111: 일반공사 직종 | C111: 인 | E111: =단가대비표!O78 -> 0.00 | F111: =TRUNC(E111*D111,1) -> 0.0 | G111: =단가대비표!P78 -> 133,910.00 | H111: =TRUNC(G111*D111,1) -> 0.0 | I111: =단가대비표!V78 -> 0.00 | J111: =TRUNC(I111*D111,1) -> 0.0 | K111: =TRUNC(E111+G111+I111,1) -> 133,910.00 | L111: =TRUNC(F111+H111+J111,1) -> 0.0 | N111: 57027120707FFCC013A61618E3113C | O111: 57D121207AA57E8018ED12DDCCCFFFC14BB817 | P111: F | Q111: F | R111: T | AK111: 57027120707FFCC013A61618E3113C57D121207AA57E8018ED12DDCCCFFFC14BB817
A112: [ 합 계 ] | F112: =TRUNC(SUMIF(N111:N111, N110, F111:F111),0) -> 0.0 | H112: =TRUNC(SUMIF(N111:N111, N110, H111:H111),0) -> 0.0 | J112: =TRUNC(SUMIF(N111:N111, N110, J111:J111),0) -> 0.0 | L112: =F112+H112+J112 -> 0.0 | N112: TOTAL | O112: TOTAL
A114: 브론즈경설치 W150*5mm, 틀 포함 M ( 호표 18 ) | N114: 570271207ED9BE901F7CB41125A739
A115: 방습거울설치 - 합판 12mm+STS 1.5mm | B115: 5mm, 틀 포함 | C115: M2 | E115: =일위대가목록!E63 -> 0.00 | F115: =TRUNC(E115*D115,1) -> 0.0 | G115: =일위대가목록!F63 -> 0.00 | H115: =TRUNC(G115*D115,1) -> 0.0 | I115: =일위대가목록!G63 -> 0.00 | J115: =TRUNC(I115*D115,1) -> 0.0 | K115: =TRUNC(E115+G115+I115,1) -> 0.00 | L115: =TRUNC(F115+H115+J115,1) -> 0.0 | N115: 570271207ED9BE901F7CB41125A739 | O115: 570271207ED9BE901F7CB41125A73B | P115: T | Q115: F | R115: F | AK115: 570271207ED9BE901F7CB41125A739570271207ED9BE901F7CB41125A73B
A116: [ 합 계 ] | F116: =TRUNC(SUMIF(N115:N115, N114, F115:F115),0) -> 0.0 | H116: =TRUNC(SUMIF(N115:N115, N114, H115:H115),0) -> 0.0 | J116: =TRUNC(SUMIF(N115:N115, N114, J115:J115),0) -> 0.0 | L116: =F116+H116+J116 -> 0.0 | N116: TOTAL | O116: TOTAL
A118: 바탕만들기 - 친환경 석고보드면(줄퍼티) M2 건축 17-1-1.2 ( 호표 19 ) | N118: 570251227A94AB301E23E0DBB6C996
A119: F-Tape | B119: W:35~100mm | C119: M | E119: =단가대비표!O52 -> 73.00 | F119: =TRUNC(E119*D119,1) -> 0.0 | G119: =단가대비표!P52 -> 0.00 | H119: =TRUNC(G119*D119,1) -> 0.0 | I119: =단가대비표!V52 -> 0.00 | J119: =TRUNC(I119*D119,1) -> 0.0 | K119: =TRUNC(E119+G119+I119,1) -> 73.00 | L119: 0.0 | N119: 570251227A94AB301E23E0DBB6C996 | O119: 5027412279C120801A512E6518534BE0E45AFD | P119: F | Q119: F | R119: T | AK119: 570251227A94AB301E23E0DBB6C9965027412279C120801A512E6518534BE0E45AFD
A120: 휠러 | C120: kg | E120: =단가대비표!O53 -> 1,150.00 | F120: 0.0 | G120: =단가대비표!P53 -> 0.00 | H120: 0.0 | I120: =단가대비표!V53 -> 0.00 | J120: 0.0 | K120: 1,150.00 | L120: 0.0 | N120: 570251227A94AB301E23E0DBB6C996 | O120: 5027412279C120801A512E6518534BE0E45B86 | P120: F | Q120: F | R120: T | AK120: 570251227A94AB301E23E0DBB6C9965027412279C120801A512E6518534BE0E45B86
A121: 퍼티 | B121: 퍼티, 친환경, 내부 | C121: kg | E121: =단가대비표!O51 -> 1,044.44 | F121: 0.0 | G121: =단가대비표!P51 -> 0.00 | H121: 0.0 | I121: =단가대비표!V51 -> 0.00 | J121: 0.0 | K121: 1,044.40 | L121: 0.0 | N121: 570251227A94AB301E23E0DBB6C996 | O121: 5027412279C120801A512E6518534BE0E60961 | P121: F | Q121: F | R121: T | AK121: 570251227A94AB301E23E0DBB6C9965027412279C120801A512E6518534BE0E60961
A122: 연마지 | B122: 연마지, #120~180, 230*280mm | C122: 장 | E122: =단가대비표!O48 -> 200.00 | F122: 0.0 | G122: =단가대비표!P48 -> 0.00 | H122: 0.0 | I122: =단가대비표!V48 -> 0.00 | J122: 0.0 | K122: 200.00 | L122: 0.0 | N122: 570251227A94AB301E23E0DBB6C996 | O122: 502741227AEE52301723DDC2087C4A138990BA | P122: F | Q122: F | R122: T | AK122: 570251227A94AB301E23E0DBB6C996502741227AEE52301723DDC2087C4A138990BA
A123: 도장공 | B123: 일반공사 직종 | C123: 인 | E123: =단가대비표!O80 -> 0.00 | F123: 0.0 | G123: =단가대비표!P80 -> 132,552.00 | H123: 0.0 | I123: =단가대비표!V80 -> 0.00 | J123: 0.0 | K123: 132,552.00 | L123: 0.0 | N123: 570251227A94AB301E23E0DBB6C996 | O123: 57D121207AA57E8018ED12DDCCCFFFC14BB81B | P123: F | Q123: F | R123: T | V123: 1 | AK123: 570251227A94AB301E23E0DBB6C99657D121207AA57E8018ED12DDCCCFFFC14BB81B
A124: 보통인부 | B124: 일반공사 직종 | C124: 인 | E124: =단가대비표!O70 -> 0.00 | F124: 0.0 | G124: =단가대비표!P70 -> 94,338.00 | H124: 0.0 | I124: =단가대비표!V70 -> 0.00 | J124: 0.0 | K124: 94,338.00 | L124: 0.0 | N124: 570251227A94AB301E23E0DBB6C996 | O124: 57D121207AA57E8018ED12DDCCCFFFC14BBAC2 | P124: F | Q124: F | R124: T | V124: 1 | AK124: 570251227A94AB301E23E0DBB6C99657D121207AA57E8018ED12DDCCCFFFC14BBAC2
A125: 공구손료 | B125: 인력품의 2% | C125: 식 | E125: 0.00 | F125: 0.0 | G125: 0.00 | H125: 0.0 | I125: =TRUNC(SUMIF(V119:V125, RIGHTB(O125, 1), H119:H125)*U125, 2) -> 0.00 | J125: 0.0 | K125: 0.00 | L125: 0.0 | N125: 570251227A94AB301E23E0DBB6C996 | O125: 561B612975325E60133FAF268C0B001 | P125: F | Q125: F | R125: F | S125: 1 | T125: 2 | U125: 0.02 | AK125: 570251227A94AB301E23E0DBB6C996561B612975325E60133FAF268C0B001
A126: [ 합 계 ] | F126: =TRUNC(SUMIF(N119:N125, N118, F119:F125),0) -> 0.0 | H126: =TRUNC(SUMIF(N119:N125, N118, H119:H125),0) -> 0.0 | J126: =TRUNC(SUMIF(N119:N125, N118, J119:J125),0) -> 0.0 | L126: =F126+H126+J126 -> 0.0 | N126: TOTAL | O126: TOTAL
A128: 바탕만들기 - 친환경 석고보드면(줄퍼티), 천장 M2 건축 17-1-1.2 ( 호표 20 ) | N128: 570251227A94AB301E23E0DBB526C8
A129: F-Tape | B129: W:35~100mm | C129: M | E129: =단가대비표!O52 -> 73.00 | F129: =TRUNC(E129*D129,1) -> 0.0 | G129: =단가대비표!P52 -> 0.00 | H129: =TRUNC(G129*D129,1) -> 0.0 | I129: =단가대비표!V52 -> 0.00 | J129: =TRUNC(I129*D129,1) -> 0.0 | K129: =TRUNC(E129+G129+I129,1) -> 73.00 | L129: 0.0 | N129: 570251227A94AB301E23E0DBB526C8 | O129: 5027412279C120801A512E6518534BE0E45AFD | P129: F | Q129: F | R129: T | AK129: 570251227A94AB301E23E0DBB526C85027412279C120801A512E6518534BE0E45AFD
A130: 휠러 | C130: kg | E130: =단가대비표!O53 -> 1,150.00 | F130: 0.0 | G130: =단가대비표!P53 -> 0.00 | H130: 0.0 | I130: =단가대비표!V53 -> 0.00 | J130: 0.0 | K130: 1,150.00 | L130: 0.0 | N130: 570251227A94AB301E23E0DBB526C8 | O130: 5027412279C120801A512E6518534BE0E45B86 | P130: F | Q130: F | R130: T | AK130: 570251227A94AB301E23E0DBB526C85027412279C120801A512E6518534BE0E45B86
A131: 퍼티 | B131: 퍼티, 친환경, 내부 | C131: kg | E131: =단가대비표!O51 -> 1,044.44 | F131: 0.0 | G131: =단가대비표!P51 -> 0.00 | H131: 0.0 | I131: =단가대비표!V51 -> 0.00 | J131: 0.0 | K131: 1,044.40 | L131: 0.0 | N131: 570251227A94AB301E23E0DBB526C8 | O131: 5027412279C120801A512E6518534BE0E60961 | P131: F | Q131: F | R131: T | AK131: 570251227A94AB301E23E0DBB526C85027412279C120801A512E6518534BE0E60961
A132: 연마지 | B132: 연마지, #120~180, 230*280mm | C132: 장 | E132: =단가대비표!O48 -> 200.00 | F132: 0.0 | G132: =단가대비표!P48 -> 0.00 | H132: 0.0 | I132: =단가대비표!V48 -> 0.00 | J132: 0.0 | K132: 200.00 | L132: 0.0 | N132: 570251227A94AB301E23E0DBB526C8 | O132: 502741227AEE52301723DDC2087C4A138990BA | P132: F | Q132: F | R132: T | AK132: 570251227A94AB301E23E0DBB526C8502741227AEE52301723DDC2087C4A138990BA
A133: 도장공 | B133: 일반공사 직종 | C133: 인 | E133: =단가대비표!O80 -> 0.00 | F133: 0.0 | G133: =단가대비표!P80 -> 132,552.00 | H133: 0.0 | I133: =단가대비표!V80 -> 0.00 | J133: 0.0 | K133: 132,552.00 | L133: 0.0 | N133: 570251227A94AB301E23E0DBB526C8 | O133: 57D121207AA57E8018ED12DDCCCFFFC14BB81B | P133: F | Q133: F | R133: T | V133: 1 | W133: 2 | AK133: 570251227A94AB301E23E0DBB526C857D121207AA57E8018ED12DDCCCFFFC14BB81B
A134: 보통인부 | B134: 일반공사 직종 | C134: 인 | E134: =단가대비표!O70 -> 0.00 | F134: 0.0 | G134: =단가대비표!P70 -> 94,338.00 | H134: 0.0 | I134: =단가대비표!V70 -> 0.00 | J134: 0.0 | K134: 94,338.00 | L134: 0.0 | N134: 570251227A94AB301E23E0DBB526C8 | O134: 57D121207AA57E8018ED12DDCCCFFFC14BBAC2 | P134: F | Q134: F | R134: T | V134: 1 | W134: 2 | AK134: 570251227A94AB301E23E0DBB526C857D121207AA57E8018ED12DDCCCFFFC14BBAC2
A135: 노임할증 | B135: 인력품의 20% | C135: 식 | E135: 0.00 | F135: 0.0 | G135: =TRUNC(SUMIF(V129:V136, RIGHTB(O135, 1), H129:H136)*U135, 2) -> 0.00 | H135: 0.0 | I135: 0.00 | J135: 0.0 | K135: 0.00 | L135: 0.0 | N135: 570251227A94AB301E23E0DBB526C8 | O135: 561B612975325E60133FAF268C0B001 | P135: F | Q135: F | R135: F | S135: 1 | T135: 1 | U135: 0.2 | AK135: 570251227A94AB301E23E0DBB526C8561B612975325E60133FAF268C08002
A136: 공구손료 | B136: 인력품의 2% | C136: 식 | E136: 0.00 | F136: 0.0 | G136: 0.00 | H136: 0.0 | I136: =TRUNC(SUMIF(W129:W136, RIGHTB(O136, 1), H129:H136)*U136, 2) -> 0.00 | J136: 0.0 | K136: 0.00 | L136: 0.0 | N136: 570251227A94AB301E23E0DBB526C8 | O136: 561B612975325E60133FAF268C08002 | P136: F | Q136: F | R136: F | S136: 1 | T136: 2 | U136: 0.02 | AK136: 570251227A94AB301E23E0DBB526C8561B612975325E60133FAF268C0B001
A137: [ 합 계 ] | F137: =TRUNC(SUMIF(N129:N136, N128, F129:F136),0) -> 0.0 | H137: =TRUNC(SUMIF(N129:N136, N128, H129:H136),0) -> 0.0 | J137: =TRUNC(SUMIF(N129:N136, N128, J129:J136),0) -> 0.0 | L137: =F137+H137+J137 -> 0.0 | N137: TOTAL | O137: TOTAL
A139: 인조대리석마감 20T M2 건축 9-1-1 ( 호표 21 ) | N139: 570261227200141014F2292A11BF52
A140: 인조대리석 | B140: 인조대리석, 400*400*20mm, 글로톤, GP/MJ/SK/MA | C140: M2 | E140: =단가대비표!O39 -> 41,000.00 | F140: =TRUNC(E140*D140,1) -> 0.0 | G140: =단가대비표!P39 -> 0.00 | H140: =TRUNC(G140*D140,1) -> 0.0 | I140: =단가대비표!V39 -> 0.00 | J140: =TRUNC(I140*D140,1) -> 0.0 | K140: =TRUNC(E140+G140+I140,1) -> 41,000.00 | L140: 0.0 | N140: 570261227200141014F2292A11BF52 | O140: 5027512373802950120E129BD49A7FA9669EBD | P140: F | Q140: F | R140: T | AK140: 570261227200141014F2292A11BF525027512373802950120E129BD49A7FA9669EBD
A141: 에폭시접착제 | B141: 에폭시접착제, 석재용 | C141: kg | E141: =단가대비표!O54 -> 2,550.00 | F141: =TRUNC(E141*D141,1) -> 0.0 | G141: =단가대비표!P54 -> 0.00 | H141: =TRUNC(G141*D141,1) -> 0.0 | I141: =단가대비표!V54 -> 0.00 | J141: =TRUNC(I141*D141,1) -> 0.0 | K141: 2,550.00 | L141: 0.0 | N141: 570261227200141014F2292A11BF52 | O141: 5027412279C120801A512CBB18828B90D17DC1 | P141: F | Q141: F | R141: T | AK141: 570261227200141014F2292A11BF525027412279C120801A512CBB18828B90D17DC1
A142: 대리석/테라조판붙임(습식) | B142: 벽, 자재별도(시공비) | C142: M2 | E142: =일위대가목록!E64 -> 0.00 | F142: =TRUNC(E142*D142,1) -> 0.0 | G142: =일위대가목록!F64 -> 0.00 | H142: =TRUNC(G142*D142,1) -> 0.0 | I142: =일위대가목록!G64 -> 0.00 | J142: =TRUNC(I142*D142,1) -> 0.0 | K142: 0.00 | L142: 0.0 | N142: 570261227200141014F2292A11BF52 | O142: 57026122720017E0182F5C8CF18D2F | P142: T | Q142: F | R142: F | AK142: 570261227200141014F2292A11BF5257026122720017E0182F5C8CF18D2F
A143: [ 합 계 ] | F143: =TRUNC(SUMIF(N140:N142, N139, F140:F142),0) -> 0.0 | H143: =TRUNC(SUMIF(N140:N142, N139, H140:H142),0) -> 0.0 | J143: =TRUNC(SUMIF(N140:N142, N139, J140:J142),0) -> 0.0 | L143: =F143+H143+J143 -> 0.0 | N143: TOTAL | O143: TOTAL
A145: 석고판 붙임(바탕+치장) 벽, 일반9.5mm 2겹 M2 ( 호표 22 ) | N145: 5702412D70B0C2301A7422D4027BDF
A146: 석고보드 | B146: 석고보드, 평보드, 9.5*900*1800mm(㎡) | C146: M2 | E146: =단가대비표!O27 -> 1,830.00 | F146: =TRUNC(E146*D146,1) -> 0.0 | G146: =단가대비표!P27 -> 0.00 | H146: =TRUNC(G146*D146,1) -> 0.0 | I146: =단가대비표!V27 -> 0.00 | J146: =TRUNC(I146*D146,1) -> 0.0 | K146: =TRUNC(E146+G146+I146,1) -> 1,830.00 | L146: =TRUNC(F146+H146+J146,1) -> 0.0 | N146: 5702412D70B0C2301A7422D4027BDF | O146: 5027512373802950104088CA03990BB21C213E | P146: F | Q146: F | R146: T | AK146: 5702412D70B0C2301A7422D4027BDF5027512373802950104088CA03990BB21C213E
A147: 석고판 나사 고정(바탕용) 설치비 | B147: 벽, 2겹 붙임 | C147: M2 | E147: =일위대가목록!E65 -> 0.00 | F147: =TRUNC(E147*D147,1) -> 0.0 | G147: =일위대가목록!F65 -> 0.00 | H147: =TRUNC(G147*D147,1) -> 0.0 | I147: =일위대가목록!G65 -> 0.00 | J147: =TRUNC(I147*D147,1) -> 0.0 | K147: =TRUNC(E147+G147+I147,1) -> 0.00 | L147: =TRUNC(F147+H147+J147,1) -> 0.0 | N147: 5702412D70B0C2301A7422D4027BDF | O147: 5702412D70B0C2301A7422D40303B7 | P147: T | Q147: F | R147: F | AK147: 5702412D70B0C2301A7422D4027BDF5702412D70B0C2301A7422D40303B7
A148: [ 합 계 ] | F148: =TRUNC(SUMIF(N146:N147, N145, F146:F147),0) -> 0.0 | H148: =TRUNC(SUMIF(N146:N147, N145, H146:H147),0) -> 0.0 | J148: =TRUNC(SUMIF(N146:N147, N145, J146:J147),0) -> 0.0 | L148: =F148+H148+J148 -> 0.0 | N148: TOTAL | O148: TOTAL
A150: 석고판 붙임(바탕+치장) 천장, 일반9.5mm 2겹 M2 ( 호표 23 ) | N150: 5702412D70B0C230196ED746EBDC30
A151: 석고판 나사 고정(바탕용) 설치비 | B151: 천장, 2겹 붙임 | C151: M2 | E151: =일위대가목록!E66 -> 0.00 | F151: =TRUNC(E151*D151,1) -> 0.0 | G151: =일위대가목록!F66 -> 0.00 | H151: =TRUNC(G151*D151,1) -> 0.0 | I151: =일위대가목록!G66 -> 0.00 | J151: =TRUNC(I151*D151,1) -> 0.0 | K151: =TRUNC(E151+G151+I151,1) -> 0.00 | L151: =TRUNC(F151+H151+J151,1) -> 0.0 | N151: 5702412D70B0C230196ED746EBDC30 | O151: 5702412D70B0C230196ED746EBD97C | P151: T | Q151: F | R151: F | AK151: 5702412D70B0C230196ED746EBDC305702412D70B0C230196ED746EBD97C
A152: 석고보드 | B152: 석고보드, 평보드, 9.5*900*1800mm(㎡) | C152: M2 | E152: =단가대비표!O27 -> 1,830.00 | F152: =TRUNC(E152*D152,1) -> 0.0 | G152: =단가대비표!P27 -> 0.00 | H152: =TRUNC(G152*D152,1) -> 0.0 | I152: =단가대비표!V27 -> 0.00 | J152: =TRUNC(I152*D152,1) -> 0.0 | K152: =TRUNC(E152+G152+I152,1) -> 1,830.00 | L152: =TRUNC(F152+H152+J152,1) -> 0.0 | N152: 5702412D70B0C230196ED746EBDC30 | O152: 5027512373802950104088CA03990BB21C213E | P152: F | Q152: F | R152: T | AK152: 5702412D70B0C230196ED746EBDC305027512373802950104088CA03990BB21C213E
A153: [ 합 계 ] | F153: =TRUNC(SUMIF(N151:N152, N150, F151:F152),0) -> 0.0 | H153: =TRUNC(SUMIF(N151:N152, N150, H151:H152),0) -> 0.0 | J153: =TRUNC(SUMIF(N151:N152, N150, J151:J152),0) -> 0.0 | L153: =F153+H153+J153 -> 0.0 | N153: TOTAL | O153: TOTAL
A155: 모르타르 바름 바닥, 30mm M2 건축 10-1 준용 ( 호표 24 ) | N155: 5702C12878813730115E9C42A7D401
A156: 모르타르(비빔품 제외) | B156: 배합비 1:3, 시멘트, 모래 별도 | C156: M3 | E156: =일위대가목록!E67 -> 0.00 | F156: =TRUNC(E156*D156,1) -> 0.0 | G156: =일위대가목록!F67 -> 0.00 | H156: =TRUNC(G156*D156,1) -> 0.0 | I156: =일위대가목록!G67 -> 0.00 | J156: =TRUNC(I156*D156,1) -> 0.0 | K156: =TRUNC(E156+G156+I156,1) -> 0.00 | L156: =TRUNC(F156+H156+J156,1) -> 0.0 | N156: 5702C12878813730115E9C42A7D401 | O156: 5702C128788134701EBA3CF989DBF3 | P156: T | Q156: F | R156: F | AK156: 5702C12878813730115E9C42A7D4015702C128788134701EBA3CF989DBF3
A157: 바탕고르기 | B157: 바닥, 24mm 이하 기준 | C157: M2 | E157: =일위대가목록!E68 -> 0.00 | F157: =TRUNC(E157*D157,1) -> 0.0 | G157: =일위대가목록!F68 -> 0.00 | H157: =TRUNC(G157*D157,1) -> 0.0 | I157: =일위대가목록!G68 -> 0.00 | J157: =TRUNC(I157*D157,1) -> 0.0 | K157: =TRUNC(E157+G157+I157,1) -> 0.00 | L157: =TRUNC(F157+H157+J157,1) -> 0.0 | N157: 5702C12878813730115E9C42A7D401 | O157: 57026122717B70B011412C1A2B5AE4 | P157: T | Q157: F | R157: F | AK157: 5702C12878813730115E9C42A7D40157026122717B70B011412C1A2B5AE4
A158: [ 합 계 ] | F158: =TRUNC(SUMIF(N156:N157, N155, F156:F157),0) -> 0.0 | H158: =TRUNC(SUMIF(N156:N157, N155, H156:H157),0) -> 0.0 | J158: =TRUNC(SUMIF(N156:N157, N155, J156:J157),0) -> 0.0 | L158: =F158+H158+J158 -> 0.0 | N158: TOTAL | O158: TOTAL
A160: 석고보드 철거(천장) 9.5mm*2겹 M2 ( 호표 25 ) | N160: 5703A12276CF2A8017764497A1BAE6
A161: 건축목공 | B161: 일반공사 직종 | C161: 인 | E161: =단가대비표!O76 -> 0.00 | F161: =TRUNC(E161*D161,1) -> 0.0 | G161: =단가대비표!P76 -> 148,851.00 | H161: =TRUNC(G161*D161,1) -> 0.0 | I161: =단가대비표!V76 -> 0.00 | J161: =TRUNC(I161*D161,1) -> 0.0 | K161: =TRUNC(E161+G161+I161,1) -> 148,851.00 | L161: =TRUNC(F161+H161+J161,1) -> 0.0 | N161: 5703A12276CF2A8017764497A1BAE6 | O161: 57D121207AA57E8018ED12DDCCCFFFC14BB811 | P161: F | Q161: F | R161: T | AK161: 5703A12276CF2A8017764497A1BAE657D121207AA57E8018ED12DDCCCFFFC14BB811
A162: 보통인부 | B162: 일반공사 직종 | C162: 인 | E162: =단가대비표!O70 -> 0.00 | F162: =TRUNC(E162*D162,1) -> 0.0 | G162: =단가대비표!P70 -> 94,338.00 | H162: =TRUNC(G162*D162,1) -> 0.0 | I162: =단가대비표!V70 -> 0.00 | J162: =TRUNC(I162*D162,1) -> 0.0 | K162: =TRUNC(E162+G162+I162,1) -> 94,338.00 | L162: =TRUNC(F162+H162+J162,1) -> 0.0 | N162: 5703A12276CF2A8017764497A1BAE6 | O162: 57D121207AA57E8018ED12DDCCCFFFC14BBAC2 | P162: F | Q162: F | R162: T | AK162: 5703A12276CF2A8017764497A1BAE657D121207AA57E8018ED12DDCCCFFFC14BBAC2
A163: [ 합 계 ] | F163: =TRUNC(SUMIF(N161:N162, N160, F161:F162),0) -> 0.0 | H163: =TRUNC(SUMIF(N161:N162, N160, H161:H162),0) -> 0.0 | J163: =TRUNC(SUMIF(N161:N162, N160, J161:J162),0) -> 0.0 | L163: =F163+H163+J163 -> 0.0 | N163: TOTAL | O163: TOTAL
A165: 벽돌 및 불럭벽 철거 소형브레이커 M3 건축 18-1-3,2 ( 호표 26 ) | N165: 5703A12276CC562015614BAEA16A6C
A166: 페이브먼트 브레이커 | B166: 25.0kg(55#) | C166: HR | E166: =일위대가목록!E69 -> 0.00 | F166: =TRUNC(E166*D166,1) -> 0.0 | G166: =일위대가목록!F69 -> 0.00 | H166: =TRUNC(G166*D166,1) -> 0.0 | I166: =일위대가목록!G69 -> 0.00 | J166: =TRUNC(I166*D166,1) -> 0.0 | K166: =TRUNC(E166+G166+I166,1) -> 0.00 | L166: 0.0 | N166: 5703A12276CC562015614BAEA16A6C | O166: 5016E12C7048E9C018EAE1E70E00E023383D2FA8 | P166: T | Q166: F | R166: F | AK166: 5703A12276CC562015614BAEA16A6C5016E12C7048E9C018EAE1E70E00E023383D2FA8
A167: 공기압축기(이동식) | B167: 3.5㎥/min | C167: HR | E167: =일위대가목록!E70 -> 0.00 | F167: =TRUNC(E167*D167,1) -> 0.0 | G167: =일위대가목록!F70 -> 0.00 | H167: =TRUNC(G167*D167,1) -> 0.0 | I167: =일위대가목록!G70 -> 0.00 | J167: =TRUNC(I167*D167,1) -> 0.0 | K167: 0.00 | L167: 0.0 | N167: 5703A12276CC562015614BAEA16A6C | O167: 5016E12C7048E9C018EB8DD2B2438D9E9CAD705D | P167: T | Q167: F | R167: F | AK167: 5703A12276CC562015614BAEA16A6C5016E12C7048E9C018EB8DD2B2438D9E9CAD705D
A168: 착암공 | B168: 일반공사 직종 | C168: 인 | E168: =단가대비표!O75 -> 0.00 | F168: =TRUNC(E168*D168,1) -> 0.0 | G168: =단가대비표!P75 -> 113,289.00 | H168: =TRUNC(G168*D168,1) -> 0.0 | I168: =단가대비표!V75 -> 0.00 | J168: =TRUNC(I168*D168,1) -> 0.0 | K168: 113,289.00 | L168: 0.0 | N168: 5703A12276CC562015614BAEA16A6C | O168: 57D121207AA57E8018ED12DDCCCFFFC14BBBE3 | P168: F | Q168: F | R168: T | V168: 1 | AK168: 5703A12276CC562015614BAEA16A6C57D121207AA57E8018ED12DDCCCFFFC14BBBE3
A169: 보통인부 | B169: 일반공사 직종 | C169: 인 | E169: =단가대비표!O70 -> 0.00 | F169: =TRUNC(E169*D169,1) -> 0.0 | G169: =단가대비표!P70 -> 94,338.00 | H169: =TRUNC(G169*D169,1) -> 0.0 | I169: =단가대비표!V70 -> 0.00 | J169: =TRUNC(I169*D169,1) -> 0.0 | K169: 94,338.00 | L169: 0.0 | N169: 5703A12276CC562015614BAEA16A6C | O169: 57D121207AA57E8018ED12DDCCCFFFC14BBAC2 | P169: F | Q169: F | R169: T | V169: 1 | AK169: 5703A12276CC562015614BAEA16A6C57D121207AA57E8018ED12DDCCCFFFC14BBAC2
A170: 잡재료 | B170: 인력품의 1% | C170: 식 | E170: =TRUNC(SUMIF(V166:V170, RIGHTB(O170, 1), H166:H170)*U170, 2) -> 0.00 | F170: =TRUNC(E170*D170,1) -> 0.0 | G170: 0.00 | H170: =TRUNC(G170*D170,1) -> 0.0 | I170: 0.00 | J170: =TRUNC(I170*D170,1) -> 0.0 | K170: 0.00 | L170: 0.0 | N170: 5703A12276CC562015614BAEA16A6C | O170: 561B612975325E60133FAF268C0B001 | P170: F | Q170: F | R170: F | S170: 1 | T170: 0 | U170: 0.01 | AK170: 5703A12276CC562015614BAEA16A6C561B612975325E60133FAF268C0B001
A171: [ 합 계 ] | F171: =TRUNC(SUMIF(N166:N170, N165, F166:F170),0) -> 0.0 | H171: =TRUNC(SUMIF(N166:N170, N165, H166:H170),0) -> 0.0 | J171: =TRUNC(SUMIF(N166:N170, N165, J166:J170),0) -> 0.0 | L171: =F171+H171+J171 -> 0.0 | N171: TOTAL | O171: TOTAL
A173: 목조, 칸막이벽 철거 해체재 재사용 안 함 M2 건축 18-1-2 ( 호표 27 ) | N173: 5703A12276CF2A8014A38C81D175F0
A174: 건축목공 | B174: 일반공사 직종 | C174: 인 | E174: =단가대비표!O76 -> 0.00 | F174: =TRUNC(E174*D174,1) -> 0.0 | G174: =단가대비표!P76 -> 148,851.00 | H174: =TRUNC(G174*D174,1) -> 0.0 | I174: =단가대비표!V76 -> 0.00 | J174: =TRUNC(I174*D174,1) -> 0.0 | K174: =TRUNC(E174+G174+I174,1) -> 148,851.00 | L174: =TRUNC(F174+H174+J174,1) -> 0.0 | N174: 5703A12276CF2A8014A38C81D175F0 | O174: 57D121207AA57E8018ED12DDCCCFFFC14BB811 | P174: F | Q174: F | R174: T | AK174: 5703A12276CF2A8014A38C81D175F057D121207AA57E8018ED12DDCCCFFFC14BB811
A175: 보통인부 | B175: 일반공사 직종 | C175: 인 | E175: =단가대비표!O70 -> 0.00 | F175: =TRUNC(E175*D175,1) -> 0.0 | G175: =단가대비표!P70 -> 94,338.00 | H175: =TRUNC(G175*D175,1) -> 0.0 | I175: =단가대비표!V70 -> 0.00 | J175: =TRUNC(I175*D175,1) -> 0.0 | K175: =TRUNC(E175+G175+I175,1) -> 94,338.00 | L175: =TRUNC(F175+H175+J175,1) -> 0.0 | N175: 5703A12276CF2A8014A38C81D175F0 | O175: 57D121207AA57E8018ED12DDCCCFFFC14BBAC2 | P175: F | Q175: F | R175: T | AK175: 5703A12276CF2A8014A38C81D175F057D121207AA57E8018ED12DDCCCFFFC14BBAC2
A176: [ 합 계 ] | F176: =TRUNC(SUMIF(N174:N175, N173, F174:F175),0) -> 0.0 | H176: =TRUNC(SUMIF(N174:N175, N173, H174:H175),0) -> 0.0 | J176: =TRUNC(SUMIF(N174:N175, N173, J174:J175),0) -> 0.0 | L176: =F176+H176+J176 -> 0.0 | N176: TOTAL | O176: TOTAL
A178: 경량철골천정틀철거 M2 ( 호표 28 ) | N178: 5703A12276C6CBC01B8F5377A65C12
A179: 보통인부 | B179: 일반공사 직종 | C179: 인 | E179: =단가대비표!O70 -> 0.00 | F179: =TRUNC(E179*D179,1) -> 0.0 | G179: =단가대비표!P70 -> 94,338.00 | H179: =TRUNC(G179*D179,1) -> 0.0 | I179: =단가대비표!V70 -> 0.00 | J179: =TRUNC(I179*D179,1) -> 0.0 | K179: =TRUNC(E179+G179+I179,1) -> 94,338.00 | L179: =TRUNC(F179+H179+J179,1) -> 0.0 | N179: 5703A12276C6CBC01B8F5377A65C12 | O179: 57D121207AA57E8018ED12DDCCCFFFC14BBAC2 | P179: F | Q179: F | R179: T | AK179: 5703A12276C6CBC01B8F5377A65C1257D121207AA57E8018ED12DDCCCFFFC14BBAC2
A180: 특별인부 | B180: 일반공사 직종 | C180: 인 | E180: =단가대비표!O71 -> 0.00 | F180: =TRUNC(E180*D180,1) -> 0.0 | G180: =단가대비표!P71 -> 115,272.00 | H180: =TRUNC(G180*D180,1) -> 0.0 | I180: =단가대비표!V71 -> 0.00 | J180: =TRUNC(I180*D180,1) -> 0.0 | K180: =TRUNC(E180+G180+I180,1) -> 115,272.00 | L180: =TRUNC(F180+H180+J180,1) -> 0.0 | N180: 5703A12276C6CBC01B8F5377A65C12 | O180: 57D121207AA57E8018ED12DDCCCFFFC14BBAC3 | P180: F | Q180: F | R180: T | AK180: 5703A12276C6CBC01B8F5377A65C1257D121207AA57E8018ED12DDCCCFFFC14BBAC3
A181: [ 합 계 ] | F181: =TRUNC(SUMIF(N179:N180, N178, F179:F180),0) -> 0.0 | H181: =TRUNC(SUMIF(N179:N180, N178, H179:H180),0) -> 0.0 | J181: =TRUNC(SUMIF(N179:N180, N178, J179:J180),0) -> 0.0 | L181: =F181+H181+J181 -> 0.0 | N181: TOTAL | O181: TOTAL
A183: 창호철거 M2 ( 호표 29 ) | N183: 5703A12276C6CBC01B8F5377AA388B
A184: 보통인부 | B184: 일반공사 직종 | C184: 인 | E184: =단가대비표!O70 -> 0.00 | F184: =TRUNC(E184*D184,1) -> 0.0 | G184: =단가대비표!P70 -> 94,338.00 | H184: =TRUNC(G184*D184,1) -> 0.0 | I184: =단가대비표!V70 -> 0.00 | J184: =TRUNC(I184*D184,1) -> 0.0 | K184: =TRUNC(E184+G184+I184,1) -> 94,338.00 | L184: =TRUNC(F184+H184+J184,1) -> 0.0 | N184: 5703A12276C6CBC01B8F5377AA388B | O184: 57D121207AA57E8018ED12DDCCCFFFC14BBAC2 | P184: F | Q184: F | R184: T | AK184: 5703A12276C6CBC01B8F5377AA388B57D121207AA57E8018ED12DDCCCFFFC14BBAC2
A185: [ 합 계 ] | F185: =TRUNC(SUMIF(N184:N184, N183, F184:F184),0) -> 0.0 | H185: =TRUNC(SUMIF(N184:N184, N183, H184:H184),0) -> 0.0 | J185: =TRUNC(SUMIF(N184:N184, N183, J184:J184),0) -> 0.0 | L185: =F185+H185+J185 -> 0.0 | N185: TOTAL | O185: TOTAL
A187: 화강석판석철거 M2 ( 호표 30 ) | N187: 5703A12276C6CBC01B8F53769560F7
A188: 보통인부 | B188: 일반공사 직종 | C188: 인 | E188: =단가대비표!O70 -> 0.00 | F188: =TRUNC(E188*D188,1) -> 0.0 | G188: =단가대비표!P70 -> 94,338.00 | H188: =TRUNC(G188*D188,1) -> 0.0 | I188: =단가대비표!V70 -> 0.00 | J188: =TRUNC(I188*D188,1) -> 0.0 | K188: =TRUNC(E188+G188+I188,1) -> 94,338.00 | L188: =TRUNC(F188+H188+J188,1) -> 0.0 | N188: 5703A12276C6CBC01B8F53769560F7 | O188: 57D121207AA57E8018ED12DDCCCFFFC14BBAC2 | P188: F | Q188: F | R188: T | AK188: 5703A12276C6CBC01B8F53769560F757D121207AA57E8018ED12DDCCCFFFC14BBAC2
A189: [ 합 계 ] | F189: =TRUNC(SUMIF(N188:N188, N187, F188:F188),0) -> 0.0 | H189: =TRUNC(SUMIF(N188:N188, N187, H188:H188),0) -> 0.0 | J189: =TRUNC(SUMIF(N188:N188, N187, J188:J188),0) -> 0.0 | L189: =F189+H189+J189 -> 0.0 | N189: TOTAL | O189: TOTAL
A191: 악세스후로아철거 카펫타일포함 M2 ( 호표 31 ) | N191: 5703A12276C6CBC01B8F53769560F6
A192: 보통인부 | B192: 일반공사 직종 | C192: 인 | E192: =단가대비표!O70 -> 0.00 | F192: =TRUNC(E192*D192,1) -> 0.0 | G192: =단가대비표!P70 -> 94,338.00 | H192: =TRUNC(G192*D192,1) -> 0.0 | I192: =단가대비표!V70 -> 0.00 | J192: =TRUNC(I192*D192,1) -> 0.0 | K192: =TRUNC(E192+G192+I192,1) -> 94,338.00 | L192: =TRUNC(F192+H192+J192,1) -> 0.0 | N192: 5703A12276C6CBC01B8F53769560F6 | O192: 57D121207AA57E8018ED12DDCCCFFFC14BBAC2 | P192: F | Q192: F | R192: T | AK192: 5703A12276C6CBC01B8F53769560F657D121207AA57E8018ED12DDCCCFFFC14BBAC2
A193: [ 합 계 ] | F193: =TRUNC(SUMIF(N192:N192, N191, F192:F192),0) -> 0.0 | H193: =TRUNC(SUMIF(N192:N192, N191, H192:H192),0) -> 0.0 | J193: =TRUNC(SUMIF(N192:N192, N191, J192:J192),0) -> 0.0 | L193: =F193+H193+J193 -> 0.0 | N193: TOTAL | O193: TOTAL
A195: 플로어링 마루 플로어링보드, 15mm, 삼겹적층플로어링, 도장제품(UV) M2 건축 11-2-3 ( 호표 32 ) | N195: 5702212874485A401CB1D431F5F8DE
A196: 플로어링보드 | B196: 플로어링보드, 15mm, 삼겹적층플로어링, 도장제품(UV) | C196: M2 | E196: =단가대비표!O38 -> 39,060.00 | F196: =TRUNC(E196*D196,1) -> 0.0 | G196: =단가대비표!P38 -> 0.00 | H196: =TRUNC(G196*D196,1) -> 0.0 | I196: =단가대비표!V38 -> 0.00 | J196: =TRUNC(I196*D196,1) -> 0.0 | K196: =TRUNC(E196+G196+I196,1) -> 39,060.00 | L196: =TRUNC(F196+H196+J196,1) -> 0.0 | N196: 5702212874485A401CB1D431F5F8DE | O196: 5027512373802950120E16774BD3283BC8CC00 | P196: F | Q196: F | R196: T | AK196: 5702212874485A401CB1D431F5F8DE5027512373802950120E16774BD3283BC8CC00
A197: 플로어링 마루 - 노무비 및 공구손료 | C197: M2 | E197: =일위대가목록!E36 -> 0.00 | F197: =TRUNC(E197*D197,1) -> 0.0 | G197: =일위대가목록!F36 -> 0.00 | H197: =TRUNC(G197*D197,1) -> 0.0 | I197: =일위대가목록!G36 -> 0.00 | J197: =TRUNC(I197*D197,1) -> 0.0 | K197: =TRUNC(E197+G197+I197,1) -> 0.00 | L197: =TRUNC(F197+H197+J197,1) -> 0.0 | N197: 5702212874485A401CB1D431F5F8DE | O197: 5702212874485A401CB1D435502F46 | P197: T | Q197: F | R197: F | AK197: 5702212874485A401CB1D431F5F8DE5702212874485A401CB1D435502F46
A198: [ 합 계 ] | F198: =TRUNC(SUMIF(N196:N197, N195, F196:F197),0) -> 0.0 | H198: =TRUNC(SUMIF(N196:N197, N195, H196:H197),0) -> 0.0 | J198: =TRUNC(SUMIF(N196:N197, N195, J196:J197),0) -> 0.0 | L198: =F198+H198+J198 -> 0.0 | N198: TOTAL | O198: TOTAL
A200: 플로어링 마루 - 노무비 및 공구손료 M2 건축 11-2-3 ( 호표 33 ) | N200: 5702212874485A401CB1D435502F46
A201: 내장공 | B201: 일반공사 직종 | C201: 인 | E201: =단가대비표!O81 -> 0.00 | F201: =TRUNC(E201*D201,1) -> 0.0 | G201: =단가대비표!P81 -> 144,150.00 | H201: =TRUNC(G201*D201,1) -> 0.0 | I201: =단가대비표!V81 -> 0.00 | J201: =TRUNC(I201*D201,1) -> 0.0 | K201: =TRUNC(E201+G201+I201,1) -> 144,150.00 | L201: 0.0 | N201: 5702212874485A401CB1D435502F46 | O201: 57D121207AA57E8018ED12DDCCCFFFC14BB939 | P201: F | Q201: F | R201: T | V201: 1 | AK201: 5702212874485A401CB1D435502F4657D121207AA57E8018ED12DDCCCFFFC14BB939
A202: 보통인부 | B202: 일반공사 직종 | C202: 인 | E202: =단가대비표!O70 -> 0.00 | F202: =TRUNC(E202*D202,1) -> 0.0 | G202: =단가대비표!P70 -> 94,338.00 | H202: =TRUNC(G202*D202,1) -> 0.0 | I202: =단가대비표!V70 -> 0.00 | J202: =TRUNC(I202*D202,1) -> 0.0 | K202: 94,338.00 | L202: 0.0 | N202: 5702212874485A401CB1D435502F46 | O202: 57D121207AA57E8018ED12DDCCCFFFC14BBAC2 | P202: F | Q202: F | R202: T | V202: 1 | AK202: 5702212874485A401CB1D435502F4657D121207AA57E8018ED12DDCCCFFFC14BBAC2
A203: 공구손료 | B203: 인력품의 2% | C203: 식 | E203: 0.00 | F203: =TRUNC(E203*D203,1) -> 0.0 | G203: 0.00 | H203: =TRUNC(G203*D203,1) -> 0.0 | I203: =TRUNC(SUMIF(V201:V203, RIGHTB(O203, 1), H201:H203)*U203, 2) -> 0.00 | J203: =TRUNC(I203*D203,1) -> 0.0 | K203: 0.00 | L203: 0.0 | N203: 5702212874485A401CB1D435502F46 | O203: 561B612975325E60133FAF268C0B001 | P203: F | Q203: F | R203: F | S203: 1 | T203: 2 | U203: 0.02 | AK203: 5702212874485A401CB1D435502F46561B612975325E60133FAF268C0B001
A204: [ 합 계 ] | F204: =TRUNC(SUMIF(N201:N203, N200, F201:F203),0) -> 0.0 | H204: =TRUNC(SUMIF(N201:N203, N200, H201:H203),0) -> 0.0 | J204: =TRUNC(SUMIF(N201:N203, N200, J201:J203),0) -> 0.0 | L204: =F204+H204+J204 -> 0.0 | N204: TOTAL | O204: TOTAL
A206: 벽체틀 자재 별도 M2 건축 11-1-3.1 ( 호표 34 ) | N206: 570221287703B51012B77AF35FC7C8
A207: 건축목공 | B207: 일반공사 직종 | C207: 인 | E207: =단가대비표!O76 -> 0.00 | F207: =TRUNC(E207*D207,1) -> 0.0 | G207: =단가대비표!P76 -> 148,851.00 | H207: =TRUNC(G207*D207,1) -> 0.0 | I207: =단가대비표!V76 -> 0.00 | J207: =TRUNC(I207*D207,1) -> 0.0 | K207: =TRUNC(E207+G207+I207,1) -> 148,851.00 | L207: 0.0 | N207: 570221287703B51012B77AF35FC7C8 | O207: 57D121207AA57E8018ED12DDCCCFFFC14BB811 | P207: F | Q207: F | R207: T | V207: 1 | AK207: 570221287703B51012B77AF35FC7C857D121207AA57E8018ED12DDCCCFFFC14BB811
A208: 보통인부 | B208: 일반공사 직종 | C208: 인 | E208: =단가대비표!O70 -> 0.00 | F208: =TRUNC(E208*D208,1) -> 0.0 | G208: =단가대비표!P70 -> 94,338.00 | H208: =TRUNC(G208*D208,1) -> 0.0 | I208: =단가대비표!V70 -> 0.00 | J208: =TRUNC(I208*D208,1) -> 0.0 | K208: 94,338.00 | L208: 0.0 | N208: 570221287703B51012B77AF35FC7C8 | O208: 57D121207AA57E8018ED12DDCCCFFFC14BBAC2 | P208: F | Q208: F | R208: T | V208: 1 | AK208: 570221287703B51012B77AF35FC7C857D121207AA57E8018ED12DDCCCFFFC14BBAC2
A209: 공구손료 | B209: 인력품의 2% | C209: 식 | E209: 0.00 | F209: =TRUNC(E209*D209,1) -> 0.0 | G209: 0.00 | H209: =TRUNC(G209*D209,1) -> 0.0 | I209: =TRUNC(SUMIF(V207:V209, RIGHTB(O209, 1), H207:H209)*U209, 2) -> 0.00 | J209: =TRUNC(I209*D209,1) -> 0.0 | K209: 0.00 | L209: 0.0 | N209: 570221287703B51012B77AF35FC7C8 | O209: 561B612975325E60133FAF268C0B001 | P209: F | Q209: F | R209: F | S209: 1 | T209: 2 | U209: 0.02 | AK209: 570221287703B51012B77AF35FC7C8561B612975325E60133FAF268C0B001
A210: [ 합 계 ] | F210: =TRUNC(SUMIF(N207:N209, N206, F207:F209),0) -> 0.0 | H210: =TRUNC(SUMIF(N207:N209, N206, H207:H209),0) -> 0.0 | J210: =TRUNC(SUMIF(N207:N209, N206, J207:J209),0) -> 0.0 | L210: =F210+H210+J210 -> 0.0 | N210: TOTAL | O210: TOTAL
A212: 경량 천장 철골틀 - 노무비 M2 건축 14-4 ( 호표 35 ) | N212: 5702112977EBF6401D6FD866B1D9AB
A213: 내장공 | B213: 일반공사 직종 | C213: 인 | E213: =단가대비표!O81 -> 0.00 | F213: =TRUNC(E213*D213,1) -> 0.0 | G213: =단가대비표!P81 -> 144,150.00 | H213: =TRUNC(G213*D213,1) -> 0.0 | I213: =단가대비표!V81 -> 0.00 | J213: =TRUNC(I213*D213,1) -> 0.0 | K213: =TRUNC(E213+G213+I213,1) -> 144,150.00 | L213: 0.0 | N213: 5702112977EBF6401D6FD866B1D9AB | O213: 57D121207AA57E8018ED12DDCCCFFFC14BB939 | P213: F | Q213: F | R213: T | V213: 1 | AK213: 5702112977EBF6401D6FD866B1D9AB57D121207AA57E8018ED12DDCCCFFFC14BB939
A214: 보통인부 | B214: 일반공사 직종 | C214: 인 | E214: =단가대비표!O70 -> 0.00 | F214: =TRUNC(E214*D214,1) -> 0.0 | G214: =단가대비표!P70 -> 94,338.00 | H214: =TRUNC(G214*D214,1) -> 0.0 | I214: =단가대비표!V70 -> 0.00 | J214: =TRUNC(I214*D214,1) -> 0.0 | K214: 94,338.00 | L214: 0.0 | N214: 5702112977EBF6401D6FD866B1D9AB | O214: 57D121207AA57E8018ED12DDCCCFFFC14BBAC2 | P214: F | Q214: F | R214: T | V214: 1 | AK214: 5702112977EBF6401D6FD866B1D9AB57D121207AA57E8018ED12DDCCCFFFC14BBAC2
A215: 공구손료 | B215: 인력품의 6% | C215: 식 | E215: 0.00 | F215: =TRUNC(E215*D215,1) -> 0.0 | G215: 0.00 | H215: =TRUNC(G215*D215,1) -> 0.0 | I215: =TRUNC(SUMIF(V213:V215, RIGHTB(O215, 1), H213:H215)*U215, 2) -> 0.00 | J215: =TRUNC(I215*D215,1) -> 0.0 | K215: 0.00 | L215: 0.0 | N215: 5702112977EBF6401D6FD866B1D9AB | O215: 561B612975325E60133FAF268C0B001 | P215: F | Q215: F | R215: F | S215: 1 | T215: 2 | U215: 0.06 | AK215: 5702112977EBF6401D6FD866B1D9AB561B612975325E60133FAF268C0B001
A216: [ 합 계 ] | F216: =TRUNC(SUMIF(N213:N215, N212, F213:F215),0) -> 0.0 | H216: =TRUNC(SUMIF(N213:N215, N212, H213:H215),0) -> 0.0 | J216: =TRUNC(SUMIF(N213:N215, N212, J213:J215),0) -> 0.0 | L216: =F216+H216+J216 -> 0.0 | N216: TOTAL | O216: TOTAL
A218: 잡철물제작설치(스테인리스) 간단 kg 건축 14-5 ( 호표 36 ) | N218: 57021129730EB9B017E1AB0526A6B4
A219: 잡철물제작(스테인리스) | B219: 간단 | C219: kg | E219: =일위대가목록!E40 -> 0.00 | F219: =TRUNC(E219*D219,1) -> 0.0 | G219: =일위대가목록!F40 -> 0.00 | H219: =TRUNC(G219*D219,1) -> 0.0 | I219: =일위대가목록!G40 -> 0.00 | J219: =TRUNC(I219*D219,1) -> 0.0 | K219: =TRUNC(E219+G219+I219,1) -> 0.00 | L219: =TRUNC(F219+H219+J219,1) -> 0.0 | N219: 57021129730EB9B017E1AB0526A6B4 | O219: 57021129730EB9B017E24D0DD5AD47 | P219: T | Q219: F | R219: F | AK219: 57021129730EB9B017E1AB0526A6B457021129730EB9B017E24D0DD5AD47
A220: 잡철물설치(스테인리스) | B220: 간단 | C220: kg | E220: =일위대가목록!E41 -> 0.00 | F220: =TRUNC(E220*D220,1) -> 0.0 | G220: =일위대가목록!F41 -> 0.00 | H220: =TRUNC(G220*D220,1) -> 0.0 | I220: =일위대가목록!G41 -> 0.00 | J220: =TRUNC(I220*D220,1) -> 0.0 | K220: =TRUNC(E220+G220+I220,1) -> 0.00 | L220: =TRUNC(F220+H220+J220,1) -> 0.0 | N220: 57021129730EB9B017E1AB0526A6B4 | O220: 57021129730EB9B017E24D0CCEBBF0 | P220: T | Q220: F | R220: F | AK220: 57021129730EB9B017E1AB0526A6B457021129730EB9B017E24D0CCEBBF0
A221: [ 합 계 ] | F221: =TRUNC(SUMIF(N219:N220, N218, F219:F220),0) -> 0.0 | H221: =TRUNC(SUMIF(N219:N220, N218, H219:H220),0) -> 0.0 | J221: =TRUNC(SUMIF(N219:N220, N218, J219:J220),0) -> 0.0 | L221: =F221+H221+J221 -> 0.0 | N221: TOTAL | O221: TOTAL
A223: 잡철물제작(스테인리스) 간단 kg 건축 14-5 ( 호표 37 ) | N223: 57021129730EB9B017E24D0DD5AD47
A224: 스테인리스강용피복아크용접봉 | B224: 스테인리스강용피복아크용접봉, Φ3.2mm, AWSE308 | C224: kg | E224: =단가대비표!O18 -> 0.00 | F224: =TRUNC(E224*D224,1) -> 0.0 | G224: =단가대비표!P18 -> 0.00 | H224: =TRUNC(G224*D224,1) -> 0.0 | I224: =단가대비표!V18 -> 0.00 | J224: =TRUNC(I224*D224,1) -> 0.0 | K224: =TRUNC(E224+G224+I224,1) -> 0.00 | L224: =TRUNC(F224+H224+J224,1) -> 0.0 | N224: 57021129730EB9B017E24D0DD5AD47 | O224: 5031812C73EA7400155BAF1273890679308D69 | P224: F | Q224: F | R224: T | AK224: 57021129730EB9B017E24D0DD5AD475031812C73EA7400155BAF1273890679308D69
A225: 산소가스 | B225: 기체 | C225: L | E225: =단가대비표!O14 -> 2.00 | F225: 0.0 | G225: =단가대비표!P14 -> 0.00 | H225: 0.0 | I225: =단가대비표!V14 -> 0.00 | J225: 0.0 | K225: 2.00 | L225: 0.0 | N225: 57021129730EB9B017E24D0DD5AD47 | O225: 50045120784057E018EBB4EBD58DAA1BA5EF39 | P225: F | Q225: F | R225: T | AK225: 57021129730EB9B017E24D0DD5AD4750045120784057E018EBB4EBD58DAA1BA5EF39
A226: 아세틸렌가스 | B226: 아세틸렌가스, kg | C226: kg | E226: =단가대비표!O16 -> 9,500.00 | F226: 0.0 | G226: =단가대비표!P16 -> 0.00 | H226: 0.0 | I226: =단가대비표!V16 -> 0.00 | J226: 0.0 | K226: 9,500.00 | L226: 0.0 | N226: 57021129730EB9B017E24D0DD5AD47 | O226: 5004212B7404C5D0199229C98DBAF15327D1A4 | P226: F | Q226: F | R226: T | AK226: 57021129730EB9B017E24D0DD5AD475004212B7404C5D0199229C98DBAF15327D1A4
A227: 용접기(교류) | B227: 500Amp | C227: HR | E227: =일위대가목록!E42 -> 0.00 | F227: 0.0 | G227: =일위대가목록!F42 -> 0.00 | H227: 0.0 | I227: =일위대가목록!G42 -> 0.00 | J227: 0.0 | K227: 0.00 | L227: 0.0 | N227: 57021129730EB9B017E24D0DD5AD47 | O227: 5016E12C7048EBF01E3DC3FA33389B3E21C50C39 | P227: T | Q227: F | R227: F | AK227: 57021129730EB9B017E24D0DD5AD475016E12C7048EBF01E3DC3FA33389B3E21C50C39
A228: 공통자재 | B228: 일반경비, 전력 | C228: kwh | E228: =단가대비표!O69 -> 0.00 | F228: 0.0 | G228: =단가대비표!P69 -> 0.00 | H228: 0.0 | I228: =단가대비표!V69 -> 87.00 | J228: 0.0 | K228: 87.00 | L228: 0.0 | N228: 57021129730EB9B017E24D0DD5AD47 | O228: 5743612E7625F1B01AC7ED557F416E3FA36CA5 | P228: F | Q228: F | R228: T | AK228: 57021129730EB9B017E24D0DD5AD475743612E7625F1B01AC7ED557F416E3FA36CA5
A229: 철공 | B229: 일반공사 직종 | C229: 인 | E229: =단가대비표!O72 -> 0.00 | F229: 0.0 | G229: =단가대비표!P72 -> 146,509.00 | H229: 0.0 | I229: =단가대비표!V72 -> 0.00 | J229: 0.0 | K229: 146,509.00 | L229: 0.0 | N229: 57021129730EB9B017E24D0DD5AD47 | O229: 57D121207AA57E8018ED12DDCCCFFFC14BBAC9 | P229: F | Q229: F | R229: T | V229: 1 | AK229: 57021129730EB9B017E24D0DD5AD4757D121207AA57E8018ED12DDCCCFFFC14BBAC9
A230: 보통인부 | B230: 일반공사 직종 | C230: 인 | E230: =단가대비표!O70 -> 0.00 | F230: 0.0 | G230: =단가대비표!P70 -> 94,338.00 | H230: 0.0 | I230: =단가대비표!V70 -> 0.00 | J230: 0.0 | K230: 94,338.00 | L230: 0.0 | N230: 57021129730EB9B017E24D0DD5AD47 | O230: 57D121207AA57E8018ED12DDCCCFFFC14BBAC2 | P230: F | Q230: F | R230: T | V230: 1 | AK230: 57021129730EB9B017E24D0DD5AD4757D121207AA57E8018ED12DDCCCFFFC14BBAC2
A231: 용접공 | B231: 일반공사 직종 | C231: 인 | E231: =단가대비표!O74 -> 0.00 | F231: 0.0 | G231: =단가대비표!P74 -> 143,509.00 | H231: 0.0 | I231: =단가대비표!V74 -> 0.00 | J231: 0.0 | K231: 143,509.00 | L231: 0.0 | N231: 57021129730EB9B017E24D0DD5AD47 | O231: 57D121207AA57E8018ED12DDCCCFFFC14BBBE4 | P231: F | Q231: F | R231: T | V231: 1 | AK231: 57021129730EB9B017E24D0DD5AD4757D121207AA57E8018ED12DDCCCFFFC14BBBE4
A232: 특별인부 | B232: 일반공사 직종 | C232: 인 | E232: =단가대비표!O71 -> 0.00 | F232: 0.0 | G232: =단가대비표!P71 -> 115,272.00 | H232: 0.0 | I232: =단가대비표!V71 -> 0.00 | J232: 0.0 | K232: 115,272.00 | L232: 0.0 | N232: 57021129730EB9B017E24D0DD5AD47 | O232: 57D121207AA57E8018ED12DDCCCFFFC14BBAC3 | P232: F | Q232: F | R232: T | V232: 1 | AK232: 57021129730EB9B017E24D0DD5AD4757D121207AA57E8018ED12DDCCCFFFC14BBAC3
A233: 공구손료 | B233: 인력품의 3% | C233: 식 | E233: =TRUNC(SUMIF(V224:V233, RIGHTB(O233, 1), H224:H233)*U233, 2) -> 0.00 | F233: 0.0 | G233: 0.00 | H233: 0.0 | I233: 0.00 | J233: 0.0 | K233: 0.00 | L233: 0.0 | N233: 57021129730EB9B017E24D0DD5AD47 | O233: 561B612975325E60133FAF268C0B001 | P233: F | Q233: F | R233: F | S233: 1 | T233: 0 | U233: 0.03 | AK233: 57021129730EB9B017E24D0DD5AD47561B612975325E60133FAF268C0B001
A234: [ 합 계 ] | F234: =TRUNC(SUMIF(N224:N233, N223, F224:F233),0) -> 0.0 | H234: =TRUNC(SUMIF(N224:N233, N223, H224:H233),0) -> 0.0 | J234: =TRUNC(SUMIF(N224:N233, N223, J224:J233),0) -> 0.0 | L234: =F234+H234+J234 -> 0.0 | N234: TOTAL | O234: TOTAL
A236: 잡철물설치(스테인리스) 간단 kg 건축 14-5 ( 호표 38 ) | N236: 57021129730EB9B017E24D0CCEBBF0
A237: 스테인리스강용피복아크용접봉 | B237: 스테인리스강용피복아크용접봉, Φ3.2mm, AWSE308 | C237: kg | E237: =단가대비표!O18 -> 0.00 | F237: =TRUNC(E237*D237,1) -> 0.0 | G237: =단가대비표!P18 -> 0.00 | H237: =TRUNC(G237*D237,1) -> 0.0 | I237: =단가대비표!V18 -> 0.00 | J237: =TRUNC(I237*D237,1) -> 0.0 | K237: =TRUNC(E237+G237+I237,1) -> 0.00 | L237: =TRUNC(F237+H237+J237,1) -> 0.0 | N237: 57021129730EB9B017E24D0CCEBBF0 | O237: 5031812C73EA7400155BAF1273890679308D69 | P237: F | Q237: F | R237: T | AK237: 57021129730EB9B017E24D0CCEBBF05031812C73EA7400155BAF1273890679308D69
... 190 more rows

Sheet 중기단가목록
A1: 중 기 단 가 목 록
A2: [ 본원식당 시설개선 공사 ]
A3: 코 드 | B3: 품 명 | C3: 규 격 | D3: 단위 | E3: 재 료 비 | F3: 노 무 비 | G3: 경 비 | H3: 합 계 | I3: 번 호 | J3: 비 고 | K3: START

Sheet 중기단가산출서
A1: 중 기 단 가 산 출 서
A2: [ 본원식당 시설개선 공사 ]
A3: 산 출 내 역 | B3: 재 료 비 | C3: 노 무 비 | D3: 경 비 | E3: 합 계 | F3: 비 고 | G3: START | H3: 코드 | I3: 품명 | J3: 규격 | K3: 단위 | L3: 수량
A4: ( )
A6: 총 계 | E6: 0

Sheet 단가대비표
A1: 단 가 대 비 표
A2: [ 본원식당 시설개선 공사 ]
A3: 코 드 | B3: 품 명 | C3: 규격 | D3: 단위 | E3: 재 료 비 | P3: 노 무 비 | Q3: 경 비 | W3: 번 호 | X3: 비 고 | Y3: 품목구분 | Z3: 노임구분 | AA3: 소수점처리 | AB3: 자재구분
E4: 가격정보 | F4: PAGE | G4: 거래가격 | H4: PAGE | I4: 유통물가 | J4: PAGE | K4: 물가자료 | L4: PAGE | M4: 조사가격2 | N4: PAGE | O4: 적용단가 | Q4: 가격정보 | R4: 거래가격 | S4: 유통물가 | T4: 물가자료 | U4: 조사가격2 | V4: 적용단가
A5: 5016E12C7048E9C018EB8DD2B2438D9E9CAD70 | B5: 공기압축기(이동식) | C5: 3.5㎥/min | D5: 대 | E5: 0 | G5: 0 | I5: 0 | K5: 0 | M5: 0 | O5: 0 | P5: 0 | Q5: 0 | R5: 0 | S5: 0 | T5: 0 | U5: 12,599.00 | V5: =SMALL(Q5:U5,COUNTIF(Q5:U5,0)+1) -> 12,599.00 | W5: 자재 1 | X5: 천원
A6: 5016E12C7048E9C018EAE1E70E00E023383D2F | B6: 페이브먼트 브레이커 | C6: 25.0kg(55#) | D6: 대 | E6: 0 | G6: 0 | I6: 0 | K6: 0 | M6: 0 | O6: 0 | P6: 0 | Q6: 0 | R6: 0 | S6: 0 | T6: 0 | U6: 1,668.00 | V6: =SMALL(Q6:U6,COUNTIF(Q6:U6,0)+1) -> 1,668.00 | W6: 자재 2 | X6: 천원
A7: 5016E12C7048EBF01E3DC3FA33389B3E21C50C | B7: 용접기(교류) | C7: 500Amp | D7: 대 | E7: 0 | G7: 0 | I7: 0 | K7: 0 | M7: 0 | O7: 0 | P7: 0 | Q7: 0 | R7: 0 | S7: 0 | T7: 0 | U7: 544.00 | V7: =SMALL(Q7:U7,COUNTIF(Q7:U7,0)+1) -> 544.00 | W7: 자재 3 | X7: 천원
A8: 500461217162D6301DA7B7B5F8B9FAE8279DCE | B8: 모래 | C8: (별도) | D8: M3 | E8: 0 | G8: 0 | I8: 0 | K8: 0 | M8: 0 | O8: 0 | P8: 0 | Q8: 0 | R8: 0 | S8: 0 | T8: 0 | U8: 0 | V8: 0 | W8: 자재 4 | X8: 별도
A9: 500461217162D6301DA7B7B5F8B9FAE8279C25 | B9: 모래 | C9: 도착도 | D9: M3 | E9: 0 | G9: 26,000.00 | H9: 92 | I9: 25,000.00 | J9: 61 | K9: 0 | M9: 0 | O9: =SMALL(E9:M9,COUNTIF(E9:M9,0)+1) -> 25,000.00 | P9: 0 | Q9: 0 | R9: 0 | S9: 0 | T9: 0 | U9: 0 | V9: 0 | W9: 자재 5
A10: 5004612171613240151E91092DA07BE43ABA5F | B10: 보통합판 | C10: 보통합판, 1급, 8.5*1220*2440mm | D10: M2 | E10: 6,317.00 | G10: 7,188.92 | H10: 621 | I10: 6,819.40 | J10: 408 | K10: 0 | M10: 0 | O10: 6,317.00 | P10: 0 | Q10: 0 | R10: 0 | S10: 0 | T10: 0 | U10: 0 | V10: 0 | W10: 자재 6
A11: 5004612171613240151E91092DA07BE43ABA5D | B11: 보통합판 | C11: 보통합판, 1급, 12*1220*2440mm | D11: M2 | E11: 7,935.00 | G11: 8,902.17 | H11: 621 | I11: 8,465.46 | J11: 408 | K11: 0 | M11: 0 | O11: 7,935.00 | P11: 0 | Q11: 0 | R11: 0 | S11: 0 | T11: 0 | U11: 0 | V11: 0 | W11: 자재 7
A12: 50046121716A2DF01C4A19AD1D60668AA8A217 | B12: 철강설 | C12: 철강설, 고철, 작업설부산물 | D12: kg | E12: 210.00 | G12: 130.00 | H12: 1440 | I12: 0 | K12: 0 | M12: 0 | O12: 130.00 | P12: 0 | Q12: 0 | R12: 0 | S12: 0 | T12: 0 | U12: 0 | V12: 0 | W12: 자재 8 | X12: 수집상차도
A13: 50046121716A2DF01C4A19AD1D60668AA8A33D | B13: 철강설 | C13: 철강설, 스텐레스, 작업설부산물 | D13: kg | E13: 1,250.00 | G13: 1,250.00 | H13: 1440 | I13: 1,000.00 | J13: 1246 | K13: 0 | M13: 0 | O13: 1,000.00 | P13: 0 | Q13: 0 | R13: 0 | S13: 0 | T13: 0 | U13: 0 | V13: 0 | W13: 자재 9 | X13: 수집상차도
A14: 50045120784057E018EBB4EBD58DAA1BA5EF39 | B14: 산소가스 | C14: 기체 | D14: L | E14: 2.00 | G14: 2.16 | H14: 1419 | I14: 2.33 | J14: 1238 | K14: 0 | M14: 0 | O14: 2.00 | P14: 0 | Q14: 0 | R14: 0 | S14: 0 | T14: 0 | U14: 0 | V14: 0 | W14: 자재 10
A15: 5004212B7405EBD01A5CAEC87D4CA68EDF88F3 | B15: 경유 | C15: 경유, 저유황 | D15: L | E15: 0 | G15: 1,062.72 | H15: 1419 | I15: 1,092.72 | J15: 1237 | K15: 0 | M15: 997.00 | O15: 997.00 | P15: 0 | Q15: 0 | R15: 0 | S15: 0 | T15: 0 | U15: 0 | V15: 0 | W15: 자재 11
A16: 5004212B7404C5D0199229C98DBAF15327D1A4 | B16: 아세틸렌가스 | C16: 아세틸렌가스, kg | D16: kg | E16: 9,500.00 | G16: 10,000.00 | H16: 1419 | I16: 11,000.00 | J16: 1238 | K16: 0 | M16: 0 | O16: 9,500.00 | P16: 0 | Q16: 0 | R16: 0 | S16: 0 | T16: 0 | U16: 0 | V16: 0 | W16: 자재 12
A17: 5031812C73EA7400155BAF1273890679335F1E | B17: 연강용피복아크용접봉 | C17: 연강용피복아크용접봉, CR-13, Φ3.2mm | D17: kg | E17: 0 | G17: 0 | I17: 0 | K17: 0 | M17: 0 | O17: 0 | P17: 0 | Q17: 0 | R17: 0 | S17: 0 | T17: 0 | U17: 0 | V17: 0 | W17: 자재 13
A18: 5031812C73EA7400155BAF1273890679308D69 | B18: 스테인리스강용피복아크용접봉 | C18: 스테인리스강용피복아크용접봉, Φ3.2mm, AWSE308 | D18: kg | E18: 0 | G18: 0 | I18: 0 | K18: 0 | M18: 0 | O18: 0 | P18: 0 | Q18: 0 | R18: 0 | S18: 0 | T18: 0 | U18: 0 | V18: 0 | W18: 자재 14
A19: 502751237386B24013D9A8A01DCC86B30AA434 | B19: 일반구조용압연강판 | C19: 일반구조용압연강판, 1.6mm | D19: kg | E19: 870.00 | G19: 1,075.90 | H19: 45 | I19: 984.00 | J19: 26 | K19: 0 | M19: 0 | O19: =SMALL(E19:M19,COUNTIF(E19:M19,0)+1) -> 870.00 | P19: 0 | Q19: 0 | R19: 0 | S19: 0 | T19: 0 | U19: 0 | V19: 0 | W19: 자재 15
A20: 502751237386B24013D9A8A01DCC86B30AA433 | B20: 일반구조용압연강판 | C20: 일반구조용압연강판, 2.3mm | D20: kg | E20: 0 | G20: 1,064.00 | H20: 45 | I20: 958.00 | J20: 26 | K20: 0 | M20: 0 | O20: =SMALL(E20:M20,COUNTIF(E20:M20,0)+1) -> 958.00 | P20: 0 | Q20: 0 | R20: 0 | S20: 0 | T20: 0 | U20: 0 | V20: 0 | W20: 자재 16
A21: 502751237386B24013D9A8A01DCC86BC654973 | B21: 합금화용융아연도금강판 | C21: 합금화용융아연도금강판, 갈바륨, 1.20mm | D21: kg | E21: 0 | G21: 1,271.00 | H21: 48 | I21: 1,511.50 | J21: 30 | K21: 0 | M21: 0 | O21: =SMALL(E21:M21,COUNTIF(E21:M21,0)+1) -> 1,271.00 | P21: 0 | Q21: 0 | R21: 0 | S21: 0 | T21: 0 | U21: 0 | V21: 0 | W21: 자재 17
A22: 502751237386B24013D9A94B62ADAE97312BD2 | B22: 스테인리스강판 | C22: 스테인리스강판, STS304, 1.5mm | D22: kg | E22: 3,470.00 | G22: 3,752.00 | H22: 59 | I22: 3,550.00 | J22: 36 | K22: 0 | M22: 0 | O22: =SMALL(E22:M22,COUNTIF(E22:M22,0)+1) -> 3,470.00 | P22: 0 | Q22: 0 | R22: 0 | S22: 0 | T22: 0 | U22: 0 | V22: 0 | W22: 자재 18
A23: 502751237386B360118F80A26453CBB161A156 | B23: 각재 | C23: 각재, 미송 | D23: 재 | E23: 1,685.00 | G23: 1,810.00 | H23: 114 | I23: 1,600.00 | J23: 73 | K23: 0 | M23: 0 | O23: =SMALL(E23:M23,COUNTIF(E23:M23,0)+1) -> 1,600.00 | P23: 0 | Q23: 0 | R23: 0 | S23: 0 | T23: 0 | U23: 0 | V23: 0 | W23: 자재 19
A24: 502751237387567010A622ED4498E65815FD14 | B24: 시멘트 | C24: 시멘트(별도) | D24: kg | E24: 0 | G24: 0 | I24: 0 | K24: 0 | M24: 0 | O24: 0 | P24: 0 | Q24: 0 | R24: 0 | S24: 0 | T24: 0 | U24: 0 | V24: 0 | W24: 자재 20 | X24: 별도
A25: 502751237387567010A622ED4498E65815FD10 | B25: 시멘트 | C25: 40KG | D25: 포 | E25: 0 | G25: 4,181.81 | H25: 93 | I25: 5,000.00 | J25: 62 | K25: 0 | M25: 0 | O25: =SMALL(E25:M25,COUNTIF(E25:M25,0)+1) -> 4,181.81 | P25: 0 | Q25: 0 | R25: 0 | S25: 0 | T25: 0 | U25: 0 | V25: 0 | W25: 자재 21
A26: 50275123738029501040845230CD02FF7D3F4E | B26: 인테리어필름 | C26: 04*1.22, 시공비포함 | D26: M2 | E26: 0 | G26: 26,500.00 | H26: 644 | I26: 0 | K26: 0 | M26: 0 | O26: 26,500.00 | P26: 0 | Q26: 0 | R26: 0 | S26: 0 | T26: 0 | U26: 0 | V26: 0 | W26: 자재 22
A27: 5027512373802950104088CA03990BB21C213E | B27: 석고보드 | C27: 석고보드, 평보드, 9.5*900*1800mm(㎡) | D27: M2 | E27: 1,830.00 | G27: 2,283.95 | H27: 625 | I27: 2,037.03 | J27: 409 | K27: 0 | M27: 0 | O27: 1,830.00 | P27: 0 | Q27: 0 | R27: 0 | S27: 0 | T27: 0 | U27: 0 | V27: 0 | W27: 자재 23
A28: 502751237380295013147BD07FBE1D76591FAB | B28: 경량철골천장틀 | C28: 경량철골천장틀, M-BAR더블, 50*19*0.5mm | D28: M | E28: 0 | G28: 930.00 | H28: 688 | I28: 620.00 | J28: 417 | K28: 0 | M28: 0 | O28: 620.00 | P28: 0 | Q28: 0 | R28: 0 | S28: 0 | T28: 0 | U28: 0 | V28: 0 | W28: 자재 24
A29: 502751237380295013147BD07FBE1D76591867 | B29: 경량철골천장틀 | C29: 경량철골천장틀, 달대볼트, 상6*1000mm | D29: 개 | E29: 0 | G29: 690.00 | H29: 688 | I29: 690.00 | J29: 419 | K29: 0 | M29: 0 | O29: 690.00 | P29: 0 | Q29: 0 | R29: 0 | S29: 0 | T29: 0 | U29: 0 | V29: 0 | W29: 자재 25
A30: 502751237380295013147BD07FBE1D76591B34 | B30: 경량철골천장틀 | C30: 경량철골천장틀, 캐링찬넬, 38*12*1.2mm | D30: M | E30: 0 | G30: 1,250.00 | H30: 688 | I30: 1,250.00 | J30: 419 | K30: 0 | M30: 0 | O30: 1,250.00 | P30: 0 | Q30: 0 | R30: 0 | S30: 0 | T30: 0 | U30: 0 | V30: 0 | W30: 자재 26
A31: 502751237380295013147BD07FBE1D76591B35 | B31: 경량철골천장틀 | C31: 경량철골천장틀, 마이너찬넬, 19*10*1.2mm | D31: M | E31: 0 | G31: 780.00 | H31: 688 | I31: 780.00 | J31: 419 | K31: 0 | M31: 0 | O31: 780.00 | P31: 0 | Q31: 0 | R31: 0 | S31: 0 | T31: 0 | U31: 0 | V31: 0 | W31: 자재 27
A32: 502751237380295013147BD07FBE1D76591B36 | B32: 경량철골천장틀 | C32: 경량철골천장틀, 행가및핀, 110*23*18*2.3mm | D32: 조 | E32: 0 | G32: 0 | I32: 250.00 | J32: 419 | K32: 0 | M32: 0 | O32: 250.00 | P32: 0 | Q32: 0 | R32: 0 | S32: 0 | T32: 0 | U32: 0 | V32: 0 | W32: 자재 28
A33: 502751237380295013147BD07FBE1D76591B37 | B33: 경량철골천장틀 | C33: 경량철골천장틀, 찬넬크립, 37*30*10*1.2mm | D33: 조 | E33: 0 | G33: 0 | I33: 0 | K33: 0 | M33: 111.00 | O33: 111.00 | P33: 0 | Q33: 0 | R33: 0 | S33: 0 | T33: 0 | U33: 0 | V33: 0 | W33: 자재 29
A34: 502751237380295013147BD07FBE1D76591B30 | B34: 경량철골천장틀 | C34: 경량철골천장틀, 캐링조인트, 90*40*13*0.5mm | D34: 조 | E34: 0 | G34: 0 | I34: 0 | K34: 0 | M34: 107.00 | O34: 107.00 | P34: 0 | Q34: 0 | R34: 0 | S34: 0 | T34: 0 | U34: 0 | V34: 0 | W34: 자재 30
A35: 502751237380295013147BD07FBE1D76591B31 | B35: 경량철골천장틀 | C35: 경량철골천장틀, BAR크립, 더블 | D35: 개 | E35: 0 | G35: 0 | I35: 0 | K35: 0 | M35: 60.00 | O35: 60.00 | P35: 0 | Q35: 0 | R35: 0 | S35: 0 | T35: 0 | U35: 0 | V35: 0 | W35: 자재 31
A36: 502751237380295013147BD07FBE1D76591B33 | B36: 경량철골천장틀 | C36: 경량철골천장틀, BAR조인트, 더블 | D36: 개 | E36: 0 | G36: 0 | I36: 0 | K36: 0 | M36: 80.00 | O36: 80.00 | P36: 0 | Q36: 0 | R36: 0 | S36: 0 | T36: 0 | U36: 0 | V36: 0 | W36: 자재 32
A37: 502751237380295013147BD07FBE1D76591A2A | B37: 경량철골천장틀 | C37: ( 경량철골천장틀, 피스, 3*16mm ) | D37: 개 | E37: 0 | G37: 0 | I37: 0 | K37: 0 | M37: 0 | O37: 0 | P37: 0 | Q37: 0 | R37: 0 | S37: 0 | T37: 0 | U37: 0 | V37: 0 | W37: 자재 33 | X37: 필요시 계상
A38: 5027512373802950120E16774BD3283BC8CC00 | B38: 플로어링보드 | C38: 플로어링보드, 15mm, 삼겹적층플로어링, 도장제품(UV) | D38: M2 | E38: 39,060.00 | G38: 0 | I38: 0 | K38: 0 | M38: 0 | O38: =SMALL(E38:M38,COUNTIF(E38:M38,0)+1) -> 39,060.00 | P38: 0 | Q38: 0 | R38: 0 | S38: 0 | T38: 0 | U38: 0 | V38: 0 | W38: 자재 34
A39: 5027512373802950120E129BD49A7FA9669EBD | B39: 인조대리석 | C39: 인조대리석, 400*400*20mm, 글로톤, GP/MJ/SK/MA | D39: M2 | E39: 0 | G39: 0 | I39: 41,000.00 | J39: 371 | K39: 0 | M39: 0 | O39: 41,000.00 | P39: 0 | Q39: 0 | R39: 0 | S39: 0 | T39: 0 | U39: 0 | V39: 0 | W39: 자재 35
A40: 502751237381CFF01DB37F8F92CE73759C7731 | B40: 갈바고정창호/분체도장 | C40: 1.2MM, 120mm | D40: M2 | E40: 0 | G40: 0 | I40: 0 | K40: 114,000.00 | L40: 573 | M40: 0 | O40: 114,000.00 | P40: 0 | Q40: 0 | R40: 0 | S40: 0 | T40: 0 | U40: 0 | V40: 0 | W40: 자재 36
A41: 502751237381CFF01DB37EE44D679307B13C42 | B41: 강화유리문(세이프) | C41: 투명,손보호,12mm*1.0*2.1m,고무2면 | D41: 개 | E41: 0 | G41: 0 | I41: 250,000.00 | J41: 439 | K41: 0 | M41: 0 | O41: 250,000.00 | P41: 0 | Q41: 0 | R41: 0 | S41: 0 | T41: 0 | U41: 0 | V41: 0 | W41: 자재 37
A42: 502751237381CFF01DB37EE44D679307B13C43 | B42: 강화유리문(세이프) | C42: 투명,손보호,12mm*0.9*3.0m,고무2면 | D42: 개 | E42: 0 | G42: 0 | I42: 300,000.00 | J42: 439 | K42: 0 | M42: 0 | O42: 300,000.00 | P42: 0 | Q42: 0 | R42: 0 | S42: 0 | T42: 0 | U42: 0 | V42: 0 | W42: 자재 38
A43: 502751237381CFF01DB37EE44F18C3B0C8C1C0 | B43: 강화유리문손잡이 | D43: 개 | E43: 0 | G43: 0 | I43: 0 | K43: 48,000.00 | M43: 0 | O43: 48,000.00 | P43: 0 | Q43: 0 | R43: 0 | S43: 0 | T43: 0 | U43: 0 | V43: 0 | W43: 자재 39
A44: 502751237381CFF01DBBBCFE195E0F48FEF6D1 | B44: 점검구 | C44: AL(백색), 650*650mm | D44: 조 | E44: 0 | G44: 0 | I44: 0 | K44: 0 | M44: 18,080.00 | O44: 18,080.00 | P44: 0 | Q44: 0 | R44: 0 | S44: 0 | T44: 0 | U44: 0 | V44: 0 | W44: 자재 40
A45: 502751237381CFF01F61DD0066D94C1B0EC079 | B45: 강화유리 | C45: 강화유리, 투명, 12mm | D45: M2 | E45: 37,800.00 | G45: 39,000.00 | H45: 617 | I45: 38,000.00 | J45: 468 | K45: 0 | M45: 0 | O45: 37,800.00 | P45: 0 | Q45: 0 | R45: 0 | S45: 0 | T45: 0 | U45: 0 | V45: 0 | W45: 자재 41
A46: 502741227AE1991015186ABB5A18A8680D7CBC | B46: 플로어힌지 | C46: KS3호, 105kg, 강화유리문(K-8300) | D46: 조 | E46: 57,200.00 | G46: 70,000.00 | H46: 611 | I46: 77,000.00 | J46: 459 | K46: 0 | M46: 0 | O46: 57,200.00 | P46: 0 | Q46: 0 | R46: 0 | S46: 0 | T46: 0 | U46: 0 | V46: 0 | W46: 자재 42
A47: 502741227AE1991019F3FAFB0863305F89AAC5 | B47: 인서트 | C47: 인서트, 주물, Φ6mm | D47: 개 | E47: 0 | G47: 0 | I47: 0 | K47: 0 | M47: 180.00 | O47: 180.00 | P47: 0 | Q47: 0 | R47: 0 | S47: 0 | T47: 0 | U47: 0 | V47: 0 | W47: 자재 43
A48: 502741227AEE52301723DDC2087C4A138990BA | B48: 연마지 | C48: 연마지, #120~180, 230*280mm | D48: 장 | E48: 200.00 | G48: 230.00 | H48: 1305 | I48: 275.00 | J48: 1216 | K48: 0 | M48: 0 | O48: 200.00 | P48: 0 | Q48: 0 | R48: 0 | S48: 0 | T48: 0 | U48: 0 | V48: 0 | W48: 자재 44
A49: 502741227AEE52301723D588EE5A416B72AF6D | B49: 우레탄폼 | D49: M3 | E49: 0 | G49: 250,000.00 | H49: 676 | I49: 0 | K49: 0 | M49: 0 | O49: 250,000.00 | P49: 0 | Q49: 0 | R49: 0 | S49: 0 | T49: 0 | U49: 0 | V49: 0 | W49: 자재 45
A50: 5027412279C120801A512A8E2353459368C596 | B50: 초산비닐계접착제 | C50: 초산비닐계접착제, 일반목공용 | D50: kg | E50: 1,520.00 | G50: 0 | I50: 0 | K50: 0 | M50: 0 | O50: 1,520.00 | P50: 0 | Q50: 0 | R50: 0 | S50: 0 | T50: 0 | U50: 0 | V50: 0 | W50: 자재 46
A51: 5027412279C120801A512E6518534BE0E60961 | B51: 퍼티 | C51: 퍼티, 친환경, 내부 | D51: kg | E51: 0 | G51: 1,044.44 | H51: 577 | I51: 0 | K51: 0 | M51: 0 | O51: 1,044.44 | P51: 0 | Q51: 0 | R51: 0 | S51: 0 | T51: 0 | U51: 0 | V51: 0 | W51: 자재 47
A52: 5027412279C120801A512E6518534BE0E45AFD | B52: F-Tape | C52: W:35~100mm | D52: M | E52: 0 | G52: 0 | I52: 0 | K52: 0 | M52: 73.00 | O52: 73.00 | P52: 0 | Q52: 0 | R52: 0 | S52: 0 | T52: 0 | U52: 0 | V52: 0 | W52: 자재 48
A53: 5027412279C120801A512E6518534BE0E45B86 | B53: 휠러 | D53: kg | E53: 0 | G53: 0 | I53: 0 | K53: 0 | M53: 1,150.00 | O53: 1,150.00 | P53: 0 | Q53: 0 | R53: 0 | S53: 0 | T53: 0 | U53: 0 | V53: 0 | W53: 자재 49
A54: 5027412279C120801A512CBB18828B90D17DC1 | B54: 에폭시접착제 | C54: 에폭시접착제, 석재용 | D54: kg | E54: 2,550.00 | G54: 5,000.00 | H54: 143 | I54: 0 | K54: 0 | M54: 0 | O54: 2,550.00 | P54: 0 | Q54: 0 | R54: 0 | S54: 0 | T54: 0 | U54: 0 | V54: 0 | W54: 자재 50
A55: 5027412279C01B401DACDD4BE20297736EB7A8 | B55: 방청페인트 | C55: 방청페인트, KSM6030-1종1류, 광명단페인트 | D55: L | E55: 9,040.00 | G55: 17,655.55 | H55: 572 | I55: 17,683.33 | J55: 473 | K55: 0 | M55: 0 | O55: 9,040.00 | P55: 0 | Q55: 0 | R55: 0 | S55: 0 | T55: 0 | U55: 0 | V55: 0 | W55: 자재 51
A56: 5027412279C01B401DACD9ECD693FC93C90B61 | B56: 조합페인트 | C56: 조합페인트, KSM6020-1종1급, 백색 | D56: L | E56: 5,060.00 | G56: 7,988.88 | H56: 572 | I56: 8,305.55 | J56: 473 | K56: 0 | M56: 0 | O56: 5,060.00 | P56: 0 | Q56: 0 | R56: 0 | S56: 0 | T56: 0 | U56: 0 | V56: 0 | W56: 자재 52
A57: 5027412279C01B401F5267F666D7158758EA81 | B57: 실링재 | C57: 실링재, 실리콘, 비초산, 유리용, 창호주위 | D57: L | E57: 9,310.00 | G57: 9,999.00 | H57: 561 | I57: 10,645.16 | J57: 384 | K57: 0 | M57: 0 | O57: 9,310.00 | P57: 0 | Q57: 0 | R57: 0 | S57: 0 | T57: 0 | U57: 0 | V57: 0 | W57: 자재 53
A58: 5027412279C01B4010ED900F7CCBCBB449D6A5 | B58: 시너 | C58: 시너, KSM6060, 1종 | D58: L | E58: 0 | G58: 3,483.33 | H58: 572 | I58: 2,433.33 | J58: 477 | K58: 0 | M58: 0 | O58: 2,433.33 | P58: 0 | Q58: 0 | R58: 0 | S58: 0 | T58: 0 | U58: 0 | V58: 0 | W58: 자재 54
A59: 505C912371FC3970186CA8D1C4C714BD20C248 | B59: 일반구조용각형강관 | C59: 일반구조용각형강관, 각형강관, 30*20*1.6mm | D59: M | E59: 870.00 | G59: 0 | I59: 0 | K59: 0 | M59: 0 | O59: 870.00 | P59: 0 | Q59: 0 | R59: 0 | S59: 0 | T59: 0 | U59: 0 | V59: 0 | W59: 자재 55
A60: 505C912371FC3970186CA8D1C4C714BD20C242 | B60: 일반구조용각형강관 | C60: 일반구조용각형강관, 각형강관, 30*30*2.1mm | D60: M | E60: 0 | G60: 1,850.00 | H60: 56 | I60: 1,989.00 | J60: 33 | K60: 0 | M60: 0 | O60: 1,850.00 | P60: 0 | Q60: 0 | R60: 0 | S60: 0 | T60: 0 | U60: 0 | V60: 0 | W60: 자재 56
A61: 505C912371FC3970186CA8D1C4C714BD277AD7 | B61: 일반구조용각형강관 | C61: 일반구조용각형강관, 각형강관, 40*40*2.1mm | D61: M | E61: 0 | G61: 2,400.00 | H61: 56 | I61: 2,685.00 | J61: 33 | K61: 0 | M61: 0 | O61: 2,400.00 | P61: 0 | Q61: 0 | R61: 0 | S61: 0 | T61: 0 | U61: 0 | V61: 0 | W61: 자재 57
A62: 505C912371FC3970186CA7CE4CB8950E2DDC5B | B62: 알루미늄각관 | C62: ㅁ-45*120 | D62: M | E62: 0 | G62: 0 | I62: 0 | K62: 0 | M62: 10,920.00 | O62: 10,920.00 | P62: 0 | Q62: 0 | R62: 0 | S62: 0 | T62: 0 | U62: 0 | V62: 0 | W62: 자재 58
A63: 5042412B75518350108F43725EA7633BC8E1AE | B63: 거울 | C63: 거울, 1000*1000*5mm | D63: 개 | E63: 0 | G63: 20,300.00 | H63: 619 | I63: 0 | K63: 0 | M63: 0 | O63: 20,300.00 | P63: 0 | Q63: 0 | R63: 0 | S63: 0 | T63: 0 | U63: 0 | V63: 0 | W63: 자재 59 | X63: A * M2단가
A64: 5702A12B7F8F56C0162190A0EF7042 | B64: 건설폐기물처리비-중간 | C64: 혼합건설폐기물 | D64: TON | E64: 0 | G64: 0 | I64: 0 | K64: 0 | M64: 0 | O64: 0 | P64: 0 | Q64: 0 | R64: 0 | S64: 0 | T64: 0 | U64: 94,250.00 | V64: =SMALL(Q64:U64,COUNTIF(Q64:U64,0)+1) -> 94,250.00 | W64: 자재 60
A65: 5702A12B7F8F56C017C732CDB089DF | B65: 건설폐기물상차비 - 불연성 | C65: 15톤덤프트럭(10m3) | D65: TON | E65: 0 | G65: 0 | I65: 0 | K65: 0 | M65: 0 | O65: 0 | P65: 0 | Q65: 0 | R65: 0 | S65: 0 | T65: 1,820.00 | U65: 0 | V65: =SMALL(Q65:U65,COUNTIF(Q65:U65,0)+1) -> 1,820.00 | W65: 자재 61
A66: 5702A12B7F8F56C017C732CF63E67A | B66: 건설폐기물운반비 - 불연성 | C66: 15톤덤프트럭 - 30km | D66: TON | E66: 0 | G66: 0 | I66: 0 | K66: 0 | M66: 0 | O66: 0 | P66: 0 | Q66: 0 | R66: 0 | S66: 0 | T66: 11,840.00 | U66: 0 | V66: =SMALL(Q66:U66,COUNTIF(Q66:U66,0)+1) -> 11,840.00 | W66: 자재 62
A67: 570251237A23DB8019A5DC2725B045 | B67: 비닐페인트 | C67: 내벽3회 | D67: ㎡ | E67: 4,100.00 | G67: 0 | I67: 0 | K67: 0 | M67: 0 | O67: =SMALL(E67:M67,COUNTIF(E67:M67,0)+1) -> 4,100.00 | P67: 6,990.00 | Q67: 0 | R67: 0 | S67: 0 | T67: 0 | U67: 0 | V67: 0 | W67: 자재 63 | Y67: 2
A68: 570251237A23DB80189FF142B2C4D7 | B68: 비닐페인트 | C68: 내천정3회 | D68: ㎡ | E68: 4,250.00 | G68: 0 | I68: 0 | K68: 0 | M68: 0 | O68: =SMALL(E68:M68,COUNTIF(E68:M68,0)+1) -> 4,250.00 | P68: 7,430.00 | Q68: 0 | R68: 0 | S68: 0 | T68: 0 | U68: 0 | V68: 0 | W68: 자재 64 | Y68: 2
A69: 5743612E7625F1B01AC7ED557F416E3FA36CA5 | B69: 공통자재 | C69: 일반경비, 전력 | D69: kwh | E69: 0 | G69: 0 | I69: 0 | K69: 0 | M69: 0 | O69: 0 | P69: 0 | Q69: 87.00 | R69: 0 | S69: 0 | T69: 0 | U69: 0 | V69: =SMALL(Q69:U69,COUNTIF(Q69:U69,0)+1) -> 87.00 | W69: 자재 65
A70: 57D121207AA57E8018ED12DDCCCFFFC14BBAC2 | B70: 보통인부 | C70: 일반공사 직종 | D70: 인 | E70: 0 | G70: 0 | I70: 0 | K70: 0 | M70: 0 | O70: 0 | P70: 94,338.00 | Q70: 0 | R70: 0 | S70: 0 | T70: 0 | U70: 0 | V70: 0 | W70: 노임 1 | Y70: B
A71: 57D121207AA57E8018ED12DDCCCFFFC14BBAC3 | B71: 특별인부 | C71: 일반공사 직종 | D71: 인 | E71: 0 | G71: 0 | I71: 0 | K71: 0 | M71: 0 | O71: 0 | P71: 115,272.00 | Q71: 0 | R71: 0 | S71: 0 | T71: 0 | U71: 0 | V71: 0 | W71: 노임 2 | Y71: B
A72: 57D121207AA57E8018ED12DDCCCFFFC14BBAC9 | B72: 철공 | C72: 일반공사 직종 | D72: 인 | E72: 0 | G72: 0 | I72: 0 | K72: 0 | M72: 0 | O72: 0 | P72: 146,509.00 | Q72: 0 | R72: 0 | S72: 0 | T72: 0 | U72: 0 | V72: 0 | W72: 노임 3 | Y72: B
A73: 57D121207AA57E8018ED12DDCCCFFFC14BBBE6 | B73: 철판공 | C73: 일반공사 직종 | D73: 인 | E73: 0 | G73: 0 | I73: 0 | K73: 0 | M73: 0 | O73: 0 | P73: 131,821.00 | Q73: 0 | R73: 0 | S73: 0 | T73: 0 | U73: 0 | V73: 0 | W73: 노임 4 | Y73: B
A74: 57D121207AA57E8018ED12DDCCCFFFC14BBBE4 | B74: 용접공 | C74: 일반공사 직종 | D74: 인 | E74: 0 | G74: 0 | I74: 0 | K74: 0 | M74: 0 | O74: 0 | P74: 143,509.00 | Q74: 0 | R74: 0 | S74: 0 | T74: 0 | U74: 0 | V74: 0 | W74: 노임 5 | Y74: B
A75: 57D121207AA57E8018ED12DDCCCFFFC14BBBE3 | B75: 착암공 | C75: 일반공사 직종 | D75: 인 | E75: 0 | G75: 0 | I75: 0 | K75: 0 | M75: 0 | O75: 0 | P75: 113,289.00 | Q75: 0 | R75: 0 | S75: 0 | T75: 0 | U75: 0 | V75: 0 | W75: 노임 6 | Y75: B
A76: 57D121207AA57E8018ED12DDCCCFFFC14BB811 | B76: 건축목공 | C76: 일반공사 직종 | D76: 인 | E76: 0 | G76: 0 | I76: 0 | K76: 0 | M76: 0 | O76: 0 | P76: 148,851.00 | Q76: 0 | R76: 0 | S76: 0 | T76: 0 | U76: 0 | V76: 0 | W76: 노임 7 | Y76: B
A77: 57D121207AA57E8018ED12DDCCCFFFC14BB816 | B77: 창호공 | C77: 일반공사 직종 | D77: 인 | E77: 0 | G77: 0 | I77: 0 | K77: 0 | M77: 0 | O77: 0 | P77: 139,607.00 | Q77: 0 | R77: 0 | S77: 0 | T77: 0 | U77: 0 | V77: 0 | W77: 노임 8 | Y77: B
A78: 57D121207AA57E8018ED12DDCCCFFFC14BB817 | B78: 유리공 | C78: 일반공사 직종 | D78: 인 | E78: 0 | G78: 0 | I78: 0 | K78: 0 | M78: 0 | O78: 0 | P78: 133,910.00 | Q78: 0 | R78: 0 | S78: 0 | T78: 0 | U78: 0 | V78: 0 | W78: 노임 9 | Y78: B
A79: 57D121207AA57E8018ED12DDCCCFFFC14BB815 | B79: 미장공 | C79: 일반공사 직종 | D79: 인 | E79: 0 | G79: 0 | I79: 0 | K79: 0 | M79: 0 | O79: 0 | P79: 149,091.00 | Q79: 0 | R79: 0 | S79: 0 | T79: 0 | U79: 0 | V79: 0 | W79: 노임 10 | Y79: B
A80: 57D121207AA57E8018ED12DDCCCFFFC14BB81B | B80: 도장공 | C80: 일반공사 직종 | D80: 인 | E80: 0 | G80: 0 | I80: 0 | K80: 0 | M80: 0 | O80: 0 | P80: 132,552.00 | Q80: 0 | R80: 0 | S80: 0 | T80: 0 | U80: 0 | V80: 0 | W80: 노임 11 | Y80: B
A81: 57D121207AA57E8018ED12DDCCCFFFC14BB939 | B81: 내장공 | C81: 일반공사 직종 | D81: 인 | E81: 0 | G81: 0 | I81: 0 | K81: 0 | M81: 0 | O81: 0 | P81: 144,150.00 | Q81: 0 | R81: 0 | S81: 0 | T81: 0 | U81: 0 | V81: 0 | W81: 노임 12 | Y81: B
A82: 57D121207AA57E8018ED12DDCCCFFFC14BB93A | B82: 석공 | C82: 일반공사 직종 | D82: 인 | E82: 0 | G82: 0 | I82: 0 | K82: 0 | M82: 0 | O82: 0 | P82: 151,583.00 | Q82: 0 | R82: 0 | S82: 0 | T82: 0 | U82: 0 | V82: 0 | W82: 노임 13 | Y82: B
A83: 57D121207AA57E8018ED12DDCCCFFFC14BBEB3 | B83: 건설기계운전사 | C83: 일반공사 직종 | D83: 인 | E83: 0 | G83: 0 | I83: 0 | K83: 0 | M83: 0 | O83: 0 | P83: 135,644.00 | Q83: 0 | R83: 0 | S83: 0 | T83: 0 | U83: 0 | V83: 0 | W83: 노임 14 | Y83: B
A84: 57D121207AA57E8018ED16B89C80A999620D63 | B84: 코킹공 | C84: 기타 직종 | D84: 인 | E84: 0 | G84: 0 | I84: 0 | K84: 0 | M84: 0 | O84: 0 | P84: 122,525.00 | Q84: 0 | R84: 0 | S84: 0 | T84: 0 | U84: 0 | V84: 0 | W84: 노임 15 | Y84: B
A85: 56BA812F7146E22011C03552E73DA1060155A8 | B85: EZM-5693 의자 | C85: H705/블랙 | D85: EA | E85: 0 | G85: 0 | I85: 0 | K85: 0 | M85: 220,000.00 | O85: =SMALL(E85:M85,COUNTIF(E85:M85,0)+1) -> 220,000.00 | P85: 0 | Q85: 0 | R85: 0 | S85: 0 | T85: 0 | U85: 0 | V85: 0 | W85: 자재 66
A86: 56BA812F7146E22011C03552E73DA1060155A0 | B86: 이미지파티션공사 | C86: 800*1800 | D86: EA | E86: 0 | G86: 0 | I86: 0 | K86: 0 | M86: 296,000.00 | O86: =SMALL(E86:M86,COUNTIF(E86:M86,0)+1) -> 296,000.00 | P86: 0 | Q86: 0 | R86: 0 | S86: 0 | T86: 0 | U86: 0 | V86: 0 | W86: 자재 67
A87: 56BA812F7146E22011C03552E73DA106015482 | B87: 기계설비공사 | D87: 식 | E87: 0 | G87: 0 | I87: 0 | K87: 0 | M87: 140,702.00 | O87: =SMALL(E87:M87,COUNTIF(E87:M87,0)+1) -> 140,702.00 | P87: 1,045,089.00 | Q87: 0 | R87: 0 | S87: 0 | T87: 0 | U87: 0 | V87: 0 | W87: 자재 68

Sheet 단가대비표(기계)
A1: 단 가 대 비 표
A2: [ 본원식당 시설개선 공사-기계 ]
A3: 코 드 | B3: 품 명 | C3: 규격 | D3: 단위 | E3: 재 료 비 | P3: 노 무 비 | Q3: 경 비 | W3: 번 호 | X3: 비 고 | Y3: 품목구분 | Z3: 노임구분 | AA3: 소수점처리 | AB3: 자재구분
E4: 가격정보 | F4: PAGE | G4: 거래가격 | H4: PAGE | I4: 유통물가 | J4: PAGE | K4: 조사가격2 | L4: PAGE | M4: 조사가격1 | N4: PAGE | O4: 적용단가 | Q4: 가격정보 | R4: 거래가격 | S4: 유통물가 | T4: 조사가격2 | U4: 조사가격1 | V4: 적용단가
A5: 50B521480459D1250DF563874DA0BC7C62D78F | B5: AL 밴드 | C5: 0.3*30W | D5: M | E5: 300.00 | G5: 0 | I5: 360.00 | J5: 711 | K5: 0 | M5: 0 | O5: =SMALL(E5:M5,COUNTIF(E5:M5,0)+1) -> 300.00 | P5: 0 | Q5: 0 | R5: 0 | S5: 0 | T5: 0 | U5: 0 | V5: 0 | W5: 자재 1
A6: 50C7A14B025DBB4560FE6E05DFB38075D90993 | B6: 디퓨저 | C6: 디퓨저, 원형, Φ150mm, 알루미늄 | D6: 개 | E6: 17,550.00 | G6: 0 | I6: 0 | K6: 0 | M6: 0 | O6: =SMALL(E6:M6,COUNTIF(E6:M6,0)+1) -> 17,550.00 | P6: 0 | Q6: 0 | R6: 0 | S6: 0 | T6: 0 | U6: 0 | V6: 0 | W6: 자재 2
A7: 50C7A14B0259DEC5CB7A601C3E3FBAAD6BDD39 | B7: 공조덕트 | C7: 공조덕트, 플렉시블, 알루미늄, Φ150mm | D7: m | E7: 0 | G7: 4,800.00 | H7: 920 | I7: 4,800.00 | J7: 776 | K7: 0 | M7: 0 | O7: =SMALL(E7:M7,COUNTIF(E7:M7,0)+1) -> 4,800.00 | P7: 0 | Q7: 0 | R7: 0 | S7: 0 | T7: 0 | U7: 0 | V7: 0 | W7: 자재 3
A8: 574381438B594EB5183A6594207984BFFC4720 | B8: 덕트공 | C8: 일반공사 직종 | D8: 인 | E8: 0 | G8: 0 | I8: 0 | K8: 0 | M8: 0 | O8: 0 | P8: 116,121.00 | Q8: 0 | R8: 0 | S8: 0 | T8: 0 | U8: 0 | V8: 0 | W8: 노임 1 | Y8: B
A9: 5604D14F5B5394852FCE6196ED650837839DAF | B9: 싱글형 | C9: 냉방13.0/난방15.0kW | D9: 대 | E9: 1,673,000.00 | G9: 0 | I9: 0 | K9: 0 | M9: 0 | O9: =SMALL(E9:M9,COUNTIF(E9:M9,0)+1) -> 1,673,000.00 | P9: 0 | Q9: 0 | R9: 0 | S9: 0 | T9: 0 | U9: 0 | V9: 0 | W9: 자재 4
A10: 5604D14F5B5394852FCE6196ED650837839DAE | B10: 부품 | C10: 싱글형실외기받침대 | D10: 대 | E10: 26,100.00 | G10: 0 | I10: 0 | K10: 0 | M10: 0 | O10: 26,100.00 | P10: 0 | Q10: 0 | R10: 0 | S10: 0 | T10: 0 | U10: 0 | V10: 0 | W10: 자재 5
A11: 5604D14F5B5394852FCE6196ED650837839DA9 | B11: 4-WAY | C11: 냉방13.0/난방15.0kW, 4방향천장형 | D11: 대 | E11: 487,000.00 | G11: 0 | I11: 0 | K11: 0 | M11: 0 | O11: 487,000.00 | P11: 0 | Q11: 0 | R11: 0 | S11: 0 | T11: 0 | U11: 0 | V11: 0 | W11: 자재 6
A12: 5604D14F5B5394852FCE6196ED650837839DA8 | B12: 부품 | C12: 룸컨트롤러 | D12: 개 | E12: 48,500.00 | G12: 0 | I12: 0 | K12: 0 | M12: 0 | O12: 48,500.00 | P12: 0 | Q12: 0 | R12: 0 | S12: 0 | T12: 0 | U12: 0 | V12: 0 | W12: 자재 7
A13: 5604D14F5B5394852FCE6196ED650837839DA4 | B13: 기본설치 | C13: 냉난방공조공사, 가변형히트펌프냉난방기설치, 기본(냉매배관제외) | D13: 식 | E13: 588,700.00 | G13: 0 | I13: 0 | K13: 0 | M13: 0 | O13: 588,700.00 | P13: 0 | Q13: 0 | R13: 0 | S13: 0 | T13: 0 | U13: 0 | V13: 0 | W13: 자재 8
A14: 5604D14F5B5394852FCE6196ED650837839C86 | B14: 설치옵션 | C14: 냉난방공조공사, 냉매관및설치, 평균Φ12.7mm, 커버없음, 1m당 | D14: m | E14: 6,000.00 | G14: 0 | I14: 0 | K14: 0 | M14: 0 | O14: 6,000.00 | P14: 0 | Q14: 0 | R14: 0 | S14: 0 | T14: 0 | U14: 0 | V14: 0 | W14: 자재 9
A15: 5604D14F5B5394852FCE6196ED650837839C87 | B15: 설치옵션 | C15: 냉난방공조공사, 냉매관및설치, 평균Φ15.88mm,커버없음, 1m당 | D15: m | E15: 7,080.00 | G15: 0 | I15: 0 | K15: 0 | M15: 0 | O15: 7,080.00 | P15: 0 | Q15: 0 | R15: 0 | S15: 0 | T15: 0 | U15: 0 | V15: 0 | W15: 자재 10
A16: 5604D14F5B5394852FCE6196ED650837839C82 | B16: 설치옵션 | C16: 냉난방공조공사, 냉난방기용PVC드레인관설치, Φ32mm | D16: m | E16: 6,000.00 | G16: 0 | I16: 0 | K16: 0 | M16: 0 | O16: 6,000.00 | P16: 0 | Q16: 0 | R16: 0 | S16: 0 | T16: 0 | U16: 0 | V16: 0 | W16: 자재 11
A17: 5604D14F5B5394852FCE6196ED650837839C83 | B17: 설치옵션 | C17: 냉난방공조공사, 냉난방기용STS냉매배관커버설치 | D17: ㎡ | E17: 42,300.00 | G17: 0 | I17: 0 | K17: 0 | M17: 0 | O17: 42,300.00 | P17: 0 | Q17: 0 | R17: 0 | S17: 0 | T17: 0 | U17: 0 | V17: 0 | W17: 자재 12
A18: 5604D14F5B5394852FCE6196ED650837839C81 | B18: 설치옵션 | C18: 냉난방공조공사, 룸컨트롤러세트용전선및전선관설치, 커버없음 | D18: m | E18: 6,400.00 | G18: 0 | I18: 0 | K18: 0 | M18: 0 | O18: 6,400.00 | P18: 0 | Q18: 0 | R18: 0 | S18: 0 | T18: 0 | U18: 0 | V18: 0 | W18: 자재 13
A19: 5604D14F5B5394852FCE6196ED650837839C8E | B19: 설치옵션 | C19: 냉난방공조공사, 실내기실외기간 통신용케이블 및 CD관설치 | D19: m | E19: 6,400.00 | G19: 0 | I19: 0 | K19: 0 | M19: 0 | O19: 6,400.00 | P19: 0 | Q19: 0 | R19: 0 | S19: 0 | T19: 0 | U19: 0 | V19: 0 | W19: 자재 14
A20: 5628D14C9B53E045BAA4632B2064023F15ECEB | B20: 조달수수료 | C20: 주재료비의 0.54% | D20: 식 | E20: 20,140.00 | G20: 0 | I20: 0 | K20: 0 | M20: 0 | O20: 20,140.00 | P20: 0 | Q20: 0 | R20: 0 | S20: 0 | T20: 0 | U20: 0 | V20: 0 | W20: 자재 15

Sheet 공사설정
A1: 이 Sheet는 수정하지 마십시요
A2: 공사구분 | B2: A
A3: 확정내역 | B3: 원내역
A4: 자재단가적용 | B4: 5
A5: 경비단가적용 | B5: 5
A6: 품목코드형식 | B6: XXXX-XXXX-XXXXXXXXX
A7: 내역금액소수점처리 | B7: C | C7: T
A8: 일위대가내역소수점처리 | B8: C | C8: 2
A9: 단가명 | B9: 가격정보 | C9: 거래가격 | D9: 유통물가 | E9: 물가자료 | F9: 조사가격2 | G9: TTTTT
A10: 환율 | B10: 1172 | C10: 0 | D10: 0
A11: 시간당작업량 | B11: R | C11: 4
A12: 1회 사이클시간 | B12: R | C12: 4
A13: 시간당 작업사이클 | B13: R | C13: 3
A14: 일반변수 | B14: C | C14: 5
A15: 시간당 노임산출 계수 | B15: A | C15: 1/8*16/12*25/20 | D15: 1/8*16/12*25/20 | E15: 1/8*16/12*25/20 | F15: 1
A16: 재료비 할증 계수 | B16: 1.11 | C16: 1.12
A17: 노무비 할증 계수 | B17: 1 | C17: 1.5 | D17: 1.16 | E17: 1.6 | F17: 1.6 | G17: 1.6 | H17: 1.94 | I17: 1.94 | J17: 1.94 | K17: 1 | L17: 1 | M17: 1
A18: 경비 할증 계수 | B18: 1.25 | C18: 1.071
A19: 내역,일위대가 품명,규격,단위 따로적용
A21: 코드 | B21: 공종구분명 | C21: 원가비목코드
A22: 1 | B22: 작 업 부 산 물 | C22: A3
A23: 2 | B23: 운 반 비 | C23: C1
A24: 3 | B24: 관 급 자 재 비 | C24: DJ
A25: 4 | B25: 사 급 자 재 비 | C25: D3
A26: 5 | B26: 외 자 재
A27: 6 | B27: 건설폐기물처리비 | C27: D4
A28: 7 | B28: ...
A29: 8 | B29: ...
A30: 9 | B30: ...

Sheet Sheet1
